Workbook

Sheet Orçamento Sintético
E1: Bancos | G1: B.D.I. | J1: Encargos Sociais
D2: Obra SRP LEDs 60W_NÃO DESONERADO | E2: SINAPI - 10/2024 - Pernambuco ORSE - 09/2024 | G2: 0.2456 | J2: Não Desonerado: Horista: 114,55% Mensalista: 70,11%
G3: Fornecimento | I3: 0.135
A4: Orçamento Sintético - | G4: =F7 -> 6800 | I4: unidades | J4: unidades
A5: Item | B5: Código | C5: Banco | D5: Descrição | E5: Und | F5: Quant. | G5: Valor Unit | H5: BDI | I5: Valor Unit com BDI | J5: Total | K5: Peso (%)
A6: 1 | D6: SERVIÇOS PRELIMINARES | J6: =SUM(J7:J9) -> 79720.89 | K6: =J6/$I$28 -> 0.0161
A7: =CPUs!A5 -> 1.1 | B7: =CPUs!B6 -> 1 | C7: =CPUs!C6 -> Próprio | D7: =CPUs!D6 -> ELABORAÇÃO DE PROJETO LUMINOTÉCNICO E LEVANTAMENTO GEOREFERENCIADO, DESENHO, PROJETO E TRAMITAÇÃO JUNTO A CONCESSIONÁRIA DE ENERGIA PARA ATUALIZAÇÃO CADASTRAL DA ILUMINAÇÃO PÚBLICA | E7: =CPUs!G6 -> unid | F7: =Memoria!F4 -> 6800 | G7: =CPUs!I6 -> 7.95 | H7: =$G$2 -> 0.2456 | I7: =TRUNC(G7*(1+$G$2),2) -> 9.9 | J7: =TRUNC(F7*I7,2) -> 67320 | K7: 0.0136
A8: =CPUs!A12 -> 1.2 | B8: =CPUs!B13 -> 103689 | C8: SINAPI | D8: =CPUs!D13 -> FORNECIMENTO E INSTALAÇÃO DE PLACA DE OBRA COM CHAPA GALVANIZADA E ESTRUTURA DE MADEIRA. AF_03/2022_PS | E8: unid | F8: 3 | G8: =CPUs!J13 -> 2775.24 | H8: =$G$2 -> 0.2456 | I8: =TRUNC(G8*(1+$G$2),2) -> 3456.83 | J8: =TRUNC(F8*I8,2) -> 10370.49 | K8: 0.0021
A9: 1.3 | B9: 2 | C9: SINAPI | D9: MOBILIZAÇÃO E DESMOBILIZAÇÃO | E9: tkm | F9: =Memoria!F41 -> 1080 | G9: =CPUs!J25 -> 1.51 | H9: 0.2456 | I9: =TRUNC(G9*(1+$G$2),2) -> 1.88 | J9: =TRUNC(F9*I9,2) -> 2030.4 | K9: 0.0004
A10: 2 | D10: ADMINISTRAÇÃO LOCAL DA OBRA | J10: =SUM(J11:J12) -> 104044.28 | K10: =J10/$I$28 -> 0.021
A11: 2.1 | B11: 3 | C11: Próprio | D11: ADMINISTRAÇÃO LOCAL | E11: UNID | F11: 1 | G11: =CPUs!J35 -> 79080.8 | H11: 0.2456 | I11: =TRUNC(G11*(1+$G$2),2) -> 98503.04 | J11: =TRUNC(F11*I11,2) -> 98503.04 | K11: 0.0199
A12: 2.2 | B12: 4 | C12: Próprio | D12: CANTEIROS DE OBRAS E ALMOXARIFADO | E12: mês | F12: 3 | G12: =CPUs!J46 -> 1482.89 | H12: 0.2456 | I12: =TRUNC(G12*(1+$G$2),2) -> 1847.08 | J12: =TRUNC(F12*I12,2) -> 5541.24 | K12: 0.0011
A13: 3 | D13: LOCAÇÃO DE VEÍCULO DE APOIO PARA FISCALIZAÇÃO | J13: =J14 -> 15851.5 | K13: =J13/$I$28 -> 0.0032
A14: 3.1 | B14: 5 | C14: Próprio | D14: Veículo para fiscalização - Codevasf | E14: mês | F14: 1.5 | G14: =CPUs!J55 -> 8484 | H14: 0.2456 | I14: =TRUNC(G14*(1+$G$2),2) -> 10567.67 | J14: =TRUNC(F14*I14,2) -> 15851.5 | K14: =J14/$I$28 -> 0.0032
A15: 4 | D15: EXECUÇÃO DOS SERVIÇOS | J15: =SUM(J16:J19) -> 4204984 | K15: =J15/$I$28 -> 0.8502
A16: 4.1 | B16: =CPUs!B67 -> 101661 | C16: =CPUs!C67 -> SINAPI | D16: =CPUs!D67 -> SUBSTITUIÇÃO DE LUMINÁRIA DE VAPOR DE MERCÚRIO/VAPOR DE SÓDIO POR LUMINÁRIA DE LED PARA ILUMINAÇÃO PÚBLICA (NÃO INCLUI FORNECIMENTO). AF_08/2020 | E16: =CPUs!G67 -> unid | F16: =Memoria!F4 -> 6800 | G16: =CPUs!I67 -> 117.76 | H16: 0.2456 | I16: =TRUNC(G16*(1+$G$2),2) -> 146.68 | J16: 997424 | K16: 0.2017
A17: 4.2 | B17: 42245 | C17: SINAPI | D17: LUMINARIA DE LED PARA ILUMINACAO PUBLICA, DE 51 W ATE 67 W, INVOLUCRO EM ALUMINIO OU ACO INOX | E17: unid | F17: =Memoria!F4 -> 6800 | G17: =CPUs!J80 -> 375.66 | H17: =$I$3 -> 0.135 | I17: =TRUNC(G17*(1+$I$3),2) -> 426.37 | J17: =TRUNC(F17*I17,2) -> 2899316 | K17: 0.5862
A18: 1.4 | B18: =CPUs!B80 -> 42245 | C18: =CPUs!C80 -> SINAPI | D18: =CPUs!D80 -> LUMINARIA DE LED PARA ILUMINACAO PUBLICA, DE 51 W ATE 67 W, INVOLUCRO EM ALUMINIO OU ACO INOX | E18: unid | G18: =CPUs!J80 -> 375.66 | I18: =ROUND(G18*(1+$G$2),2) -> 467.92 | J18: 0 | K18: 0
A19: 4.3 | B19: 101632 | C19: SINAPI | D19: RELÉ FOTOELÉTRICO PARA COMANDO DE ILUMINAÇÃO EXTERNA 1000 W - FORNECIMENTO E INSTALAÇÃO. AF_08/2020 | E19: UNID | F19: =Memoria!F36 -> 6800 | G19: =CPUs!J87 -> 36.4 | H19: 0.2456 | I19: =TRUNC(G19*(1+$G$2),2) -> 45.33 | J19: =TRUNC(F19*I19,2) -> 308244 | K19: 0.0623
A20: 5 | D20: SOBRESSALENTES | J20: =SUM(J21:J27) -> 541218.12 | K20: 0.1094
A21: 5.1 | B21: 101636 | C21: SINAPI | D21: BRAÇO PARA ILUMINAÇÃO PÚBLICA, EM TUBO DE AÇO GALVANIZADO, COMPRIMENTO DE 1,50 M, PARA FIXAÇÃO EM POSTE DE CONCRETO - FORNECIMENTO E INSTALAÇÃO AF_08/2020 | E21: UNID | F21: =Memoria!F7 -> 1020 | G21: =CPUs!J98 -> 151.83 | H21: 0.2456 | I21: =TRUNC(G21*(1+$G$2),2) -> 189.11 | J21: =TRUNC(F21*I21,2) -> 192892.2 | K21: 0.039
A22: 5.2 | B22: 101637 | C22: Próprio | D22: BRAÇO PARA ILUMINAÇÃO PÚBLICA, EM TUBO DE AÇO GALVANIZADO, COMPRIMENTO DE 1,50 M, PARA FIXAÇÃO EM POSTE METÁLICO - FORNECIMENTO E INSTALAÇÃO | E22: UNID | F22: =Memoria!F10 -> 340 | G22: =CPUs!J107 -> 146.39 | H22: 0.2456 | I22: =TRUNC(G22*(1+$G$2),2) -> 182.34 | J22: =TRUNC(F22*I22,2) -> 61995.6 | K22: 0.0125
A23: 5.3 | B23: 13800 | C23: ORSE | D23: Braço Curvo em Aço Galvanizado a Fogo, com sapata de 48x2000mm DI ou similar | E23: UNID | F23: =Memoria!F16 -> 272 | G23: =CPUs!J116 -> 255.66 | H23: =$I$3 -> 0.135 | I23: =TRUNC(G23*(1+$I$3),2) -> 290.17 | J23: 78926.24 | K23: 0.016
A24: 5.4 | B24: 6 | C24: Próprio | D24: Substituição de Braço | E24: UNID | F24: =Memoria!F24 -> 544 | G24: =CPUs!J121 -> 99.23 | H24: 0.2456 | I24: 123.6 | J24: 67238.4 | K24: 0.0136
A25: 5.5 | B25: 13801 | C25: ORSE | D25: Braço Curvo em Aço Galvanizado a Fogo, com sapata de 48x3000mm DI ou similar | E25: UNID | F25: =Memoria!F19 -> 272 | G25: =CPUs!J129 -> 378.38 | H25: =$I$3 -> 0.135 | I25: =TRUNC(G25*(1+$I$3),2) -> 429.46 | J25: =TRUNC(F25*I25,2) -> 116813.12 | K25: 0.0236
A26: 5.6 | B26: 2637 | C26: ORSE | D26: Conector perfuração 25-95/2 95 mm | E26: UNID | F26: =Memoria!F33 -> 952 | G26: =CPUs!J135 -> 9.9 | H26: 0.2456 | I26: 12.33 | J26: =TRUNC(F26*I26,2) -> 11738.16 | K26: 0.0024
A27: 5.7 | B27: 91924 | C27: SINAPI* Adaptado | D27: CABO DE COBRE FLEXÍVEL ISOLADO, 1,5 MM², ANTI-CHAMA 450/750 V, PARA CIRCUITOS TERMINAIS - FORNECIMENTO E INSTALAÇÃO. AF_03/2023 | E27: m | F27: =Memoria!F29 -> 2720 | G27: =CPUs!J142 -> 3.43 | H27: 0.2456 | I27: 4.27 | J27: =TRUNC(F27*I27,2) -> 11614.4 | K27: 0.0023
A28: Valor total | I28: =J10+J20+J6+J15+J13 -> 4945818.79

Sheet CPUs
C1: Composições Analíticas com Preço Unitário | E1: Bancos | G1: B.D.I. | I1: Encargos Sociais. Não Desonerado
C2: SRP LEDs_NÃO DESONERADO | E2: SINAPI - 10/2024 - Pernambuco ORSE - 09/2024 | G2: 0.2456 | I2: Horista: 114,55% Mensalista: 70,11% | J2: 1.1455 | L2: Horista | M2: 2.1455
A3: Composições Analíticas com Preço Unitário | G3: Fornecim. | H3: 0.135 | I3: Mensalista: | J3: 0.7011
A5: 1.1 | B5: Código | C5: Banco | D5: Descrição | E5: Tipo | G5: Und | H5: Quant. | I5: Valor Unit | J5: Total
A6: Composição Auxiliar | B6: 1 | C6: Próprio | D6: ELABORAÇÃO DE PROJETO LUMINOTÉCNICO E LEVANTAMENTO GEOREFERENCIADO, DESENHO, PROJETO E TRAMITAÇÃO JUNTO A CONCESSIONÁRIA DE ENERGIA PARA ATUALIZAÇÃO CADASTRAL DA ILUMINAÇÃO PÚBLICA | E6: SERT - SERVIÇOS TÉCNICOS | G6: unid | H6: 1 | I6: =SUM(J7:J9) -> 7.95 | J6: =I6*H6 -> 7.95 | L6: =H6*VLOOKUP(B6,$B$402:$E$407,4,FALSE) -> 
A7: Composição Auxiliar | B7: 90778 | C7: SINAPI | D7: ENGENHEIRO CIVIL DE OBRA PLENO COM ENCARGOS COMPLEMENTARES | E7: SEDI - SERVIÇOS DIVERSOS | G7: H | H7: 0.03 | I7: =IF(A7="Insumo",VLOOKUP(B7,'Insumos-SINAPI'!$A$1:$E$4813,5,FALSE),VLOOKUP(B7,'Comp-SINAPI'!$A$3:$E$7739,5,FALSE)) -> 126.7 | J7: =TRUNC(I7*H7,2) -> 3.8 | L7: =H7*VLOOKUP(B7,$B$402:$E$409,4,FALSE) -> 3.738
A8: Composição Auxiliar | B8: 88266 | C8: SINAPI | D8: ELETROTÉCNICO COM ENCARGOS COMPLEMENTARES | E8: SEDI - SERVIÇOS DIVERSOS | G8: H | H8: 0.087 | I8: =IF(A8="Insumo",VLOOKUP(B8,'Insumos-SINAPI'!$A$1:$E$4813,5,FALSE),VLOOKUP(B8,'Comp-SINAPI'!$A$3:$E$7739,5,FALSE)) -> 28.05 | J8: =TRUNC(I8*H8,2) -> 2.44 | L8: 2.00622
A9: Composição Auxiliar | B9: 90775 | C9: SINAPI | D9: DESENHISTA PROJETISTA COM ENCARGOS COMPLEMENTARES | E9: SEDI - SERVIÇOS DIVERSOS | G9: H | H9: 0.07 | I9: =IF(A9="Insumo",VLOOKUP(B9,'Insumos-SINAPI'!$A$1:$E$4813,5,FALSE),VLOOKUP(B9,'Comp-SINAPI'!$A$3:$E$7739,5,FALSE)) -> 24.49 | J9: 1.71 | L9: 1.5652
E10: MO sem LS => | F10: =J10/$M$2 -> 3.41 | G10: LS => | H10: =F10*$J$2 -> 3.91 | I10: MO com LS => | J10: =_xlfn.AGGREGATE(9,6,L7:L9) -> 7.31
E11: Valor do BDI => | F11: =J6*$G$2 -> 1.95 | H11: Valor com BDI => | J11: =J6*(1+$G$2) -> 9.9
A12: 1.2 | B12: Código | C12: Banco | D12: Descrição | E12: Tipo | G12: Und | H12: Quant. | I12: Valor Unit | J12: Total
A13: Composição | B13: 103689 | C13: SINAPI | D13: FORNECIMENTO E INSTALAÇÃO DE PLACA DE OBRA COM CHAPA GALVANIZADA E ESTRUTURA DE MADEIRA. AF_03/2022_PS | E13: SEDI - SERVIÇOS DIVERSOS | G13: m² | H13: 6 | I13: =SUM(J14:J20) -> 462.54 | J13: =I13*H13 -> 2775.24
A14: Insumo | B14: 4509 | C14: SINAPI | D14: =IF(A14="Insumo",VLOOKUP(CPUs!B14,'Insumos-SINAPI'!$A$1:$E$4813,2,FALSE),VLOOKUP(CPUs!B14,'Comp-SINAPI'!$A$3:$E$7739,2,FALSE)) -> SARRAFO *2,5 X 10* CM EM PINUS, MISTA OU EQUIVALENTE DA REGIAO - BRUTA | E14: Material | G14: M | H14: 3.2083 | I14: =IF(A14="Insumo",VLOOKUP(B14,'Insumos-SINAPI'!$A$1:$E$4813,5,FALSE),VLOOKUP(B14,'Comp-SINAPI'!$A$3:$E$7739,5,FALSE)) -> 5.41 | J14: =TRUNC(I14*H14,2) -> 17.35
A15: Insumo | B15: 4813 | C15: SINAPI | D15: =IF(A15="Insumo",VLOOKUP(CPUs!B15,'Insumos-SINAPI'!$A$1:$E$4813,2,FALSE),VLOOKUP(CPUs!B15,'Comp-SINAPI'!$A$3:$E$7739,2,FALSE)) -> PLACA DE OBRA (PARA CONSTRUCAO CIVIL) EM CHAPA GALVANIZADA *N. 22*, ADESIVADA, DE *2,4 X 1,2* M (SEM POSTES PARA FIXACAO) | E15: Material | G15: M2 | H15: 1 | I15: =IF(A15="Insumo",VLOOKUP(B15,'Insumos-SINAPI'!$A$1:$E$4813,5,FALSE),VLOOKUP(B15,'Comp-SINAPI'!$A$3:$E$7739,5,FALSE)) -> 400 | J15: =TRUNC(I15*H15,2) -> 400
A16: Insumo | B16: 5065 | C16: SINAPI | D16: =IF(A16="Insumo",VLOOKUP(CPUs!B16,'Insumos-SINAPI'!$A$1:$E$4813,2,FALSE),VLOOKUP(CPUs!B16,'Comp-SINAPI'!$A$3:$E$7739,2,FALSE)) -> PREGO DE ACO POLIDO COM CABECA 10 X 10 (7/8 X 17) | E16: Material | G16: KG | H16: 0.0113 | I16: =IF(A16="Insumo",VLOOKUP(B16,'Insumos-SINAPI'!$A$1:$E$4813,5,FALSE),VLOOKUP(B16,'Comp-SINAPI'!$A$3:$E$7739,5,FALSE)) -> 29.99 | J16: 0.33
A17: Insumo | B17: 5069 | C17: SINAPI | D17: =IF(A17="Insumo",VLOOKUP(CPUs!B17,'Insumos-SINAPI'!$A$1:$E$4813,2,FALSE),VLOOKUP(CPUs!B17,'Comp-SINAPI'!$A$3:$E$7739,2,FALSE)) -> PREGO DE ACO POLIDO COM CABECA 17 X 27 (2 1/2 X 11) | E17: Material | G17: KG | H17: 0.0132 | I17: =IF(A17="Insumo",VLOOKUP(B17,'Insumos-SINAPI'!$A$1:$E$4813,5,FALSE),VLOOKUP(B17,'Comp-SINAPI'!$A$3:$E$7739,5,FALSE)) -> 16.07 | J17: 0.21
A18: Composição Auxiliar | B18: 88262 | C18: SINAPI | D18: =IF(A18="Insumo",VLOOKUP(CPUs!B18,'Insumos-SINAPI'!$A$1:$E$4813,2,FALSE),VLOOKUP(CPUs!B18,'Comp-SINAPI'!$A$3:$E$7739,2,FALSE)) -> CARPINTEIRO DE FORMAS COM ENCARGOS COMPLEMENTARES | E18: SEDI - SERVIÇOS DIVERSOS | G18: H | H18: 0.3729 | I18: =IF(A18="Insumo",VLOOKUP(B18,'Insumos-SINAPI'!$A$1:$E$4813,5,FALSE),VLOOKUP(B18,'Comp-SINAPI'!$A$3:$E$7739,5,FALSE)) -> 26.12 | J18: 9.74 | L18: 7.927854
A19: Composição Auxiliar | B19: 88316 | C19: SINAPI | D19: =IF(A19="Insumo",VLOOKUP(CPUs!B19,'Insumos-SINAPI'!$A$1:$E$4813,2,FALSE),VLOOKUP(CPUs!B19,'Comp-SINAPI'!$A$3:$E$7739,2,FALSE)) -> SERVENTE COM ENCARGOS COMPLEMENTARES | E19: SEDI - SERVIÇOS DIVERSOS | G19: H | H19: 1.1186 | I19: =IF(A19="Insumo",VLOOKUP(B19,'Insumos-SINAPI'!$A$1:$E$4813,5,FALSE),VLOOKUP(B19,'Comp-SINAPI'!$A$3:$E$7739,5,FALSE)) -> 21.05 | J19: 23.54 | L19: 18.087762
A20: Composição Auxiliar | B20: 102234 | C20: SINAPI | D20: =IF(A20="Insumo",VLOOKUP(CPUs!B20,'Insumos-SINAPI'!$A$1:$E$4813,2,FALSE),VLOOKUP(CPUs!B20,'Comp-SINAPI'!$A$3:$E$7739,2,FALSE)) -> PINTURA IMUNIZANTE PARA MADEIRA, 2 DEMÃOS. AF_01/2021 | E20: SEDI - SERVIÇOS DIVERSOS | G20: M2 | H20: 0.5 | I20: =IF(A20="Insumo",VLOOKUP(B20,'Insumos-SINAPI'!$A$1:$E$4813,5,FALSE),VLOOKUP(B20,'Comp-SINAPI'!$A$3:$E$7739,5,FALSE)) -> 22.75 | J20: 11.37
E21: MO sem LS => | F21: =J21/$M$2 -> 72.75 | G21: LS => | H21: =F21*$J$2 -> 83.34 | I21: MO com LS => | J21: =_xlfn.AGGREGATE(9,6,L14:L20)*6 -> 156.09
E22: Valor do BDI => | F22: =J13*$G$2 -> 681.6 | H22: Valor com BDI => | J22: =J13*(1+$G$2) -> 3456.84
A24: 1.3 | B24: Código | C24: Banco | D24: Descrição | E24: Tipo | G24: Und | H24: Quant. | I24: Valor Unit | J24: Total | L24: =H24*VLOOKUP(B24,$B$402:$E$409,4,FALSE) -> 
A25: Composição | B25: 2 | C25: Próprio | D25: MOBILIZAÇÃO E DESMOBILIZAÇÃO | E25: SEDI - SERVIÇOS DIVERSOS | G25: tkm | H25: 1 | I25: =SUM(J26:J27) -> 1.51 | J25: =I25*H25 -> 1.51
A26: Composição Auxiliar | B26: 88316 | C26: SINAPI | D26: SERVENTE COM ENCARGOS COMPLEMENTARES | E26: SEDI - SERVIÇOS DIVERSOS | G26: H | H26: 0.0131579 | I26: =IF(A26="Insumo",VLOOKUP(B26,'Insumos-SINAPI'!$A$1:$E$4813,5,FALSE),VLOOKUP(B26,'Comp-SINAPI'!$A$3:$E$7739,5,FALSE)) -> 21.05 | J26: =TRUNC(I26*H26,2) -> 0.27 | L26: 0.212763243
A27: Composição Auxiliar | B27: 5928 | C27: SINAPI | D27: GUINDAUTO HIDRÁULICO, CAPACIDADE MÁXIMA DE CARGA 6200 KG, MOMENTO MÁXIMO DE CARGA 11,7 TM, ALCANCE MÁXIMO HORIZONTAL 9,70 M,INCLUSIVE CAMINHÃO TOCO PBT 16.000 KG,POTÊNCIA DE 189 CV - CHP DIURNO. AF_06/2014 | E27: CHOR - CUSTOS HORÁRIOS DE MÁQUINAS E EQUIPAMENTOS | G27: CHP | H27: 0.0045 | I27: =IF(A27="Insumo",VLOOKUP(B27,'Insumos-SINAPI'!$A$1:$E$4813,5,FALSE),VLOOKUP(B27,'Comp-SINAPI'!$A$3:$E$7739,5,FALSE)) -> 276.58 | J27: =TRUNC(I27*H27,2) -> 1.24
E28: MO sem LS => | F28: =J28/$M$2 -> 0.1 | G28: LS => | H28: =F28*$J$2 -> 0.11 | I28: MO com LS => | J28: =_xlfn.AGGREGATE(9,6,L26:L27) -> 0.21
E29: Valor do BDI => | F29: =J25*$G$2 -> 0.37 | H29: Valor com BDI => | J29: =J25*(1+$G$2) -> 1.88
A34: 2.1 | B34: Código | C34: Banco | D34: Descrição | E34: Tipo | G34: Und | H34: Quant. | I34: Valor Unit | J34: Total | L34: =H34*VLOOKUP(B34,$B$402:$E$409,4,FALSE) -> 
A35: Composição | B35: 3 | C35: Próprio | D35: ADMINISTRAÇÃO LOCAL | E35: SEDI - SERVIÇOS DIVERSOS | G35: UNID | H35: 1 | I35: =SUM(J36:J42) -> 79080.8 | J35: =I35*H35 -> 79080.8 | L35: =H35*VLOOKUP(B35,$B$402:$E$409,4,FALSE) -> 
A36: Composição Auxiliar | B36: 90778 | C36: SINAPI | D36: ENGENHEIRO CIVIL DE OBRA PLENO COM ENCARGOS COMPLEMENTARES | E36: SEDI - SERVIÇOS DIVERSOS | G36: H | H36: 136 | I36: =IF(A36="Insumo",VLOOKUP(B36,'Insumos-SINAPI'!$A$1:$E$4813,5,FALSE),VLOOKUP(B36,'Comp-SINAPI'!$A$3:$E$7739,5,FALSE)) -> 126.7 | J36: =TRUNC(I36*H36,2) -> 17231.2 | L36: =H36*VLOOKUP(B36,$B$402:$E$412,4,FALSE) -> 16945.6
A37: Composição Auxiliar | B37: 90776 | C37: SINAPI | D37: ENCARREGADO GERAL COM ENCARGOS COMPLEMENTARES | E37: SEDI - SERVIÇOS DIVERSOS | G37: H | H37: 1020 | I37: =IF(A37="Insumo",VLOOKUP(B37,'Insumos-SINAPI'!$A$1:$E$4813,5,FALSE),VLOOKUP(B37,'Comp-SINAPI'!$A$3:$E$7739,5,FALSE)) -> 36.14 | J37: =TRUNC(I37*H37,2) -> 36862.8 | L37: 34108.8
A38: Composição Auxiliar | B38: 90772 | C38: SINAPI | D38: AUXILIAR DE ESCRITORIO COM ENCARGOS COMPLEMENTARES | E38: SEDI - SERVIÇOS DIVERSOS | G38: H | H38: 476 | I38: =IF(A38="Insumo",VLOOKUP(B38,'Insumos-SINAPI'!$A$1:$E$4813,5,FALSE),VLOOKUP(B38,'Comp-SINAPI'!$A$3:$E$7739,5,FALSE)) -> 18.98 | J38: 9034.48 | L38: 7987.28
A39: Composição Auxiliar | B39: 100309 | C39: SINAPI | D39: TÉCNICO EM SEGURANÇA DO TRABALHO COM ENCARGOS COMPLEMENTARES | E39: SEDI - SERVIÇOS DIVERSOS | G39: H | H39: 476 | I39: =IF(A39="Insumo",VLOOKUP(B39,'Insumos-SINAPI'!$A$1:$E$4813,5,FALSE),VLOOKUP(B39,'Comp-SINAPI'!$A$3:$E$7739,5,FALSE)) -> 29.12 | J39: 13861.12 | L39: 12813.92
A40: Insumo | B40: 8978 | C40: ORSE | D40: Água - Consumo em volume m3 | E40: Material | G40: M³ | H40: 120 | I40: 3.77 | J40: 452.4
A41: Insumo | B41: 2789 | C41: ORSE | D41: Veículo leve - pick up (97kw) h | E41: Veículo | G41: H | H41: 120 | I41: 10.39 | J41: 1246.8
A42: Insumo | B42: 14250 | C42: SINAPI | D42: ENERGIA ELETRICA COMERCIAL, BAIXA TENSAO, RELATIVA AO CONSUMO DE ATE 100 KWH, INCLUINDO ICMS, PIS/PASEP E COFINS | E42: Material | G42: KWH | H42: 400 | I42: =IF(A42="Insumo",VLOOKUP(B42,'Insumos-SINAPI'!$A$1:$E$4813,5,FALSE),VLOOKUP(B42,'Comp-SINAPI'!$A$3:$E$7739,5,FALSE)) -> 0.98 | J42: 392
E43: MO sem LS => | F43: =J43/$M$2 -> 33491.31 | G43: LS => | H43: =F43*$J$2 -> 38364.3 | I43: MO com LS => | J43: =_xlfn.AGGREGATE(9,6,L36:L42) -> 71855.6
E44: Valor do BDI => | F44: =J35*$G$2 -> 19422.24 | H44: Valor com BDI => | J44: =J35*(1+$G$2) -> 98503.04
A45: 2.2 | B45: Código | C45: Banco | D45: Descrição | E45: Tipo | G45: Und | H45: Quant. | I45: Valor Unit | J45: Total
A46: Composição Auxiliar | B46: 4 | C46: Próprio | D46: CANTEIROS DE OBRAS E ALMOXARIFADO | E46: CANT - CANTEIRO DE OBRAS | G46: MÊS | H46: 1 | I46: =SUM(J47:J48) -> 1482.89 | J46: =I46*H46 -> 1482.89
A47: Insumo | B47: 10775 | C47: SINAPI | D47: LOCACAO DE CONTAINER 2,30 X 6,00 M, ALT. 2,50 M, COM 1 SANITARIO, PARA ESCRITORIO, COMPLETO, SEM DIVISORIAS INTERNAS (NAO INCLUI MOBILIZACAO/DESMOBILIZACAO) | E47: Equipamento | G47: MÊS | H47: 1 | I47: =IF(A47="Insumo",VLOOKUP(B47,'Insumos-SINAPI'!$A$1:$E$4813,5,FALSE),VLOOKUP(B47,'Comp-SINAPI'!$A$3:$E$7739,5,FALSE)) -> 832.5 | J47: =TRUNC(I47*H47,2) -> 832.5 | L47: =H47*VLOOKUP(B47,$B$402:$E$409,4,FALSE) -> 
A48: Insumo | B48: 10776 | C48: SINAPI | D48: LOCACAO DE CONTAINER 2,30 X 6,00 M, ALT. 2,50 M, PARA ESCRITORIO, SEM DIVISORIAS INTERNAS E SEM SANITARIO (NAO INCLUI MOBILIZACAO/DESMOBILIZACAO) | E48: Equipamento | G48: MÊS | H48: 1 | I48: =IF(A48="Insumo",VLOOKUP(B48,'Insumos-SINAPI'!$A$1:$E$4813,5,FALSE),VLOOKUP(B48,'Comp-SINAPI'!$A$3:$E$7739,5,FALSE)) -> 650.39 | J48: =TRUNC(I48*H48,2) -> 650.39 | L48: =H48*VLOOKUP(B48,$B$402:$E$409,4,FALSE) -> 
E49: MO sem LS => | F49: =J49/$M$2 -> 0 | G49: LS => | H49: =F49*$J$2 -> 0 | I49: MO com LS => | J49: =_xlfn.AGGREGATE(9,6,L47:L48) -> 0 | L49: =H49*VLOOKUP(B49,$B$402:$E$409,4,FALSE) -> 
E50: Valor do BDI => | F50: =J46*$G$2 -> 364.2 | H50: Valor com BDI => | J50: =J46*(1+$G$2) -> 1847.09 | L50: =H50*VLOOKUP(B50,$B$402:$E$409,4,FALSE) -> 
A54: 3.1 | B54: Código | C54: Banco | D54: Descrição | E54: Tipo | G54: Und | H54: Quant. | I54: Valor Unit | J54: Total
A55: Composição | B55: 5 | C55: Próprio | D55: Veículo para fiscalização - Codevasf | E55: PAVI - PAVIMENTAÇÃO | G55: mês | H55: 1 | I55: =SUM(J56:J59) -> 8484 | J55: =I55*H55 -> 8484
A56: Composição Auxiliar | B56: 92134 | C56: SINAPI | D56: CAMINHONETE COM MOTOR A DIESEL, POTÊNCIA 180 CV, CABINE DUPLA, 4X4 - JUROS. AF_11/2015 | E56: CHOR - CUSTOS HORÁRIOS DE MÁQUINAS E EQUIPAMENTOS | G56: H | H56: 150 | I56: =IF(A56="Insumo",VLOOKUP(B56,'Insumos-SINAPI'!$A$1:$E$4813,5,FALSE),VLOOKUP(B56,'Comp-SINAPI'!$A$3:$E$7739,5,FALSE)) -> 3.91 | J56: =I56*H56 -> 586.5
A57: Composição Auxiliar | B57: 92135 | C57: SINAPI | D57: CAMINHONETE COM MOTOR A DIESEL, POTÊNCIA 180 CV, CABINE DUPLA, 4X4 - IMPOSTOS E SEGUROS. AF_11/2015 | E57: CHOR - CUSTOS HORÁRIOS DE MÁQUINAS E EQUIPAMENTOS | G57: H | H57: 150 | I57: =IF(A57="Insumo",VLOOKUP(B57,'Insumos-SINAPI'!$A$1:$E$4813,5,FALSE),VLOOKUP(B57,'Comp-SINAPI'!$A$3:$E$7739,5,FALSE)) -> 1.58 | J57: =I57*H57 -> 237
A58: Composição Auxiliar | B58: 92136 | C58: SINAPI | D58: CAMINHONETE COM MOTOR A DIESEL, POTÊNCIA 180 CV, CABINE DUPLA, 4X4 - MANUTENÇÃO. AF_11/2015 | E58: CHOR - CUSTOS HORÁRIOS DE MÁQUINAS E EQUIPAMENTOS | G58: H | H58: 150 | I58: =IF(A58="Insumo",VLOOKUP(B58,'Insumos-SINAPI'!$A$1:$E$4813,5,FALSE),VLOOKUP(B58,'Comp-SINAPI'!$A$3:$E$7739,5,FALSE)) -> 15.85 | J58: =I58*H58 -> 2377.5
A59: Composição Auxiliar | B59: 92137 | C59: SINAPI | D59: CAMINHONETE COM MOTOR A DIESEL, POTÊNCIA 180 CV, CABINE DUPLA, 4X4 - MATERIAIS NA OPERAÇÃO. AF_11/2015 | E59: CHOR - CUSTOS HORÁRIOS DE MÁQUINAS E EQUIPAMENTOS | G59: H | H59: 150 | I59: =IF(A59="Insumo",VLOOKUP(B59,'Insumos-SINAPI'!$A$1:$E$4813,5,FALSE),VLOOKUP(B59,'Comp-SINAPI'!$A$3:$E$7739,5,FALSE)) -> 35.22 | J59: 5283
E60: MO sem LS => | F60: 0 | G60: LS => | H60: 0 | I60: MO com LS => | J60: 0
E61: Valor do BDI => | F61: =J55*$G$2 -> 2083.67 | H61: Valor com BDI => | J61: =J55*(1+$G$2) -> 10567.67
A66: 4.1 | B66: Código | C66: Banco | D66: Descrição | E66: Tipo | G66: Und | H66: Quant. | I66: Valor Unit | J66: Total | L66: =H66*VLOOKUP(B66,$B$402:$E$409,4,FALSE) -> 
A67: Composição | B67: 101661 | C67: SINAPI | D67: SUBSTITUIÇÃO DE LUMINÁRIA DE VAPOR DE MERCÚRIO/VAPOR DE SÓDIO POR LUMINÁRIA DE LED PARA ILUMINAÇÃO PÚBLICA (NÃO INCLUI FORNECIMENTO). AF_08/2020 | E67: SERT - SERVIÇOS TÉCNICOS | G67: unid | H67: 1 | I67: =SUM(J68:J70) -> 117.76 | J67: =I67*H67 -> 117.76
A68: Composição Auxiliar | B68: 88247 | C68: SINAPI | D68: AUXILIAR DE ELETRICISTA COM ENCARGOS COMPLEMENTARES | E68: SEDI - SERVIÇOS DIVERSOS | G68: H | H68: 1.0487 | I68: =IF(A68="Insumo",VLOOKUP(B68,'Insumos-SINAPI'!$A$1:$E$4813,5,FALSE),VLOOKUP(B68,'Comp-SINAPI'!$A$3:$E$7739,5,FALSE)) -> 22.45 | J68: =TRUNC(I68*H68,2) -> 23.54 | L68: 18.310302
A69: Composição Auxiliar | B69: 88264 | C69: SINAPI | D69: ELETRICISTA COM ENCARGOS COMPLEMENTARES | E69: SEDI - SERVIÇOS DIVERSOS | G69: H | H69: 1.0487 | I69: =IF(A69="Insumo",VLOOKUP(B69,'Insumos-SINAPI'!$A$1:$E$4813,5,FALSE),VLOOKUP(B69,'Comp-SINAPI'!$A$3:$E$7739,5,FALSE)) -> 26.88 | J69: =TRUNC(I69*H69,2) -> 28.18 | L69: 22.956043
A70: Composição Auxiliar | B70: 5928 | C70: SINAPI | D70: GUINDAUTO HIDRÁULICO, CAPACIDADE MÁXIMA DE CARGA 6200 KG, MOMENTO MÁXIMO DE CARGA 11,7 TM, ALCANCE MÁXIMO HORIZONTAL 9,70 M,INCLUSIVE CAMINHÃO TOCO PBT 16.000 KG,POTÊNCIA DE 189 CV - CHP DIURNO. AF_06/2014 | E70: Equipamento | G70: CHP | H70: 0.2388 | I70: =IF(A70="Insumo",VLOOKUP(B70,'Insumos-SINAPI'!$A$1:$E$4813,5,FALSE),VLOOKUP(B70,'Comp-SINAPI'!$A$3:$E$7739,5,FALSE)) -> 276.58 | J70: 66.04
E71: MO sem LS => | F71: =J71/$M$2 -> 19.24 | G71: LS => | H71: =F71*$J$2 -> 22.04 | I71: MO com LS => | J71: =_xlfn.AGGREGATE(9,6,L68:L70) -> 41.27
E72: Valor do BDI => | F72: =J67*$G$2 -> 28.92 | H72: Valor com BDI => | J72: =J67*(1+$G$2) -> 146.68
A73: 1.4 | B73: Código | C73: Banco | D73: Descrição | E73: Tipo | G73: Und | H73: Quant. | I73: Valor Unit | J73: Total
A74: Insumo | B74: 42245 | C74: SINAPI | D74: LUMINARIA DE LED PARA ILUMINACAO PUBLICA, DE 51 W ATE 67 W, INVOLUCRO EM ALUMINIO OU ACO INOX | E74: Material | G74: unid | H74: 1 | I74: =IF(A74="Insumo",VLOOKUP(B74,'Insumos-SINAPI'!$A$1:$E$4813,5,FALSE),VLOOKUP(B74,'Comp-SINAPI'!$A$3:$E$7739,5,FALSE)) -> 375.66 | J74: =I74*H74 -> 375.66
A75: Insumo | B75: 42245 | C75: SINAPI | D75: LUMINARIA DE LED PARA ILUMINACAO PUBLICA, DE 51 W ATE 67 W, INVOLUCRO EM ALUMINIO OU ACO INOX | E75: Material | G75: UND | H75: 1 | I75: =IF(A75="Insumo",VLOOKUP(B75,'Insumos-SINAPI'!$A$1:$E$4813,5,FALSE),VLOOKUP(B75,'Comp-SINAPI'!$A$3:$E$7739,5,FALSE)) -> 375.66 | J75: =I75*H75 -> 375.66
E76: MO sem LS => | F76: =J76/$M$2 -> 0 | G76: LS => | H76: =F76*$J$2 -> 0 | I76: MO com LS => | J76: =_xlfn.AGGREGATE(9,6,L75:L75) -> 0
E77: Valor do BDI => | F77: =J74*$H$3 -> 50.71 | H77: Valor com BDI => | J77: =J74*(1+$H$3) -> 426.37
A79: 4.2 | B79: Código | C79: Banco | D79: Descrição | E79: Tipo | G79: Und | H79: Quant. | I79: Valor Unit | J79: Total
A80: Insumo | B80: 42245 | C80: SINAPI | D80: LUMINARIA DE LED PARA ILUMINACAO PUBLICA, DE 51 W ATE 67 W, INVOLUCRO EM ALUMINIO OU ACO INOX | E80: Material | G80: unid | H80: 1 | I80: =IF(A80="Insumo",VLOOKUP(B80,'Insumos-SINAPI'!$A$1:$E$4813,5,FALSE),VLOOKUP(B80,'Comp-SINAPI'!$A$3:$E$7739,5,FALSE)) -> 375.66 | J80: =I80*H80 -> 375.66
A81: Insumo | B81: 42245 | C81: SINAPI | D81: LUMINARIA DE LED PARA ILUMINACAO PUBLICA, DE 51 W ATE 67 W, INVOLUCRO EM ALUMINIO OU ACO INOX | E81: Material | G81: UND | H81: 1 | I81: =IF(A81="Insumo",VLOOKUP(B81,'Insumos-SINAPI'!$A$1:$E$4813,5,FALSE),VLOOKUP(B81,'Comp-SINAPI'!$A$3:$E$7739,5,FALSE)) -> 375.66 | J81: =I81*H81 -> 375.66
E82: MO sem LS => | F82: =J82/$M$2 -> 0 | G82: LS => | H82: =F82*$J$2 -> 0 | I82: MO com LS => | J82: =_xlfn.AGGREGATE(9,6,L81:L81) -> 0
E83: Valor do BDI => | F83: =J80*$H$3 -> 50.71 | H83: Valor com BDI => | J83: =J80*(1+$H$3) -> 426.37
A86: 4.3 | B86: Código | C86: Banco | D86: Descrição | E86: Tipo | G86: Und | H86: Quant. | I86: Valor Unit | J86: Total | L86: =H86*VLOOKUP(B86,$B$402:$E$409,4,FALSE) -> 
A87: Composição | B87: 101632 | C87: SINAPI | D87: RELÉ FOTOELÉTRICO PARA COMANDO DE ILUMINAÇÃO EXTERNA 1000 W - FORNECIMENTO E INSTALAÇÃO. AF_08/2020 | E87: SEDI - SERVIÇOS DIVERSOS | G87: UNID | H87: 1 | I87: =SUM(J88:J91) -> 36.4 | J87: =I87*H87 -> 36.4
A88: Insumo | B88: 2510 | C88: SINAPI | D88: RELE FOTOELETRICO INTERNO E EXTERNO BIVOLT 1000 W, DE CONECTOR, SEM BASE | E88: Material | G88: unid | H88: 1 | I88: =IF(A88="Insumo",VLOOKUP(B88,'Insumos-SINAPI'!$A$1:$E$4813,5,FALSE),VLOOKUP(B88,'Comp-SINAPI'!$A$3:$E$7739,5,FALSE)) -> 35.46 | J88: =TRUNC(I88*H88,2) -> 35.46
A89: Insumo | B89: 21127 | C89: SINAPI | D89: FITA ISOLANTE ADESIVA ANTICHAMA, USO ATE 750 V, EM ROLO DE 19 MM X 5 M | E89: Equipamento | G89: unid | H89: 0.021 | I89: =IF(A89="Insumo",VLOOKUP(B89,'Insumos-SINAPI'!$A$1:$E$4813,5,FALSE),VLOOKUP(B89,'Comp-SINAPI'!$A$3:$E$7739,5,FALSE)) -> 6.05 | J89: =TRUNC(I89*H89,2) -> 0.12
A90: Composição Auxiliar | B90: 88247 | C90: SINAPI | D90: AUXILIAR DE ELETRICISTA COM ENCARGOS COMPLEMENTARES | E90: SEDI - SERVIÇOS DIVERSOS | G90: H | H90: 0.0168 | I90: =IF(A90="Insumo",VLOOKUP(B90,'Insumos-SINAPI'!$A$1:$E$4813,5,FALSE),VLOOKUP(B90,'Comp-SINAPI'!$A$3:$E$7739,5,FALSE)) -> 22.45 | J90: 0.37 | L90: 0.293328
A91: Composição Auxiliar | B91: 88264 | C91: SINAPI | D91: ELETRICISTA COM ENCARGOS COMPLEMENTARES | E91: SEDI - SERVIÇOS DIVERSOS | G91: H | H91: 0.0168 | I91: =IF(A91="Insumo",VLOOKUP(B91,'Insumos-SINAPI'!$A$1:$E$4813,5,FALSE),VLOOKUP(B91,'Comp-SINAPI'!$A$3:$E$7739,5,FALSE)) -> 26.88 | J91: 0.45 | L91: 0.367752
E92: MO sem LS => | F92: =J92/$M$2 -> 0.31 | G92: LS => | H92: =F92*$J$2 -> 0.36 | I92: MO com LS => | J92: =_xlfn.AGGREGATE(9,6,L88:L91) -> 0.66
E93: Valor do BDI => | F93: =J87*$G$2 -> 8.94 | H93: Valor com BDI => | J93: =J87*(1+$G$2) -> 45.34
L96: =H96*VLOOKUP(B96,$B$402:$E$409,4,FALSE) -> 
A97: 5.1 | B97: Código | C97: Banco | D97: Descrição | E97: Tipo | G97: Und | H97: Quant. | I97: Valor Unit | J97: Total
A98: Composição | B98: 101636 | C98: SINAPI | D98: BRAÇO PARA ILUMINAÇÃO PÚBLICA, EM TUBO DE AÇO GALVANIZADO, COMPRIMENTO DE 1,50 M, PARA FIXAÇÃO EM POSTE DE CONCRETO - FORNECIMENTO E INSTALAÇÃO AF_08/2020 | E98: SEDI - SERVIÇOS DIVERSOS | G98: UNID | H98: 1 | I98: =SUM(J99:J103) -> 151.83 | J98: =I98*H98 -> 151.83
A99: Insumo | B99: 1022 | C99: SINAPI | D99: CABO DE COBRE, FLEXIVEL, CLASSE 4 OU 5, ISOLACAO EM PVC/A, ANTICHAMA BWF-B, COBERTURA PVC-ST1, ANTICHAMA BWF-B, 1 CONDUTOR, 0,6/1 KV, SECAO NOMINAL 2,5 MM2 | E99: Material | G99: m | H99: 5 | I99: =IF(A99="Insumo",VLOOKUP(B99,'Insumos-SINAPI'!$A$1:$E$4813,5,FALSE),VLOOKUP(B99,'Comp-SINAPI'!$A$3:$E$7739,5,FALSE)) -> 2.72 | J99: =TRUNC(I99*H99,2) -> 13.6
A100: Insumo | B100: 2512 | C100: SINAPI | D100: BRACO P/ LUMINARIA PUBLICA 1 X 1,50M ROMAGNOLE OU EQUIV | E100: Material | G100: UN | H100: 1 | I100: =IF(A100="Insumo",VLOOKUP(B100,'Insumos-SINAPI'!$A$1:$E$4813,5,FALSE),VLOOKUP(B100,'Comp-SINAPI'!$A$3:$E$7739,5,FALSE)) -> 39 | J100: =TRUNC(I100*H100,2) -> 39
A101: Composição Auxiliar | B101: 5928 | C101: SINAPI | D101: GUINDAUTO HIDRÁULICO, CAPACIDADE MÁXIMA DE CARGA 6200 KG, MOMENTO MÁXIMO DE CARGA 11,7 TM, ALCANCE MÁXIMO HORIZONTAL 9,70 M,INCLUSIVE CAMINHÃO TOCO PBT 16.000 KG,POTÊNCIA DE 189 CV - CHP DIURNO. AF_06/2014 | E101: Equipamento | G101: CHP | H101: 0.2388 | I101: =IF(A101="Insumo",VLOOKUP(B101,'Insumos-SINAPI'!$A$1:$E$4813,5,FALSE),VLOOKUP(B101,'Comp-SINAPI'!$A$3:$E$7739,5,FALSE)) -> 276.58 | J101: 66.04
A102: Composição Auxiliar | B102: 88247 | C102: SINAPI | D102: AUXILIAR DE ELETRICISTA COM ENCARGOS COMPLEMENTARES | E102: SEDI - SERVIÇOS DIVERSOS | G102: H | H102: 0.673 | I102: =IF(A102="Insumo",VLOOKUP(B102,'Insumos-SINAPI'!$A$1:$E$4813,5,FALSE),VLOOKUP(B102,'Comp-SINAPI'!$A$3:$E$7739,5,FALSE)) -> 22.45 | J102: 15.1 | L102: 11.75058
A103: Composição Auxiliar | B103: 88264 | C103: SINAPI | D103: ELETRICISTA COM ENCARGOS COMPLEMENTARES | E103: SEDI - SERVIÇOS DIVERSOS | G103: H | H103: 0.673 | I103: =IF(A103="Insumo",VLOOKUP(B103,'Insumos-SINAPI'!$A$1:$E$4813,5,FALSE),VLOOKUP(B103,'Comp-SINAPI'!$A$3:$E$7739,5,FALSE)) -> 26.88 | J103: 18.09 | L103: 14.73197
E104: MO sem LS => | F104: =J104/$M$2 -> 12.34 | G104: LS => | H104: =F104*$J$2 -> 14.14 | I104: MO com LS => | J104: =_xlfn.AGGREGATE(9,6,L99:L103) -> 26.48
E105: Valor do BDI => | F105: =J98*$G$2 -> 37.29 | H105: Valor com BDI => | J105: =J98*(1+$G$2) -> 189.12
A106: 5.2 | B106: Código | C106: Banco | D106: Descrição | E106: Tipo | G106: Und | H106: Quant. | I106: Valor Unit | J106: Total
A107: Composição | B107: 101637 | C107: SINAPI | D107: BRAÇO PARA ILUMINAÇÃO PÚBLICA, EM TUBO DE AÇO GALVANIZADO, COMPRIMENTO DE 1,50 M, PARA FIXAÇÃO EM POSTE METÁLICO - FORNECIMENTO E INSTALAÇÃO | E107: SEDI - SERVIÇOS DIVERSOS | G107: UNID | H107: 1 | I107: =SUM(J108:J112) -> 146.39 | J107: =I107*H107 -> 146.39
A108: Insumo | B108: 1022 | C108: SINAPI | D108: CABO DE COBRE, FLEXIVEL, CLASSE 4 OU 5, ISOLACAO EM PVC/A, ANTICHAMA BWF-B, COBERTURA PVC-ST1, ANTICHAMA BWF-B, 1 CONDUTOR, 0,6/1 KV, SECAO NOMINAL 2,5 MM2 | E108: Material | G108: m | H108: 3 | I108: =IF(A108="Insumo",VLOOKUP(B108,'Insumos-SINAPI'!$A$1:$E$4813,5,FALSE),VLOOKUP(B108,'Comp-SINAPI'!$A$3:$E$7739,5,FALSE)) -> 2.72 | J108: =TRUNC(I108*H108,2) -> 8.16
A109: Insumo | B109: 2512 | C109: SINAPI | D109: BRACO P/ LUMINARIA PUBLICA 1 X 1,50M ROMAGNOLE OU EQUIV | E109: Material | G109: UN | H109: 1 | I109: =IF(A109="Insumo",VLOOKUP(B109,'Insumos-SINAPI'!$A$1:$E$4813,5,FALSE),VLOOKUP(B109,'Comp-SINAPI'!$A$3:$E$7739,5,FALSE)) -> 39 | J109: =TRUNC(I109*H109,2) -> 39
A110: Composição Auxiliar | B110: 5928 | C110: SINAPI | D110: GUINDAUTO HIDRÁULICO, CAPACIDADE MÁXIMA DE CARGA 6200 KG, MOMENTO MÁXIMO DE CARGA 11,7 TM, ALCANCE MÁXIMO HORIZONTAL 9,70 M, INCLUSIVE CAMINHÃO TOCO PBT 16.000 KG, POTÊNCIA DE 189 CV - CHP DIURNO. AF_06/2014 | E110: Equipamento | G110: CHP | H110: 0.2388 | I110: =IF(A110="Insumo",VLOOKUP(B110,'Insumos-SINAPI'!$A$1:$E$4813,5,FALSE),VLOOKUP(B110,'Comp-SINAPI'!$A$3:$E$7739,5,FALSE)) -> 276.58 | J110: =TRUNC(I110*H110,2) -> 66.04
A111: Composição Auxiliar | B111: 88247 | C111: SINAPI | D111: AUXILIAR DE ELETRICISTA COM ENCARGOS COMPLEMENTARES | E111: SEDI - SERVIÇOS DIVERSOS | G111: H | H111: 0.673 | I111: =IF(A111="Insumo",VLOOKUP(B111,'Insumos-SINAPI'!$A$1:$E$4813,5,FALSE),VLOOKUP(B111,'Comp-SINAPI'!$A$3:$E$7739,5,FALSE)) -> 22.45 | J111: 15.1 | L111: 11.75058
A112: Composição Auxiliar | B112: 88264 | C112: SINAPI | D112: ELETRICISTA COM ENCARGOS COMPLEMENTARES | E112: SEDI - SERVIÇOS DIVERSOS | G112: H | H112: 0.673 | I112: =IF(A112="Insumo",VLOOKUP(B112,'Insumos-SINAPI'!$A$1:$E$4813,5,FALSE),VLOOKUP(B112,'Comp-SINAPI'!$A$3:$E$7739,5,FALSE)) -> 26.88 | J112: 18.09 | L112: 14.73197
E113: MO sem LS => | F113: =J113/$M$2 -> 12.34 | G113: LS => | H113: =F113*$J$2 -> 14.14 | I113: MO com LS => | J113: =_xlfn.AGGREGATE(9,6,L107:L112) -> 26.48
E114: Valor do BDI => | F114: =J107*$G$2 -> 35.95 | H114: Valor com BDI => | J114: =J107*(1+$G$2) -> 182.34
A115: 5.3 | B115: Código | C115: Banco | D115: Descrição | E115: Tipo | G115: Und | H115: Quant. | I115: Valor Unit | J115: Total
A116: Insumo | B116: 13800 | C116: ORSE | D116: Braço Curvo em Aço Galvanizado a Fogo, com sapata de 48x2000mm DI ou similar | E116: SEDI - SERVIÇOS DIVERSOS | G116: UNID | H116: 1 | I116: =SUM(J117:J117) -> 255.66 | J116: =I116*H116 -> 255.66
A117: Insumo | B117: 13800 | C117: ORSE | D117: Braço Curvo em Aço Galvanizado a Fogo, com sapata de 48x2000mm DI ou similar | E117: Material | G117: UN | H117: 1 | I117: 255.66 | J117: =TRUNC(I117*H117,2) -> 255.66
E118: MO sem LS => | F118: =J118/$M$2 -> 0 | G118: LS => | H118: =F118*$J$2 -> 0 | I118: MO com LS => | J118: =_xlfn.AGGREGATE(9,6,L115:L117) -> 0
E119: Valor do BDI => | F119: =J116*$H$3 -> 34.51 | H119: Valor com BDI => | J119: =J116*(1+$H$3) -> 290.17
A120: 5.4 | B120: Código | C120: Banco | D120: Descrição | E120: Tipo | G120: Und | H120: Quant. | I120: Valor Unit | J120: Total
A121: Composição | B121: 6 | C121: Próprio | D121: Substituição de braço | E121: SEDI - SERVIÇOS DIVERSOS | G121: UNID | H121: 1 | I121: =SUM(J122:J124) -> 99.23 | J121: =I121*H121 -> 99.23
A122: Composição Auxiliar | B122: 5928 | C122: SINAPI | D122: GUINDAUTO HIDRÁULICO, CAPACIDADE MÁXIMA DE CARGA 6200 KG, MOMENTO MÁXIMO DE CARGA 11,7 TM, ALCANCE MÁXIMO HORIZONTAL 9,70 M, INCLUSIVE CAMINHÃO TOCO PBT 16.000 KG, POTÊNCIA DE 189 CV - CHP DIURNO. AF_06/2014 | E122: Equipamento | G122: CHP | H122: 0.2388 | I122: =IF(A122="Insumo",VLOOKUP(B122,'Insumos-SINAPI'!$A$1:$E$4813,5,FALSE),VLOOKUP(B122,'Comp-SINAPI'!$A$3:$E$7739,5,FALSE)) -> 276.58 | J122: =TRUNC(I122*H122,2) -> 66.04
A123: Composição Auxiliar | B123: 88247 | C123: SINAPI | D123: AUXILIAR DE ELETRICISTA COM ENCARGOS COMPLEMENTARES | E123: SEDI - SERVIÇOS DIVERSOS | G123: H | H123: 0.673 | I123: =IF(A123="Insumo",VLOOKUP(B123,'Insumos-SINAPI'!$A$1:$E$4813,5,FALSE),VLOOKUP(B123,'Comp-SINAPI'!$A$3:$E$7739,5,FALSE)) -> 22.45 | J123: =TRUNC(I123*H123,2) -> 15.1 | L123: 11.75058
A124: Composição Auxiliar | B124: 88264 | C124: SINAPI | D124: ELETRICISTA COM ENCARGOS COMPLEMENTARES | E124: SEDI - SERVIÇOS DIVERSOS | G124: H | H124: 0.673 | I124: =IF(A124="Insumo",VLOOKUP(B124,'Insumos-SINAPI'!$A$1:$E$4813,5,FALSE),VLOOKUP(B124,'Comp-SINAPI'!$A$3:$E$7739,5,FALSE)) -> 26.88 | J124: =TRUNC(I124*H124,2) -> 18.09 | L124: =H124*VLOOKUP(B124,$B$402:$E$409,4,FALSE) -> 14.73197
E125: MO sem LS => | F125: =J125/$M$2 -> 12.34 | G125: LS => | H125: =F125*$J$2 -> 14.14 | I125: MO com LS => | J125: =_xlfn.AGGREGATE(9,6,L119:L124) -> 26.48
E126: Valor do BDI => | F126: =J121*$G$2 -> 24.37 | H126: Valor com BDI => | J126: =J121*(1+$G$2) -> 123.6
A128: 5.5 | B128: Código | C128: Banco | D128: Descrição | E128: Tipo | G128: Und | H128: Quant. | I128: Valor Unit | J128: Total
A129: Composição | B129: 13801 | C129: ORSE | D129: Braço Curvo em Aço Galvanizado a Fogo, com sapata de 48x3000mm DI ou similar | E129: SEDI - SERVIÇOS DIVERSOS | G129: UNID | H129: 1 | I129: =SUM(J130:J130) -> 378.38 | J129: =I129*H129 -> 378.38
A130: Insumo | B130: 13801 | C130: ORSE | D130: Braço Curvo em Aço Galvanizado a Fogo, com sapata de 48x3000mm DI ou similar | E130: Material | G130: UN | H130: 1 | I130: 378.38 | J130: =TRUNC(I130*H130,2) -> 378.38
E131: MO sem LS => | F131: =J131/$M$2 -> 0 | G131: LS => | H131: =F131*$J$2 -> 0 | I131: MO com LS => | J131: =_xlfn.AGGREGATE(9,6,L128:L130) -> 0
E132: Valor do BDI => | F132: =J129*$H$3 -> 51.08 | H132: Valor com BDI => | J132: =J129*(1+$H$3) -> 429.46
A134: 5.6 | B134: Código | C134: Banco | D134: Descrição | E134: Tipo | G134: Und | H134: Quant. | I134: Valor Unit | J134: Total
A135: Composição | B135: 2637 | C135: ORSE | D135: Conector perfuração 25-95/2 95 mm | E135: SEDI - SERVIÇOS DIVERSOS | G135: UNID | H135: 1 | I135: =SUM(J136:J136) -> 9.9 | J135: =I135*H135 -> 9.9
A136: Insumo | B136: 2637 | C136: ORSE | D136: Conector perfuração 25-95/2 95 mm | E136: Material | G136: UN | H136: 1 | I136: 9.9 | J136: =TRUNC(I136*H136,2) -> 9.9
E137: MO sem LS => | F137: =J137/$M$2 -> 0 | G137: LS => | H137: =F137*$J$2 -> 0 | I137: MO com LS => | J137: =_xlfn.AGGREGATE(9,6,L134:L136) -> 0
E138: Valor do BDI => | F138: =J135*$G$2 -> 2.43 | H138: Valor com BDI => | J138: =J135*(1+$G$2) -> 12.33
A141: 5.7 | B141: Código | C141: Banco | D141: Descrição | E141: Tipo | G141: Und | H141: Quant. | I141: Valor Unit | J141: Total
A142: Composição | B142: 91927 | C142: SINAPI*Adaptado | D142: CABO DE COBRE FLEXÍVEL ISOLADO, 2,5 MM², ANTI-CHAMA 0,6/1,0 KV, PARA CIRCUITOS TERMINAIS - FORNECIMENTO E INSTALAÇÃO. AF_03/2023 | E142: SEDI - SERVIÇOS DIVERSOS | G142: UNID | H142: 1 | I142: =SUM(J143:J144) -> 3.43 | J142: =I142*H142 -> 3.43
A143: Insumo | B143: 1022 | C143: SINAPI | D143: CABO DE COBRE, FLEXIVEL, CLASSE 4 OU 5, ISOLACAO EM PVC/A, ANTICHAMA BWF-B, COBERTURA PVC-ST1, ANTICHAMA BWF-B, 1 CONDUTOR, 0,6/1 KV, SECAO NOMINAL 2,5 MM2 | E143: Material | G143: unid | H143: 1.2434 | I143: =IF(A143="Insumo",VLOOKUP(B143,'Insumos-SINAPI'!$A$1:$E$4813,5,FALSE),VLOOKUP(B143,'Comp-SINAPI'!$A$3:$E$7739,5,FALSE)) -> 2.72 | J143: =TRUNC(I143*H143,2) -> 3.38
A144: Insumo | B144: 21127 | C144: SINAPI | D144: FITA ISOLANTE ADESIVA ANTICHAMA, USO ATE 750 V, EM ROLO DE 19 MM X 5 M | E144: Material | G144: unid | H144: 0.0094 | I144: =IF(A144="Insumo",VLOOKUP(B144,'Insumos-SINAPI'!$A$1:$E$4813,5,FALSE),VLOOKUP(B144,'Comp-SINAPI'!$A$3:$E$7739,5,FALSE)) -> 6.05 | J144: =TRUNC(I144*H144,2) -> 0.05
C145: * Removido mão de obra, pois incluída na instalação do braço | E145: MO sem LS => | F145: =J145/$M$2 -> 0 | G145: LS => | H145: =F145*$J$2 -> 0 | I145: MO com LS => | J145: =_xlfn.AGGREGATE(9,6,L143:L144) -> 0
E146: Valor do BDI => | F146: =J142*$G$2 -> 0.84 | H146: Valor com BDI => | J146: =J142*(1+$G$2) -> 4.27
L150: =H150*VLOOKUP(B150,$B$402:$E$409,4,FALSE) -> 
A153: Composições Auxiliares
B155: Código | C155: Banco | D155: Descrição | E155: Tipo | G155: Und | H155: Quant. | I155: Valor Unit | J155: Total
A156: Composição | B156: 88247 | C156: SINAPI | D156: AUXILIAR DE ELETRICISTA COM ENCARGOS COMPLEMENTARES | E156: SEDI - SERVIÇOS DIVERSOS | G156: H | H156: 1 | I156: =SUM(J157:J164) -> 22.45 | J156: =I156*H156 -> 22.45 | L156: 17.46
A157: Composição Auxiliar | B157: 95316 | C157: SINAPI | D157: CURSO DE CAPACITAÇÃO PARA AUXILIAR DE ELETRICISTA (ENCARGOS COMPLEMENTARES) - HORISTA | E157: SEDI - SERVIÇOS DIVERSOS | G157: H | H157: 1 | I157: =IF(A157="Insumo",VLOOKUP(B157,'Insumos-SINAPI'!$A$1:$E$4813,5,FALSE),VLOOKUP(B157,'Comp-SINAPI'!$A$3:$E$7739,5,FALSE)) -> 0.71 | J157: =I157*H157 -> 0.71
A158: Insumo | B158: 247 | C158: SINAPI | D158: AJUDANTE DE ELETRICISTA (HORISTA) | E158: Mão de Obra | G158: H | H158: 1 | I158: =IF(A158="Insumo",VLOOKUP(B158,'Insumos-SINAPI'!$A$1:$E$4813,5,FALSE),VLOOKUP(B158,'Comp-SINAPI'!$A$3:$E$7739,5,FALSE)) -> 16.75 | J158: =I158*H158 -> 16.75
A159: Insumo | B159: 37370 | C159: SINAPI | D159: ALIMENTACAO - HORISTA (COLETADO CAIXA) | E159: Outros | G159: H | H159: 1 | I159: =IF(A159="Insumo",VLOOKUP(B159,'Insumos-SINAPI'!$A$1:$E$4813,5,FALSE),VLOOKUP(B159,'Comp-SINAPI'!$A$3:$E$7739,5,FALSE)) -> 1.02 | J159: 1.02
A160: Insumo | B160: 37371 | C160: SINAPI | D160: TRANSPORTE - HORISTA (COLETADO CAIXA) | E160: Serviços | G160: H | H160: 1 | I160: =IF(A160="Insumo",VLOOKUP(B160,'Insumos-SINAPI'!$A$1:$E$4813,5,FALSE),VLOOKUP(B160,'Comp-SINAPI'!$A$3:$E$7739,5,FALSE)) -> 0.57 | J160: 0.57
A161: Insumo | B161: 37372 | C161: SINAPI | D161: EXAMES - HORISTA (COLETADO CAIXA) | E161: Outros | G161: H | H161: 1 | I161: =IF(A161="Insumo",VLOOKUP(B161,'Insumos-SINAPI'!$A$1:$E$4813,5,FALSE),VLOOKUP(B161,'Comp-SINAPI'!$A$3:$E$7739,5,FALSE)) -> 1.34 | J161: 1.34
A162: Insumo | B162: 37373 | C162: SINAPI | D162: SEGURO - HORISTA (COLETADO CAIXA) | E162: Taxas | G162: H | H162: 1 | I162: =IF(A162="Insumo",VLOOKUP(B162,'Insumos-SINAPI'!$A$1:$E$4813,5,FALSE),VLOOKUP(B162,'Comp-SINAPI'!$A$3:$E$7739,5,FALSE)) -> 0.01 | J162: 0.01
A163: Insumo | B163: 43460 | C163: SINAPI | D163: FERRAMENTAS - FAMILIA ELETRICISTA - HORISTA (ENCARGOS COMPLEMENTARES - COLETADO CAIXA) | E163: Equipamento | G163: H | H163: 1 | I163: =IF(A163="Insumo",VLOOKUP(B163,'Insumos-SINAPI'!$A$1:$E$4813,5,FALSE),VLOOKUP(B163,'Comp-SINAPI'!$A$3:$E$7739,5,FALSE)) -> 0.85 | J163: 0.85
A164: Insumo | B164: 43484 | C164: SINAPI | D164: EPI - FAMILIA ELETRICISTA - HORISTA (ENCARGOS COMPLEMENTARES - COLETADO CAIXA) | E164: Equipamento | G164: H | H164: 1 | I164: =IF(A164="Insumo",VLOOKUP(B164,'Insumos-SINAPI'!$A$1:$E$4813,5,FALSE),VLOOKUP(B164,'Comp-SINAPI'!$A$3:$E$7739,5,FALSE)) -> 1.2 | J164: 1.2
E165: MO sem LS => | F165: =J165/$M$2 -> 8.14 | G165: LS => | H165: =F165*$J$2 -> 9.32 | I165: MO com LS => | J165: =J158+J157 -> 17.46
E166: Valor do BDI => | F166: =J156*$G$2 -> 5.51 | H166: Valor com BDI => | J166: =J156*(1+$G$2) -> 27.96
B170: Código | C170: Banco | D170: Descrição | E170: Tipo | G170: Und | H170: Quant. | I170: Valor Unit | J170: Total
A171: Composição | B171: 100309 | C171: SINAPI | D171: TÉCNICO EM SEGURANÇA DO TRABALHO COM ENCARGOS COMPLEMENTARES | E171: SEDI - SERVIÇOS DIVERSOS | G171: H | H171: 1 | I171: =SUM(J172:J177) -> 29.12 | J171: =I171*H171 -> 29.12
A172: INSUMO | B172: 37372 | C172: SINAPI | D172: EXAMES - HORISTA (COLETADO CAIXA - ENCARGOS COMPLEMENTARES) | E172: Outros | G172: H | H172: 1 | I172: =IF(A172="Insumo",VLOOKUP(B172,'Insumos-SINAPI'!$A$1:$E$4813,5,FALSE),VLOOKUP(B172,'Comp-SINAPI'!$A$3:$E$7739,5,FALSE)) -> 1.34 | J172: =I172*H172 -> 1.34
A173: INSUMO | B173: 37373 | C173: SINAPI | D173: SEGURO - HORISTA (COLETADO CAIXA - ENCARGOS COMPLEMENTARES) | E173: Outros | G173: H | H173: 1 | I173: =IF(A173="Insumo",VLOOKUP(B173,'Insumos-SINAPI'!$A$1:$E$4813,5,FALSE),VLOOKUP(B173,'Comp-SINAPI'!$A$3:$E$7739,5,FALSE)) -> 0.01 | J173: =I173*H173 -> 0.01
A174: INSUMO | B174: 40943 | C174: SINAPI | D174: TECNICO EM SEGURANCA DO TRABALHO (HORISTA) | E174: Mão de Obra | G174: H | H174: 1 | I174: =IF(A174="Insumo",VLOOKUP(B174,'Insumos-SINAPI'!$A$1:$E$4813,5,FALSE),VLOOKUP(B174,'Comp-SINAPI'!$A$3:$E$7739,5,FALSE)) -> 26.38 | J174: =I174*H174 -> 26.38
A175: INSUMO | B175: 43458 | C175: SINAPI | D175: FERRAMENTAS - FAMILIA ALMOXARIFE - HORISTA (ENCARGOS COMPLEMENTARES - COLETADO CAIXA) | E175: Equipamento | G175: H | H175: 1 | I175: =IF(A175="Insumo",VLOOKUP(B175,'Insumos-SINAPI'!$A$1:$E$4813,5,FALSE),VLOOKUP(B175,'Comp-SINAPI'!$A$3:$E$7739,5,FALSE)) -> 0.06 | J175: 0.06
A176: INSUMO | B176: 43482 | C176: SINAPI | D176: EPI - FAMILIA ALMOXARIFE - HORISTA (ENCARGOS COMPLEMENTARES - COLETADO CAIXA) | E176: Equipamento | G176: H | H176: 1 | I176: =IF(A176="Insumo",VLOOKUP(B176,'Insumos-SINAPI'!$A$1:$E$4813,5,FALSE),VLOOKUP(B176,'Comp-SINAPI'!$A$3:$E$7739,5,FALSE)) -> 0.79 | J176: 0.79
A177: COMPOSICAO | B177: 100299 | C177: SINAPI | D177: CURSO DE CAPACITAÇÃO PARA TÉCNICO EM SEGURANÇA DO TRABALHO (ENCARGOS COMPLEMENTARES) - HORISTA | E177: SEDI - SERVIÇOS DIVERSOS | G177: H | H177: 1 | I177: =IF(A177="Insumo",VLOOKUP(B177,'Insumos-SINAPI'!$A$1:$E$4813,5,FALSE),VLOOKUP(B177,'Comp-SINAPI'!$A$3:$E$7739,5,FALSE)) -> 0.54 | J177: 0.54
E178: MO sem LS => | F178: =J178/$M$2 -> 12.55 | G178: LS => | H178: =F178*$J$2 -> 14.38 | I178: MO com LS => | J178: =J174+J177 -> 26.92
E179: Valor do BDI => | F179: =J171*$G$2 -> 7.15 | H179: Valor com BDI => | J179: =J171*(1+$G$2) -> 36.27
B180: Código | C180: Banco | D180: Descrição | E180: Tipo | G180: Und | H180: Quant. | I180: Valor Unit | J180: Total | L180: =H180*VLOOKUP(B180,$B$402:$E$409,4,FALSE) -> 
A181: Composição | B181: 88262 | C181: SINAPI | D181: CARPINTEIRO DE FORMAS COM ENCARGOS COMPLEMENTARES | E181: SEDI - SERVIÇOS DIVERSOS | G181: H | H181: 1 | I181: =SUM(J182:J189) -> 26.12 | J181: =I181*H181 -> 26.12 | L181: 21.26
A182: Composição Auxiliar | B182: 95330 | C182: SINAPI | D182: CURSO DE CAPACITAÇÃO PARA CARPINTEIRO DE FÔRMAS (ENCARGOS COMPLEMENTARES) - HORISTA | E182: SEDI - SERVIÇOS DIVERSOS | G182: H | H182: 1 | I182: =IF(A182="Insumo",VLOOKUP(B182,'Insumos-SINAPI'!$A$1:$E$4813,5,FALSE),VLOOKUP(B182,'Comp-SINAPI'!$A$3:$E$7739,5,FALSE)) -> 0.27 | J182: =I182*H182 -> 0.27
A183: Insumo | B183: 1213 | C183: SINAPI | D183: CARPINTEIRO DE FORMAS (HORISTA) | E183: Mão de Obra | G183: H | H183: 1 | I183: =IF(A183="Insumo",VLOOKUP(B183,'Insumos-SINAPI'!$A$1:$E$4813,5,FALSE),VLOOKUP(B183,'Comp-SINAPI'!$A$3:$E$7739,5,FALSE)) -> 20.99 | J183: =I183*H183 -> 20.99
A184: Insumo | B184: 37370 | C184: SINAPI | D184: ALIMENTACAO - HORISTA (COLETADO CAIXA) | E184: Outros | G184: H | H184: 1 | I184: =IF(A184="Insumo",VLOOKUP(B184,'Insumos-SINAPI'!$A$1:$E$4813,5,FALSE),VLOOKUP(B184,'Comp-SINAPI'!$A$3:$E$7739,5,FALSE)) -> 1.02 | J184: =I184*H184 -> 1.02
A185: Insumo | B185: 37371 | C185: SINAPI | D185: TRANSPORTE - HORISTA (COLETADO CAIXA) | E185: Serviços | G185: H | H185: 1 | I185: =IF(A185="Insumo",VLOOKUP(B185,'Insumos-SINAPI'!$A$1:$E$4813,5,FALSE),VLOOKUP(B185,'Comp-SINAPI'!$A$3:$E$7739,5,FALSE)) -> 0.57 | J185: =I185*H185 -> 0.57
A186: Insumo | B186: 37372 | C186: SINAPI | D186: EXAMES - HORISTA (COLETADO CAIXA) | E186: Outros | G186: H | H186: 1 | I186: =IF(A186="Insumo",VLOOKUP(B186,'Insumos-SINAPI'!$A$1:$E$4813,5,FALSE),VLOOKUP(B186,'Comp-SINAPI'!$A$3:$E$7739,5,FALSE)) -> 1.34 | J186: 1.34
A187: Insumo | B187: 37373 | C187: SINAPI | D187: SEGURO - HORISTA (COLETADO CAIXA) | E187: Taxas | G187: H | H187: 1 | I187: =IF(A187="Insumo",VLOOKUP(B187,'Insumos-SINAPI'!$A$1:$E$4813,5,FALSE),VLOOKUP(B187,'Comp-SINAPI'!$A$3:$E$7739,5,FALSE)) -> 0.01 | J187: 0.01
A188: Insumo | B188: 43459 | C188: SINAPI | D188: FERRAMENTAS - FAMILIA CARPINTEIRO DE FORMAS - HORISTA (ENCARGOS COMPLEMENTARES - COLETADO CAIXA) | E188: Equipamento | G188: H | H188: 1 | I188: =IF(A188="Insumo",VLOOKUP(B188,'Insumos-SINAPI'!$A$1:$E$4813,5,FALSE),VLOOKUP(B188,'Comp-SINAPI'!$A$3:$E$7739,5,FALSE)) -> 0.49 | J188: 0.49
A189: Insumo | B189: 43483 | C189: SINAPI | D189: EPI - FAMILIA CARPINTEIRO DE FORMAS - HORISTA (ENCARGOS COMPLEMENTARES - COLETADO CAIXA) | E189: Equipamento | G189: H | H189: 1 | I189: =IF(A189="Insumo",VLOOKUP(B189,'Insumos-SINAPI'!$A$1:$E$4813,5,FALSE),VLOOKUP(B189,'Comp-SINAPI'!$A$3:$E$7739,5,FALSE)) -> 1.43 | J189: 1.43
E190: MO sem LS => | F190: =J190/$M$2 -> 9.91 | G190: LS => | H190: =F190*$J$2 -> 11.35 | I190: MO com LS => | J190: =J183+J182 -> 21.26
E191: Valor do BDI => | F191: =J181*$G$2 -> 6.42 | H191: Valor com BDI => | J191: =J181*(1+$G$2) -> 32.54
B194: Código | C194: Banco | D194: Descrição | E194: Tipo | G194: Und | H194: Quant. | I194: Valor Unit | J194: Total
A195: Composição | B195: 95316 | C195: SINAPI | D195: CURSO DE CAPACITAÇÃO PARA AUXILIAR DE ELETRICISTA (ENCARGOS COMPLEMENTARES) - HORISTA | E195: SEDI - SERVIÇOS DIVERSOS | G195: H | H195: 1 | I195: =SUM(J196) -> 0.72 | J195: =I195*H195 -> 0.72
A196: Insumo | B196: 247 | C196: SINAPI | D196: AJUDANTE DE ELETRICISTA (HORISTA) | E196: Mão de Obra | G196: H | H196: 0.04297 | I196: =IF(A196="Insumo",VLOOKUP(B196,'Insumos-SINAPI'!$A$1:$E$4813,5,FALSE),VLOOKUP(B196,'Comp-SINAPI'!$A$3:$E$7739,5,FALSE)) -> 16.75 | J196: =I196*H196 -> 0.72
E197: MO sem LS => | F197: =J197/$M$2 -> 0.34 | G197: LS => | H197: =F197*$J$2 -> 0.39 | I197: MO com LS => | J197: =J196 -> 0.72
E198: Valor do BDI => | F198: =J195*$G$2 -> 0.18 | H198: Valor com BDI => | J198: =J195*(1+$G$2) -> 0.9
B201: Código | C201: Banco | D201: Descrição | E201: Tipo | G201: Und | H201: Quant. | I201: Valor Unit | J201: Total
A202: Composição | B202: 95330 | C202: SINAPI | D202: CURSO DE CAPACITAÇÃO PARA CARPINTEIRO DE FÔRMAS (ENCARGOS COMPLEMENTARES) - HORISTA | E202: SEDI - SERVIÇOS DIVERSOS | G202: H | H202: 1 | I202: =SUM(J203) -> 0.28 | J202: =I202*H202 -> 0.28
A203: Insumo | B203: 1213 | C203: SINAPI | D203: CARPINTEIRO DE FORMAS (HORISTA) | E203: Mão de Obra | G203: H | H203: 0.01328 | I203: =IF(A203="Insumo",VLOOKUP(B203,'Insumos-SINAPI'!$A$1:$E$4813,5,FALSE),VLOOKUP(B203,'Comp-SINAPI'!$A$3:$E$7739,5,FALSE)) -> 20.99 | J203: =I203*H203 -> 0.28
E204: MO sem LS => | F204: =J204/$M$2 -> 0.13 | G204: LS => | H204: =F204*$J$2 -> 0.15 | I204: MO com LS => | J204: =J203 -> 0.28
E205: Valor do BDI => | F205: =J202*$G$2 -> 0.07 | H205: Valor com BDI => | J205: =J202*(1+$G$2) -> 0.35
B207: Código | C207: Banco | D207: Descrição | E207: Tipo | G207: Und | H207: Quant. | I207: Valor Unit | J207: Total
A208: Composição | B208: 95400 | C208: SINAPI | D208: CURSO DE CAPACITAÇÃO PARA DESENHISTA PROJETISTA (ENCARGOS COMPLEMENTARES) - HORISTA | E208: SEDI - SERVIÇOS DIVERSOS | G208: H | H208: 1 | I208: =SUM(J209) -> 0.13 | J208: =I208*H208 -> 0.13
A209: Insumo | B209: 2358 | C209: SINAPI | D209: DESENHISTA PROJETISTA (HORISTA) | E209: Mão de Obra | G209: H | H209: 0.00586 | I209: =IF(A209="Insumo",VLOOKUP(B209,'Insumos-SINAPI'!$A$1:$E$4813,5,FALSE),VLOOKUP(B209,'Comp-SINAPI'!$A$3:$E$7739,5,FALSE)) -> 22.23 | J209: =I209*H209 -> 0.13
E210: MO sem LS => | F210: =J210/$M$2 -> 0.06 | G210: LS => | H210: =F210*$J$2 -> 0.07 | I210: MO com LS => | J210: =J209 -> 0.13
E211: Valor do BDI => | F211: =J208*$G$2 -> 0.03 | H211: Valor com BDI => | J211: =J208*(1+$G$2) -> 0.16
B213: Código | C213: Banco | D213: Descrição | E213: Tipo | G213: Und | H213: Quant. | I213: Valor Unit | J213: Total
A214: Composição | B214: 95332 | C214: SINAPI | D214: CURSO DE CAPACITAÇÃO PARA ELETRICISTA (ENCARGOS COMPLEMENTARES) - HORISTA | E214: SEDI - SERVIÇOS DIVERSOS | G214: H | H214: 1 | I214: =SUM(J215) -> 0.9 | J214: =I214*H214 -> 0.9
A215: Insumo | B215: 2436 | C215: SINAPI | D215: ELETRICISTA (HORISTA) | E215: Mão de Obra | G215: H | H215: 0.04297 | I215: =IF(A215="Insumo",VLOOKUP(B215,'Insumos-SINAPI'!$A$1:$E$4813,5,FALSE),VLOOKUP(B215,'Comp-SINAPI'!$A$3:$E$7739,5,FALSE)) -> 20.99 | J215: =I215*H215 -> 0.9
E216: MO sem LS => | F216: =J216/$M$2 -> 0.42 | G216: LS => | H216: =F216*$J$2 -> 0.48 | I216: MO com LS => | J216: =J215 -> 0.9
E217: Valor do BDI => | F217: =J214*$G$2 -> 0.22 | H217: Valor com BDI => | J217: =J214*(1+$G$2) -> 1.12
B220: Código | C220: Banco | D220: Descrição | E220: Tipo | G220: Und | H220: Quant. | I220: Valor Unit | J220: Total
A221: Composição | B221: 95403 | C221: SINAPI | D221: CURSO DE CAPACITAÇÃO PARA ENGENHEIRO CIVIL DE OBRA PLENO (ENCARGOS COMPLEMENTARES) - HORISTA | E221: SEDI - SERVIÇOS DIVERSOS | G221: H | H221: 1 | I221: =SUM(J222) -> 2.08 | J221: =I221*H221 -> 2.08
A222: Insumo | B222: 2707 | C222: SINAPI | D222: ENGENHEIRO CIVIL DE OBRA PLENO (HORISTA) | E222: Mão de Obra | G222: H | H222: 0.01699 | I222: =IF(A222="Insumo",VLOOKUP(B222,'Insumos-SINAPI'!$A$1:$E$4813,5,FALSE),VLOOKUP(B222,'Comp-SINAPI'!$A$3:$E$7739,5,FALSE)) -> 122.52 | J222: =I222*H222 -> 2.08 | L222: =H222*VLOOKUP(B222,$B$402:$E$407,4,FALSE) -> 
E223: MO sem LS => | F223: =J223/$M$2 -> 0.97 | G223: LS => | H223: =F223*$J$2 -> 1.11 | I223: MO com LS => | J223: =J222 -> 2.08
E224: Valor do BDI => | F224: =J221*$G$2 -> 0.51 | H224: Valor com BDI => | J224: =J221*(1+$G$2) -> 2.59
B228: Código | C228: Banco | D228: Descrição | E228: Tipo | G228: Und | H228: Quant. | I228: Valor Unit | J228: Total
A229: Composição | B229: 95351 | C229: SINAPI | D229: CURSO DE CAPACITAÇÃO PARA MOTORISTA OPERADOR DE MUNCK (ENCARGOS COMPLEMENTARES) - HORISTA | E229: SEDI - SERVIÇOS DIVERSOS | G229: H | H229: 1 | I229: =SUM(J230) -> 0.44 | J229: =I229*H229 -> 0.44
A230: Insumo | B230: 4096 | C230: SINAPI | D230: MOTORISTA OPERADOR DE CAMINHAO COM MUNCK (HORISTA) | E230: Mão de Obra | G230: H | H230: 0.01885 | I230: =IF(A230="Insumo",VLOOKUP(B230,'Insumos-SINAPI'!$A$1:$E$4813,5,FALSE),VLOOKUP(B230,'Comp-SINAPI'!$A$3:$E$7739,5,FALSE)) -> 23.53 | J230: =I230*H230 -> 0.44
E231: MO sem LS => | F231: =J231/$M$2 -> 0.21 | G231: LS => | H231: =F231*$J$2 -> 0.24 | I231: MO com LS => | J231: =J230 -> 0.44
E232: Valor do BDI => | F232: =J229*$G$2 -> 0.11 | H232: Valor com BDI => | J232: =J229*(1+$G$2) -> 0.55
B235: Código | C235: Banco | D235: Descrição | E235: Tipo | G235: Und | H235: Quant. | I235: Valor Unit | J235: Total
A236: Composição | B236: 95334 | C236: SINAPI | D236: CURSO DE CAPACITAÇÃO PARA ELETROTÉCNICO (ENCARGOS COMPLEMENTARES) - HORISTA | E236: SEDI - SERVIÇOS DIVERSOS | G236: H | H236: 1 | I236: =SUM(J237) -> 0.79 | J236: =I236*H236 -> 0.79
A237: Insumo | B237: 2438 | C237: SINAPI | D237: ELETROTECNICO (HORISTA) | E237: Mão de Obra | G237: H | H237: 0.03555 | I237: =IF(A237="Insumo",VLOOKUP(B237,'Insumos-SINAPI'!$A$1:$E$4813,5,FALSE),VLOOKUP(B237,'Comp-SINAPI'!$A$3:$E$7739,5,FALSE)) -> 22.27 | J237: =I237*H237 -> 0.79
E238: MO sem LS => | F238: =J238/$M$2 -> 0.37 | G238: LS => | H238: =F238*$J$2 -> 0.42 | I238: MO com LS => | J238: =J237 -> 0.79
E239: Valor do BDI => | F239: =J236*$G$2 -> 0.19 | H239: Valor com BDI => | J239: =J236*(1+$G$2) -> 0.98
B240: Código | C240: Banco | D240: Descrição | E240: Tipo | G240: Und | H240: Quant. | I240: Valor Unit | J240: Total
A241: Composição | B241: 100299 | C241: SINAPI | D241: CURSO DE CAPACITAÇÃO PARA TÉCNICO EM SEGURANÇA DO TRABALHO (ENCARGOS COMPLEMENTARES) - HORISTA | E241: SEDI - SERVIÇOS DIVERSOS | G241: H | H241: 1 | I241: =SUM(J242) -> 0.55 | J241: =I241*H241 -> 0.55
A242: Insumo | B242: 40943 | C242: SINAPI | D242: TECNICO EM SEGURANCA DO TRABALHO (HORISTA) | E242: Mão de Obra | G242: H | H242: 0.0207 | I242: =IF(A242="Insumo",VLOOKUP(B242,'Insumos-SINAPI'!$A$1:$E$4813,5,FALSE),VLOOKUP(B242,'Comp-SINAPI'!$A$3:$E$7739,5,FALSE)) -> 26.38 | J242: =I242*H242 -> 0.55
E243: MO sem LS => | F243: =J243/$M$2 -> 0.26 | G243: LS => | H243: =F243*$J$2 -> 0.3 | I243: MO com LS => | J243: =J242 -> 0.55
E244: Valor do BDI => | F244: =J241*$G$2 -> 0.14 | H244: Valor com BDI => | J244: =J241*(1+$G$2) -> 0.69
... 145 more rows

Sheet BDI
A1: DETALHAMENTO DO BDI - SEM DESONERAÇÃO
A2: Descrição dos serviços | D2: Preço de Venda (%) | E2: Custo Direto (%)
A3: 1 | C3: ADMINISTRAÇÃO CENTRAL (A) | E3: 0.0529
A5: 2 | C5: IMPOSTOS E TAXAS | D5: =SUM(D6:D9) -> 0.0665
B6: 2.1 | C6: ISS | D6: 0.03
B7: 2.2 | C7: PIS | D7: 0.0065
B8: 2.3 | C8: COFINS | D8: 0.03
B9: 2.4 | C9: CPRB
A11: 3 | C11: RISCO, SEGURO E GARANTIA | E11: =E12+E13 -> 0.013
B12: 3.1 | C12: RISCO | E12: 0.01
B13: 3.2 | C13: SEGURO E GARANTIA | E13: 0.003
A16: 4 | C16: DESPESA FINANCEIRA | E16: 0.0101
A19: 5 | C19: LUCRO | E19: 0.08
A23: BDI ADOTADO | E23: =D31-1 -> 0.2456
C24: Fonte da composição, valores de referência e fórmula do BDI: Acordão 2.622/2013 - Plenário
C25: AC = taxa de rateio da Administração Central 4,00% | D25: =E3 -> 0.0529
C26: I = taxa de tributos 6,65% | D26: =D5 -> 0.0665
C27: R = taxa de risco, seguro e garantia 1,80% | D27: =E11 -> 0.013
C28: DF = taxa das despesas financeiras 1,05% | D28: =E16 -> 0.0101
C29: L = taxa de lucro | D29: =E19 -> 0.08
D31: =(1+E3+E11)*(1+E16)*(1+E19)/(1-D5) -> 1.2456
B34: DETALHAMENTO DO BDI DIFERENCIADO - SOMENTE FORNECIMENTO
A35: DETALHAMENTO DO BDI DIFERENCIADO - SEM DESONERAÇÃO (SOMENTE FORNECIMENTO)
A36: Descrição dos serviços | D36: Preço de Venda (%) | E36: Custo Direto (%)
A37: 1 | C37: ADMINISTRAÇÃO CENTRAL (A) | E37: 0.03
A39: 2 | C39: IMPOSTOS E TAXAS | D39: =SUM(D40:D43) -> 0.0365
B40: 2.1 | C40: ISS | D40: 0
B41: 2.2 | C41: PIS | D41: 0.0065
B42: 2.3 | C42: COFINS | D42: 0.03
B43: 2.4 | C43: CPRB | D43: 0
A45: 3 | C45: RISCO, SEGURO E GARANTIA | E45: =E46+E47 -> 0.0106
B46: 3.1 | C46: RISCO | E46: 0.0069
B47: 3.2 | C47: SEGURO E GARANTIA | E47: 0.0037
A50: 4 | C50: DESPESA FINANCEIRA | E50: 0.0085
A53: 5 | C53: LUCRO | E53: 0.0435
A57: BDI | E57: =D65-1 -> 0.1366
B58: Fonte da composição, valores de referência e fórmula do BDI: Acordão 2.622/2013 - Plenário | D58: BDI Adotado = 13,50%
C59: AC = taxa de rateio da Administração Central 4,00% | D59: =E37 -> 0.03
C60: I = taxa de tributos 6,65% | D60: =D39 -> 0.0365
C61: R = taxa de risco, seguro e garantia 1,80% | D61: =E45 -> 0.0106
C62: DF = taxa das despesas financeiras 1,05% | D62: =E50 -> 0.0085
C63: L = taxa de lucro 7,00% | D63: =E53 -> 0.0435
D65: =(1+E37+E45)*(1+E50)*(1+E53)/(1-D39) -> 1.1366

Sheet Cronograma
A2: SRP LEDs _NÃO DESONERADO
A3: CRONOGRAMA FISICO X FINANCEIRO
A4: Item | B4: Código | C4: Banco | D4: Descrição | E4: Total por etapa | F4: 30 dias | G4: 60 dias | H4: 90 dias | I4: 120 dias | J4: 150 dias | K4: 180 dias | L4: 210 dias | M4: 240 dias | N4: 270 dias | O4: 300 dias | P4: 330 dias | Q4: 360 dias
A5: 1 | D5: SERVIÇOS PRELIMINARES | E5: =SUM(E6:E11) -> 79720.89
A6: 1.1 | B6: 00000007 | C6: Próprio | D6: ='Orçamento Sintético'!D7 -> ELABORAÇÃO DE PROJETO LUMINOTÉCNICO E LEVANTAMENTO GEOREFERENCIADO, DESENHO, PROJETO E TRAMITAÇÃO JUNTO A CONCESSIONÁRIA DE ENERGIA PARA ATUALIZAÇÃO CADASTRAL DA ILUMINAÇÃO PÚBLICA | E6: ='Orçamento Sintético'!J7 -> 67320 | F6: =$E$6/3 -> 22440 | J6: =$E$6/3 -> 22440 | N6: =$E$6/3 -> 22440
F7: =TRUNC(F6/$E$6,4) -> 0.3333 | J7: =TRUNC(J6/$E$6,4) -> 0.3333 | N7: =TRUNC(N6/$E$6,4)+0.01% -> 0.3334
A8: 1.2 | B8: 1 | C8: ORSE | D8: =CPUs!D13 -> FORNECIMENTO E INSTALAÇÃO DE PLACA DE OBRA COM CHAPA GALVANIZADA E ESTRUTURA DE MADEIRA. AF_03/2022_PS | E8: ='Orçamento Sintético'!J8 -> 10370.49 | F8: =$E$8/3 -> 3456.83 | J8: =$E$8/3 -> 3456.83 | N8: =$E$8/3 -> 3456.83
F9: =F8/$E$8 -> 0.3333 | J9: =J8/$E$8+0.01% -> 0.3334 | N9: =N8/$E$8 -> 0.3333
A10: 1.3 | B10: 10 | C10: Próprio | D10: MOBILIZAÇÃO E DESMOBILIZAÇÃO | E10: ='Orçamento Sintético'!J9 -> 2030.4 | F10: =$E$10/4 -> 507.6 | J10: =$E$10/4 -> 507.6 | N10: =$E$10/4 -> 507.6 | Q10: =$E$10/4 -> 507.6
F11: =F10/$E$10 -> 0.25 | J11: =J10/$E$10 -> 0.25 | N11: =N10/$E$10 -> 0.25 | Q11: =Q10/$E$10 -> 0.25
A12: 2 | D12: ADMINISTRAÇÃO LOCAL DA OBRA | E12: =SUM(E13:E16) -> 104044.28
A13: 2.1 | B13: 11 | C13: Próprio | D13: ADMINISTRAÇÃO LOCAL | E13: ='Orçamento Sintético'!J11 -> 98503.04 | G13: =$E$13/11 -> 8954.82 | H13: 8954.82 | I13: 8954.82 | J13: 8954.82 | K13: 8954.82 | L13: 8954.82 | M13: 8954.82 | N13: 8954.82 | O13: 8954.82 | P13: 8954.82 | Q13: 8954.82
G14: =G13/$E$13 -> 0.0909 | H14: 0.0909 | I14: 0.0909 | J14: 0.0909 | K14: 0.0909 | L14: 0.0909 | M14: 0.0909 | N14: 0.0909 | O14: 0.0909 | P14: 0.0909 | Q14: 0.0909
A15: 2.2 | B15: 11 | C15: Próprio | D15: CANTEIROS DE OBRAS E ALMOXARIFADO | E15: ='Orçamento Sintético'!J12 -> 5541.24 | F15: =$E$15/3 -> 1847.08 | J15: =$E$15/3 -> 1847.08 | N15: =$E$15/3 -> 1847.08
F16: =F15/$E$8 -> 0.1781 | J16: =J15/$E$8+0.01% -> 0.1782 | N16: =N15/$E$8 -> 0.1781
A17: 3 | D17: LOCAÇÃO DE VEÍCULO DE APOIO PARA FISCALIZAÇÃO | E17: =E18 -> 15851.5
A18: 3.1 | D18: Veículo para fiscalização - Codevasf | E18: ='Orçamento Sintético'!J14 -> 15851.5 | F18: =$E$18/3 -> 5283.83 | J18: =$E$18/3 -> 5283.83 | N18: =$E$18/3 -> 5283.83
F19: =F18/$E$8 -> 0.5095 | J19: =J18/$E$8+0.01% -> 0.5096 | N19: =N18/$E$8 -> 0.5095
A20: 4 | D20: EXECUÇÃO DOS SERVIÇOS | E20: =SUM(E21:E25) -> 4204984
A21: 4.1 | B21: SRP Pátios_01 | C21: Próprio | D21: SUBSTITUIÇÃO DE LUMINÁRIA DE VAPOR DE MERCÚRIO/VAPOR DE SÓDIO POR LUMINÁRIA DE LED PARA ILUMINAÇÃO PÚBLICA (NÃO INCLUI FORNECIMENTO). AF_08/2020 | E21: ='Orçamento Sintético'!J16 -> 997424 | G21: =$E$21/11 -> 90674.91 | H21: 90674.91 | I21: 90674.91 | J21: 90674.91 | K21: 90674.91 | L21: 90674.91 | M21: 90674.91 | N21: 90674.91 | O21: 90674.91 | P21: 90674.91 | Q21: 90674.91
G22: =G21/$E$21 -> 0.0909 | H22: 0.0909 | I22: 0.0909 | J22: 0.0909 | K22: 0.0909 | L22: 0.0909 | M22: 0.0909 | N22: 0.0909 | O22: 0.0909 | P22: 0.0909 | Q22: 0.0909
A23: 4.2 | B23: 73948/016 | C23: SINAPI | D23: LUMINARIA DE LED PARA ILUMINACAO PUBLICA, DE 51 W ATE 67 W, INVOLUCRO EM ALUMINIO OU ACO INOX | E23: ='Orçamento Sintético'!J17 -> 2899316 | G23: =$E$23/11 -> 263574.18 | H23: =$E$23/11 -> 263574.18 | I23: 263574.18 | J23: 263574.18 | K23: 263574.18 | L23: 263574.18 | M23: 263574.18 | N23: 263574.18 | O23: 263574.18 | P23: 263574.18 | Q23: 263574.18
G24: =G23/$E$23 -> 0.0909 | H24: =H23/$E$23 -> 0.0909 | I24: 0.0909 | J24: 0.0909 | K24: 0.0909 | L24: 0.0909 | M24: 0.0909 | N24: 0.0909 | O24: 0.0909 | P24: =P23/$E$23 -> 0.0909 | Q24: =Q23/$E$23 -> 0.0909
A25: 4.3 | B25: 10 | C25: Próprio | D25: RELÉ FOTOELÉTRICO PARA COMANDO DE ILUMINAÇÃO EXTERNA 1000 W - FORNECIMENTO E INSTALAÇÃO. AF_08/2020 | E25: ='Orçamento Sintético'!J19 -> 308244 | G25: =$E$25/11 -> 28022.18 | H25: =$E$25/11 -> 28022.18 | I25: 28022.18 | J25: 28022.18 | K25: 28022.18 | L25: 28022.18 | M25: 28022.18 | N25: 28022.18 | O25: 28022.18 | P25: 28022.18 | Q25: 28022.18
G26: =G25/$E$25 -> 0.0909 | H26: =H25/$E$25 -> 0.0909 | I26: 0.0909 | J26: 0.0909 | K26: 0.0909 | L26: 0.0909 | M26: 0.0909 | N26: 0.0909 | O26: 0.0909 | P26: 0.0909 | Q26: 0.0909
A27: 5 | D27: SOBRESSALENTES | E27: =SUM(E28:E40) -> 541218.12
A28: 5.1 | B28: 2531 | C28: ORSE | D28: BRAÇO PARA ILUMINAÇÃO PÚBLICA, EM TUBO DE AÇO GALVANIZADO, COMPRIMENTO DE 1,50 M, PARA FIXAÇÃO EM POSTE DE CONCRETO - FORNECIMENTO E INSTALAÇÃO AF_08/2020 | E28: ='Orçamento Sintético'!J21 -> 192892.2 | G28: =$E$28/11 -> 17535.65 | H28: =$E$28/11 -> 17535.65 | I28: 17535.65 | J28: 17535.65 | K28: 17535.65 | L28: 17535.65 | M28: 17535.65 | N28: 17535.65 | O28: 17535.65 | P28: 17535.65 | Q28: 17535.65
G29: =G28/$E$28 -> 0.0909 | H29: =H28/$E$28 -> 0.0909 | I29: =I28/$E$28 -> 0.0909 | J29: 0.0909 | K29: 0.0909 | L29: 0.0909 | M29: 0.0909 | N29: 0.0909 | O29: 0.0909 | P29: 0.0909 | Q29: 0.0909
A30: 5.2 | B30: 11 | C30: Próprio | D30: BRAÇO PARA ILUMINAÇÃO PÚBLICA, EM TUBO DE AÇO GALVANIZADO, COMPRIMENTO DE 1,50 M, PARA FIXAÇÃO EM POSTE METÁLICO - FORNECIMENTO E INSTALAÇÃO | E30: ='Orçamento Sintético'!J22 -> 61995.6 | G30: =$E$30/11 -> 5635.96 | H30: =$E$30/11 -> 5635.96 | I30: 5635.96 | J30: 5635.96 | K30: 5635.96 | L30: 5635.96 | M30: 5635.96 | N30: 5635.96 | O30: 5635.96 | P30: 5635.96 | Q30: 5635.96
G31: =G30/$E$30 -> 0.0909 | H31: =H30/$E$30 -> 0.0909 | I31: 0.0909 | J31: 0.0909 | K31: 0.0909 | L31: 0.0909 | M31: 0.0909 | N31: 0.0909 | O31: 0.0909 | P31: 0.0909 | Q31: 0.0909
A32: 5.3 | B32: 11 | C32: Próprio | D32: Braço Curvo em Aço Galvanizado a Fogo, com sapata de 48x2000mm DI ou similar | E32: ='Orçamento Sintético'!J23 -> 78926.24 | G32: =$E$32/11 -> 7175.11 | H32: =$E$32/11 -> 7175.11 | I32: 7175.11 | J32: 7175.11 | K32: 7175.11 | L32: 7175.11 | M32: 7175.11 | N32: 7175.11 | O32: 7175.11 | P32: 7175.11 | Q32: 7175.11
G33: =G32/$E$32 -> 0.0909 | H33: =H32/$E$32 -> 0.0909 | I33: 0.0909 | J33: 0.0909 | K33: 0.0909 | L33: 0.0909 | M33: 0.0909 | N33: 0.0909 | O33: 0.0909 | P33: 0.0909 | Q33: 0.0909
A34: 5.4 | B34: 11 | C34: Próprio | D34: Substituição de Braço | E34: ='Orçamento Sintético'!J24 -> 67238.4 | G34: =$E$34/11 -> 6112.58 | H34: =$E$34/11 -> 6112.58 | I34: 6112.58 | J34: 6112.58 | K34: 6112.58 | L34: 6112.58 | M34: 6112.58 | N34: 6112.58 | O34: 6112.58 | P34: 6112.58 | Q34: 6112.58
G35: =G34/$E$34 -> 0.0909 | H35: =H34/$E$34 -> 0.0909 | I35: 0.0909 | J35: 0.0909 | K35: 0.0909 | L35: 0.0909 | M35: 0.0909 | N35: 0.0909 | O35: 0.0909 | P35: 0.0909 | Q35: 0.0909
A36: 5.5 | B36: 11 | C36: Próprio | D36: Braço Curvo em Aço Galvanizado a Fogo, com sapata de 48x3000mm DI ou similar | E36: ='Orçamento Sintético'!J25 -> 116813.12 | G36: =$E$36/11 -> 10619.37 | H36: =$E$36/11 -> 10619.37 | I36: =$E$36/11 -> 10619.37 | J36: 10619.37 | K36: 10619.37 | L36: 10619.37 | M36: 10619.37 | N36: 10619.37 | O36: 10619.37 | P36: 10619.37 | Q36: 10619.37
G37: =G36/$E$36 -> 0.0909 | H37: =H36/$E$36 -> 0.0909 | I37: =I36/$E$36 -> 0.0909 | J37: 0.0909 | K37: 0.0909 | L37: 0.0909 | M37: 0.0909 | N37: 0.0909 | O37: 0.0909 | P37: 0.0909 | Q37: 0.0909
A38: 5.6 | B38: 11 | C38: Próprio | D38: Conector perfuração 25-95/2 95 mm | E38: ='Orçamento Sintético'!J26 -> 11738.16 | G38: =$E$38/11 -> 1067.11 | H38: =$E$38/11 -> 1067.11 | I38: 1067.11 | J38: 1067.11 | K38: 1067.11 | L38: 1067.11 | M38: 1067.11 | N38: 1067.11 | O38: 1067.11 | P38: 1067.11 | Q38: 1067.11
G39: =G38/$E$36 -> 0.0091 | H39: =H38/$E$36 -> 0.0091 | I39: 0.0091 | J39: 0.0091 | K39: 0.0091 | L39: 0.0091 | M39: 0.0091 | N39: 0.0091 | O39: 0.0091 | P39: 0.0091 | Q39: 0.0091
A40: 5.7 | B40: 11 | C40: Próprio | D40: CABO DE COBRE FLEXÍVEL ISOLADO, 2,5 MM², ANTI-CHAMA 0,6/1,0 KV, PARA CIRCUITOS TERMINAIS - FORNECIMENTO E INSTALAÇÃO. AF_03/2023 | E40: ='Orçamento Sintético'!J27 -> 11614.4 | G40: =$E$40/11 -> 1055.85 | H40: =$E$40/11 -> 1055.85 | I40: 1055.85 | J40: 1055.85 | K40: 1055.85 | L40: 1055.85 | M40: 1055.85 | N40: 1055.85 | O40: 1055.85 | P40: 1055.85 | Q40: =$E$40/11-0.02 -> 1055.83
G41: =G40/$E$40 -> 0.0909 | H41: =H40/$E$40 -> 0.0909 | I41: 0.0909 | J41: 0.0909 | K41: 0.0909 | L41: 0.0909 | M41: 0.0909 | N41: 0.0909 | O41: 0.0909 | P41: 0.0909 | Q41: 0.0909
A42: Valor total para 15,00 unidades | E42: =E5+E27+E20+E17+E12 -> 4945818.79 | F42: =SUM(F6+F8+F21+F23+F25+F28+F40+F30+F32+F34+F36+F38+F10+F18+F15+F13) -> 33535.34 | G42: =SUM(G6+G8+G21+G23+G25+G28+G40+G30+G32+G34+G36+G38+G10+G18+G15+G13) -> 440427.72 | H42: 440427.72 | I42: 440427.72 | J42: 473963.06 | K42: 440427.72 | L42: 440427.72 | M42: 440427.72 | N42: 473963.06 | O42: 440427.72 | P42: 440427.72 | Q42: 440935.3
F43: =TRUNC(F42/$E$42,4) -> 0.0067 | G43: =TRUNC(G42/$E$42,4) -> 0.089 | H43: =TRUNC(H42/$E$42,4) -> 0.089 | I43: 0.089 | J43: 0.0958 | K43: 0.089 | L43: 0.089 | M43: 0.089 | N43: 0.0958 | O43: 0.089 | P43: 0.089 | Q43: 0.0891
D44: Total Acumulado | F44: =F42 -> 33535.34 | G44: =F44+G42 -> 473963.06 | H44: =G44+H42 -> 914390.78 | I44: =H44+I42 -> 1354818.5 | J44: 1828781.56 | K44: 2269209.28 | L44: 2709637 | M44: 3150064.72 | N44: =M44+N42 -> 3624027.78 | O44: =N44+O42 -> 4064455.5 | P44: 4504883.22 | Q44: =P44+Q42 -> 4945818.52
F45: =F43 -> 0.0067 | G45: =G44/$E$42 -> 0.0958 | H45: =H44/$E$42 -> 0.1849 | I45: =I44/$E$42 -> 0.2739 | J45: 0.3698 | K45: 0.4588 | L45: 0.5479 | M45: 0.6369 | N45: =N44/$E$42 -> 0.7327 | O45: =O44/$E$42 -> 0.8218 | P45: 0.9108 | Q45: 1

Sheet Insumos-SINAPI
A1: 38605 | B1: ABERTURA PARA ENCAIXE DE CUBA OU LAVATORIO EM BANCADA DE MARMORE/ GRANITO OU OUTRO TIPO DE PEDRA NATURAL | C1: UN | D1: CR | E1: 159.92
A2: 11270 | B2: ABRACADEIRA DE LATAO PARA FIXACAO DE CABO PARA-RAIO, DIMENSOES 32 X 24 X 24 MM | C2: UN | D2: CR | E2: 4.05
A3: 412 | B3: ABRACADEIRA DE NYLON PARA AMARRACAO DE CABOS, COMPRIMENTO DE *230* X *7,6* MM | C3: UN | D3: CR | E3: 1.18
A4: 414 | B4: ABRACADEIRA DE NYLON PARA AMARRACAO DE CABOS, COMPRIMENTO DE 100 X 2,5 MM | C4: UN | D4: CR | E4: 0.07
A5: 410 | B5: ABRACADEIRA DE NYLON PARA AMARRACAO DE CABOS, COMPRIMENTO DE 150 X *3,6* MM | C5: UN | D5: CR | E5: 0.18
A6: 411 | B6: ABRACADEIRA DE NYLON PARA AMARRACAO DE CABOS, COMPRIMENTO DE 200 X *4,6* MM | C6: UN | D6: C | E6: 0.23
A7: 408 | B7: ABRACADEIRA DE NYLON PARA AMARRACAO DE CABOS, COMPRIMENTO DE 390 X *4,6* MM | C7: UN | D7: CR | E7: 1.14
A8: 39131 | B8: ABRACADEIRA EM ACO PARA AMARRACAO DE ELETRODUTOS, TIPO D, COM 1 1/2" E CUNHA DE FIXACAO | C8: UN | D8: CR | E8: 5.44
A9: 394 | B9: ABRACADEIRA EM ACO PARA AMARRACAO DE ELETRODUTOS, TIPO D, COM 1 1/2" E PARAFUSO DE FIXACAO | C9: UN | D9: CR | E9: 5.51
A10: 39130 | B10: ABRACADEIRA EM ACO PARA AMARRACAO DE ELETRODUTOS, TIPO D, COM 1 1/4" E CUNHA DE FIXACAO | C10: UN | D10: CR | E10: 4.97
A11: 395 | B11: ABRACADEIRA EM ACO PARA AMARRACAO DE ELETRODUTOS, TIPO D, COM 1 1/4" E PARAFUSO DE FIXACAO | C11: UN | D11: CR | E11: 5.31
A12: 39127 | B12: ABRACADEIRA EM ACO PARA AMARRACAO DE ELETRODUTOS, TIPO D, COM 1/2" E CUNHA DE FIXACAO | C12: UN | D12: CR | E12: 2.62
A13: 392 | B13: ABRACADEIRA EM ACO PARA AMARRACAO DE ELETRODUTOS, TIPO D, COM 1/2" E PARAFUSO DE FIXACAO | C13: UN | D13: CR | E13: 2.68
A14: 39129 | B14: ABRACADEIRA EM ACO PARA AMARRACAO DE ELETRODUTOS, TIPO D, COM 1" E CUNHA DE FIXACAO | C14: UN | D14: CR | E14: 3.06
A15: 393 | B15: ABRACADEIRA EM ACO PARA AMARRACAO DE ELETRODUTOS, TIPO D, COM 1" E PARAFUSO DE FIXACAO | C15: UN | D15: C | E15: 3.2
A16: 39133 | B16: ABRACADEIRA EM ACO PARA AMARRACAO DE ELETRODUTOS, TIPO D, COM 2 1/2" E CUNHA DE FIXACAO | C16: UN | D16: CR | E16: 7.14
A17: 397 | B17: ABRACADEIRA EM ACO PARA AMARRACAO DE ELETRODUTOS, TIPO D, COM 2 1/2" E PARAFUSO DE FIXACAO | C17: UN | D17: CR | E17: 7.89
A18: 39132 | B18: ABRACADEIRA EM ACO PARA AMARRACAO DE ELETRODUTOS, TIPO D, COM 2" E CUNHA DE FIXACAO | C18: UN | D18: CR | E18: 5.71
A19: 396 | B19: ABRACADEIRA EM ACO PARA AMARRACAO DE ELETRODUTOS, TIPO D, COM 2" E PARAFUSO DE FIXACAO | C19: UN | D19: CR | E19: 6.12
A20: 39135 | B20: ABRACADEIRA EM ACO PARA AMARRACAO DE ELETRODUTOS, TIPO D, COM 3 1/2" E CUNHA DE FIXACAO | C20: UN | D20: CR | E20: 11.43
A21: 39128 | B21: ABRACADEIRA EM ACO PARA AMARRACAO DE ELETRODUTOS, TIPO D, COM 3/4" E CUNHA DE FIXACAO | C21: UN | D21: CR | E21: 2.85
A22: 400 | B22: ABRACADEIRA EM ACO PARA AMARRACAO DE ELETRODUTOS, TIPO D, COM 3/4" E PARAFUSO DE FIXACAO | C22: UN | D22: CR | E22: 2.79
A23: 39125 | B23: ABRACADEIRA EM ACO PARA AMARRACAO DE ELETRODUTOS, TIPO D, COM 3/8" E PARAFUSO DE FIXACAO | C23: UN | D23: CR | E23: 2.85
A24: 39134 | B24: ABRACADEIRA EM ACO PARA AMARRACAO DE ELETRODUTOS, TIPO D, COM 3" E CUNHA DE FIXACAO | C24: UN | D24: CR | E24: 9.53
A25: 398 | B25: ABRACADEIRA EM ACO PARA AMARRACAO DE ELETRODUTOS, TIPO D, COM 3" E PARAFUSO DE FIXACAO | C25: UN | D25: CR | E25: 8.78
A26: 39126 | B26: ABRACADEIRA EM ACO PARA AMARRACAO DE ELETRODUTOS, TIPO D, COM 4" E CUNHA DE FIXACAO | C26: UN | D26: CR | E26: 12.86
A27: 399 | B27: ABRACADEIRA EM ACO PARA AMARRACAO DE ELETRODUTOS, TIPO D, COM 4" E PARAFUSO DE FIXACAO | C27: UN | D27: CR | E27: 11.33
A28: 39158 | B28: ABRACADEIRA EM ACO PARA AMARRACAO DE ELETRODUTOS, TIPO ECONOMICA (GOTA), COM 8" | C28: UN | D28: CR | E28: 30.43
A29: 39141 | B29: ABRACADEIRA EM ACO PARA AMARRACAO DE ELETRODUTOS, TIPO U SIMPLES, COM 1 1/2" | C29: UN | D29: CR | E29: 2.21
A30: 39140 | B30: ABRACADEIRA EM ACO PARA AMARRACAO DE ELETRODUTOS, TIPO U SIMPLES, COM 1 1/4" | C30: UN | D30: CR | E30: 2
A31: 39137 | B31: ABRACADEIRA EM ACO PARA AMARRACAO DE ELETRODUTOS, TIPO U SIMPLES, COM 1/2" | C31: UN | D31: CR | E31: 1.15
A32: 39139 | B32: ABRACADEIRA EM ACO PARA AMARRACAO DE ELETRODUTOS, TIPO U SIMPLES, COM 1" | C32: UN | D32: CR | E32: 1.66
A33: 39143 | B33: ABRACADEIRA EM ACO PARA AMARRACAO DE ELETRODUTOS, TIPO U SIMPLES, COM 2 1/2" | C33: UN | D33: CR | E33: 4.56
A34: 39142 | B34: ABRACADEIRA EM ACO PARA AMARRACAO DE ELETRODUTOS, TIPO U SIMPLES, COM 2" | C34: UN | D34: CR | E34: 3.26
A35: 39138 | B35: ABRACADEIRA EM ACO PARA AMARRACAO DE ELETRODUTOS, TIPO U SIMPLES, COM 3/4" | C35: UN | D35: CR | E35: 1.22
A36: 39136 | B36: ABRACADEIRA EM ACO PARA AMARRACAO DE ELETRODUTOS, TIPO U SIMPLES, COM 3/8" | C36: UN | D36: CR | E36: 0.81
A37: 39144 | B37: ABRACADEIRA EM ACO PARA AMARRACAO DE ELETRODUTOS, TIPO U SIMPLES, COM 3" | C37: UN | D37: CR | E37: 5.31
A38: 39145 | B38: ABRACADEIRA EM ACO PARA AMARRACAO DE ELETRODUTOS, TIPO U SIMPLES, COM 4" | C38: UN | D38: CR | E38: 8.74
A39: 12615 | B39: ABRACADEIRA PVC, PARA CALHA PLUVIAL, DIAMETRO ENTRE *80 E 100* MM, PARA DRENAGEM PLUVIAL PREDIAL | C39: UN | D39: CR | E39: 11.02
A40: 11927 | B40: ABRACADEIRA, GALVANIZADA/ZINCADA, ROSCA SEM FIM, PARAFUSO INOX, LARGURA FITA *12,6 A *14 MM, D = 2" A 2 1/2" | C40: UN | D40: CR | E40: 12.1
A41: 11928 | B41: ABRACADEIRA, GALVANIZADA/ZINCADA, ROSCA SEM FIM, PARAFUSO INOX, LARGURA FITA *12,6 A *14 MM, D = 3" A 3 3/4" | C41: UN | D41: CR | E41: 13.87
A42: 11929 | B42: ABRACADEIRA, GALVANIZADA/ZINCADA, ROSCA SEM FIM, PARAFUSO INOX, LARGURA FITA *12,6 A *14 MM, D = 4" A 4 3/4" | C42: UN | D42: CR | E42: 21.45
A43: 36801 | B43: ACABAMENTO DE METAL CROMADO PARA REGISTRO PEQUENO, DE PAREDE, 1/2" OU 3/4" | C43: UN | D43: CR | E43: 36.74
A44: 36246 | B44: ACABAMENTO SIMPLES/CONVENCIONAL PARA FORRO PVC, TIPO "U" OU "C", COR BRANCA, COMPRIMENTO 6 M | C44: M | D44: CR | E44: 4.06
A45: 37600 | B45: ACESSORIO DE LIGACAO NAO ELETRICO PARA CARGAS EXPLOSIVAS, TUBO DE 6 M | C45: UN | D45: AS | E45: 104.86
A46: 37599 | B46: ACESSORIO INICIADOR NAO ELETRICO, TUBO DE 6 M, TEMPO DE RETARDO DE *160* MS | C46: UN | D46: AS | E46: 97.6
A47: 1 | B47: ACETILENO (RECARGA DE GAS ACETILENO PARA CILINDRO DE CONJUNTO OXICORTE GRANDE) NAO INCLUI TROCA/MANUTENCAO DO CILINDRO | C47: KG | D47: AS | E47: 95
A48: 3 | B48: ACIDO CLORIDRICO / ACIDO MURIATICO, DILUICAO 10% A 12% PARA USO EM LIMPEZA | C48: L | D48: CR | E48: 19.73
A49: 43054 | B49: ACO CA-25, 10,0 MM, OU 12,5 MM, OU 16,0 MM, OU 20,0 MM, OU 25,0 MM, VERGALHAO | C49: KG | D49: CR | E49: 9.14
A50: 42402 | B50: ACO CA-25, 16,0 MM, BARRA DE TRANSFERENCIA | C50: KG | D50: CR | E50: 8.74
A51: 42403 | B51: ACO CA-25, 20,0 MM, BARRA DE TRANSFERENCIA | C51: KG | D51: CR | E51: 11.21
A52: 42404 | B52: ACO CA-25, 25,0 MM, BARRA DE TRANSFERENCIA | C52: KG | D52: CR | E52: 11.14
A53: 42405 | B53: ACO CA-25, 32,0 MM, BARRA DE TRANSFERENCIA | C53: KG | D53: CR | E53: 11.87
A54: 34341 | B54: ACO CA-25, 32,0 MM, VERGALHAO | C54: KG | D54: CR | E54: 10.3
A55: 43053 | B55: ACO CA-25, 6,3 MM OU 8,0 MM, VERGALHAO | C55: KG | D55: CR | E55: 8.16
A56: 43058 | B56: ACO CA-50, 10,0 MM, OU 12,5 MM, OU 16,0 MM, OU 20,0 MM, DOBRADO E CORTADO | C56: KG | D56: CR | E56: 8.47
A57: 34 | B57: ACO CA-50, 10,0 MM, VERGALHAO | C57: KG | D57: CR | E57: 8.51
A58: 43055 | B58: ACO CA-50, 12,5 MM OU 16,0 MM, VERGALHAO | C58: KG | D58: C | E58: 7.37
A59: 43056 | B59: ACO CA-50, 20,0 MM OU 25,0 MM, VERGALHAO | C59: KG | D59: CR | E59: 8.5
A60: 43057 | B60: ACO CA-50, 32,0 MM, VERGALHAO | C60: KG | D60: CR | E60: 9.34
A61: 34449 | B61: ACO CA-50, 6,3 MM, DOBRADO E CORTADO | C61: KG | D61: CR | E61: 9.98
A62: 32 | B62: ACO CA-50, 6,3 MM, VERGALHAO | C62: KG | D62: CR | E62: 8.97
A63: 33 | B63: ACO CA-50, 8,0 MM, VERGALHAO | C63: KG | D63: CR | E63: 9.03
A64: 43061 | B64: ACO CA-60, 4,2 MM OU 5,0 MM, DOBRADO E CORTADO | C64: KG | D64: CR | E64: 8.43
A65: 43059 | B65: ACO CA-60, 4,2 MM, OU 5,0 MM, OU 6,0 MM, OU 7,0 MM, VERGALHAO | C65: KG | D65: CR | E65: 8.05
A66: 43062 | B66: ACO CA-60, 6,0 MM OU 7,0 MM, DOBRADO E CORTADO | C66: KG | D66: CR | E66: 8.92
A67: 43060 | B67: ACO CA-60, 8,0 MM OU 9,5 MM, VERGALHAO | C67: KG | D67: CR | E67: 7.01
A68: 40410 | B68: ACOPLAMENTO RIGIDO EM FERRO FUNDIDO PARA SISTEMA DE TUBULACAO RANHURADA, DN 50 MM (2") | C68: UN | D68: AS | E68: 19.45
A69: 40411 | B69: ACOPLAMENTO RIGIDO EM FERRO FUNDIDO PARA SISTEMA DE TUBULACAO RANHURADA, DN 65 MM (2 1/2") | C69: UN | D69: AS | E69: 21.11
A70: 40412 | B70: ACOPLAMENTO RIGIDO EM FERRO FUNDIDO PARA SISTEMA DE TUBULACAO RANHURADA, DN 80 MM (3") | C70: UN | D70: AS | E70: 23.69
A71: 44254 | B71: ADAPTADOR CPVC, ROSCAVEL, COM FLANGES E ANEL DE VEDACAO, 15 MM, CAIXA D'AGUA PARA AGUA QUENTE | C71: UN | D71: CR | E71: 28.2
A72: 44255 | B72: ADAPTADOR CPVC, ROSCAVEL, COM FLANGES E ANEL DE VEDACAO, 22 MM, CAIXA D'AGUA PARA AGUA QUENTE | C72: UN | D72: CR | E72: 31.26
A73: 44256 | B73: ADAPTADOR CPVC, ROSCAVEL, COM FLANGES E ANEL DE VEDACAO, 28 MM, CAIXA D'AGUA PARA AGUA QUENTE | C73: UN | D73: CR | E73: 35.3
A74: 44257 | B74: ADAPTADOR CPVC, ROSCAVEL, COM FLANGES E ANEL DE VEDACAO, 35 MM, CAIXA D'AGUA PARA AGUA QUENTE | C74: UN | D74: CR | E74: 55.85
A75: 44258 | B75: ADAPTADOR CPVC, ROSCAVEL, COM FLANGES E ANEL DE VEDACAO, 42 MM, CAIXA D'AGUA PARA AGUA QUENTE | C75: UN | D75: CR | E75: 63.83
A76: 44259 | B76: ADAPTADOR CPVC, ROSCAVEL, COM FLANGES E ANEL DE VEDACAO, 54 MM, CAIXA D'AGUA PARA AGUA QUENTE | C76: UN | D76: CR | E76: 87.62
A77: 37997 | B77: ADAPTADOR CPVC, SOLDAVEL, 15 MM, PARA AGUA QUENTE | C77: UN | D77: CR | E77: 16.8
A78: 37998 | B78: ADAPTADOR CPVC, SOLDAVEL, 22 MM, PARA AGUA QUENTE | C78: UN | D78: CR | E78: 22.49
A79: 55 | B79: ADAPTADOR DE COMPRESSAO EM POLIPROPILENO (PP), PARA TUBO EM PEAD, 20 MM X 1/2", PARA LIGACAO PREDIAL DE AGUA (NTS 179) | C79: UN | D79: AS | E79: 4.17
A80: 61 | B80: ADAPTADOR DE COMPRESSAO EM POLIPROPILENO (PP), PARA TUBO EM PEAD, 20 MM X 3/4", PARA LIGACAO PREDIAL DE AGUA (NTS 179) | C80: UN | D80: AS | E80: 3.94
A81: 62 | B81: ADAPTADOR DE COMPRESSAO EM POLIPROPILENO (PP), PARA TUBO EM PEAD, 32 MM X 1", PARA LIGACAO PREDIAL DE AGUA (NTS 179) | C81: UN | D81: AS | E81: 8.17
A82: 10899 | B82: ADAPTADOR EM LATAO, ENGATE RAPIDO 2 1/2" X ROSCA INTERNA 5 FIOS 2 1/2", PARA INSTALACAO PREDIAL DE COMBATE A INCENDIO | C82: UN | D82: CR | E82: 108.42
A83: 10900 | B83: ADAPTADOR EM LATAO, ENGATE RAPIDO1 1/2" X ROSCA INTERNA 5 FIOS 2 1/2", PARA INSTALACAO PREDIAL DE COMBATE A INCENDIO | C83: UN | D83: CR | E83: 84.85
A84: 47 | B84: ADAPTADOR PVC PBA, BOLSA/ROSCA, JE, DN 100 / DE 110 MM | C84: UN | D84: AS | E84: 72.28
A85: 48 | B85: ADAPTADOR PVC PBA, BOLSA/ROSCA, JE, DN 50 / DE 60 MM | C85: UN | D85: AS | E85: 18.85
A86: 46 | B86: ADAPTADOR PVC PBA, BOLSA/ROSCA, JE, DN 75 / DE 85 MM | C86: UN | D86: AS | E86: 42.27
A87: 52 | B87: ADAPTADOR PVC PBA, PONTA/ROSCA, JE, DN 50 / DE 60 MM | C87: UN | D87: AS | E87: 14.32
A88: 43 | B88: ADAPTADOR PVC PBA, PONTA/ROSCA, JE, DN 75 / DE 85 MM | C88: UN | D88: AS | E88: 48.34
A89: 103 | B89: ADAPTADOR PVC SOLDAVEL CURTO COM BOLSA E ROSCA, 110 MM X 4", PARA AGUA FRIA | C89: UN | D89: CR | E89: 37.81
A90: 107 | B90: ADAPTADOR PVC SOLDAVEL CURTO COM BOLSA E ROSCA, 20 MM X 1/2", PARA AGUA FRIA | C90: UN | D90: CR | E90: 0.71
A91: 65 | B91: ADAPTADOR PVC SOLDAVEL CURTO COM BOLSA E ROSCA, 25 MM X 3/4", PARA AGUA FRIA | C91: UN | D91: CR | E91: 0.78
A92: 108 | B92: ADAPTADOR PVC SOLDAVEL CURTO COM BOLSA E ROSCA, 32 MM X 1", PARA AGUA FRIA | C92: UN | D92: CR | E92: 1.56
A93: 110 | B93: ADAPTADOR PVC SOLDAVEL CURTO COM BOLSA E ROSCA, 40 MM X 1 1/2", PARA AGUA FRIA | C93: UN | D93: CR | E93: 5.44
A94: 109 | B94: ADAPTADOR PVC SOLDAVEL CURTO COM BOLSA E ROSCA, 40 MM X 1 1/4", PARA AGUA FRIA | C94: UN | D94: CR | E94: 3.24
A95: 111 | B95: ADAPTADOR PVC SOLDAVEL CURTO COM BOLSA E ROSCA, 50 MM X 1 1/4", PARA AGUA FRIA | C95: UN | D95: CR | E95: 7.36
A96: 112 | B96: ADAPTADOR PVC SOLDAVEL CURTO COM BOLSA E ROSCA, 50 MM X1 1/2", PARA AGUA FRIA | C96: UN | D96: CR | E96: 3.9
A97: 113 | B97: ADAPTADOR PVC SOLDAVEL CURTO COM BOLSA E ROSCA, 60 MM X 2", PARA AGUA FRIA | C97: UN | D97: CR | E97: 9.76
A98: 104 | B98: ADAPTADOR PVC SOLDAVEL CURTO COM BOLSA E ROSCA, 75 MM X 2 1/2", PARA AGUA FRIA | C98: UN | D98: CR | E98: 16.99
A99: 102 | B99: ADAPTADOR PVC SOLDAVEL CURTO COM BOLSA E ROSCA, 85 MM X 3", PARA AGUA FRIA | C99: UN | D99: CR | E99: 23.43
A100: 95 | B100: ADAPTADOR PVC SOLDAVEL, COM FLANGE E ANEL DE VEDACAO, 20 MM X 1/2", PARA CAIXA D'AGUA | C100: UN | D100: CR | E100: 9.9
A101: 96 | B101: ADAPTADOR PVC SOLDAVEL, COM FLANGE E ANEL DE VEDACAO, 25 MM X 3/4", PARA CAIXA D'AGUA | C101: UN | D101: CR | E101: 10.77
A102: 97 | B102: ADAPTADOR PVC SOLDAVEL, COM FLANGE E ANEL DE VEDACAO, 32 MM X 1", PARA CAIXA D'AGUA | C102: UN | D102: CR | E102: 16.2
A103: 98 | B103: ADAPTADOR PVC SOLDAVEL, COM FLANGE E ANEL DE VEDACAO, 40 MM X 1 1/4", PARA CAIXA D'AGUA | C103: UN | D103: CR | E103: 24.25
A104: 99 | B104: ADAPTADOR PVC SOLDAVEL, COM FLANGE E ANEL DE VEDACAO, 50 MM X 1 1/2", PARA CAIXA D'AGUA | C104: UN | D104: CR | E104: 22.92
A105: 60 | B105: ADAPTADOR PVC, COM REGISTRO, PARA PEAD, 20 MM X 3/4", PARA LIGACAO PREDIAL DE AGUA | C105: UN | D105: AS | E105: 5.41
A106: 72 | B106: ADAPTADOR PVC, ROSCAVEL, COM FLANGES E ANEL DE VEDACAO, 1 1/2", PARA CAIXA D'AGUA | C106: UN | D106: CR | E106: 43.96
A107: 67 | B107: ADAPTADOR PVC, ROSCAVEL, COM FLANGES E ANEL DE VEDACAO, 1/2", PARA CAIXA D'AGUA | C107: UN | D107: CR | E107: 14.21
A108: 71 | B108: ADAPTADOR PVC, ROSCAVEL, COM FLANGES E ANEL DE VEDACAO, 1", PARA CAIXA D'AGUA | C108: UN | D108: CR | E108: 27.15
A109: 73 | B109: ADAPTADOR PVC, ROSCAVEL, COM FLANGES E ANEL DE VEDACAO, 3/4", PARA CAIXA D'AGUA | C109: UN | D109: CR | E109: 13.6
A110: 100 | B110: ADAPTADOR PVC, SOLDAVEL, COM FLANGES E ANEL DE VEDACAO, 60 MM X 2", PARA CAIXA D'AGUA | C110: UN | D110: CR | E110: 40.05
A111: 75 | B111: ADAPTADOR PVC, SOLDAVEL, COM FLANGES LIVRES, 110 MM X 4", PARA CAIXA D'AGUA | C111: UN | D111: CR | E111: 233.48
A112: 83 | B112: ADAPTADOR PVC, SOLDAVEL, COM FLANGES LIVRES, 75 MM X 2 1/2", PARA CAIXA D'AGUA | C112: UN | D112: CR | E112: 186.66
A113: 74 | B113: ADAPTADOR PVC, SOLDAVEL, COM FLANGES LIVRES, 85 MM X 3", PARA CAIXA D'AGUA | C113: UN | D113: CR | E113: 266.87
A114: 106 | B114: ADAPTADOR PVC, SOLDAVEL, LONGO, COM FLANGE LIVRE, 110 MM X 4", PARA CAIXA D'AGUA | C114: UN | D114: CR | E114: 337.47
A115: 88 | B115: ADAPTADOR PVC, SOLDAVEL, LONGO, COM FLANGE LIVRE, 32 MM X 1", PARA CAIXA D'AGUA | C115: UN | D115: CR | E115: 9.48
A116: 82 | B116: ADAPTADOR PVC, SOLDAVEL, LONGO, COM FLANGE LIVRE, 75 MM X 2 1/2", PARA CAIXA D'AGUA | C116: UN | D116: CR | E116: 177.59
A117: 105 | B117: ADAPTADOR PVC, SOLDAVEL, LONGO, COM FLANGE LIVRE, 85 MM X 3", PARA CAIXA D'AGUA | C117: UN | D117: CR | E117: 251.65
A118: 39719 | B118: ADESIVO / COLA DE CONTATO LIQUIDO, A BASE DE RESINAS, PARA COLAGEM DE ESPUMA PARA ISOLAMENTO TERMICO FLEXIVEL | C118: L | D118: CR | E118: 150.11
A119: 3410 | B119: ADESIVO / COLA PARA EPS (ISOPOR) E OUTROS MATERIAIS | C119: KG | D119: CR | E119: 33.76
A120: 4791 | B120: ADESIVO ACRILICO DE BASE AQUOSA / COLA DE CONTATO | C120: KG | D120: CR | E120: 45.49
A121: 157 | B121: ADESIVO ESTRUTURAL A BASE DE RESINA EPOXI PARA INJECAO EM TRINCAS, BICOMPONENTE, BAIXA VISCOSIDADE | C121: KG | D121: CR | E121: 174.23
A122: 156 | B122: ADESIVO ESTRUTURAL A BASE DE RESINA EPOXI, BICOMPONENTE, FLUIDO | C122: KG | D122: CR | E122: 62.03
A123: 131 | B123: ADESIVO ESTRUTURAL A BASE DE RESINA EPOXI, BICOMPONENTE, PASTOSO (TIXOTROPICO) | C123: KG | D123: CR | E123: 53.05
A124: 21114 | B124: ADESIVO PARA TUBOS CPVC, *75* G | C124: UN | D124: CR | E124: 29.59
A125: 119 | B125: ADESIVO PLASTICO PARA PVC, BISNAGA COM 75 GR | C125: UN | D125: C | E125: 7.5
A126: 122 | B126: ADESIVO PLASTICO PARA PVC, FRASCO COM *850* GR | C126: UN | D126: CR | E126: 57.7
A127: 20080 | B127: ADESIVO PLASTICO PARA PVC, FRASCO COM 175 GR | C127: UN | D127: CR | E127: 18.83
A128: 124 | B128: ADITIVO ACELERADOR DE PEGA E ENDURECIMENTO PARA ARGAMASSAS E CONCRETOS, LIQUIDO E ISENTO DE CLORETOS | C128: L | D128: CR | E128: 20.46
A129: 7334 | B129: ADITIVO ADESIVO LIQUIDO PARA ARGAMASSAS DE REVESTIMENTOS CIMENTICIOS | C129: L | D129: CR | E129: 16.58
A130: 45146 | B130: ADITIVO IMPERMEABILIZANTE CRISTALIZANTE PARA CONCRETO | C130: KG | D130: CR | E130: 39.23
A131: 123 | B131: ADITIVO IMPERMEABILIZANTE DE PEGA NORMAL PARA ARGAMASSAS E CONCRETOS SEM ARMACAO, LIQUIDO E ISENTO DE CLORETOS | C131: L | D131: C | E131: 8.37
A132: 127 | B132: ADITIVO IMPERMEABILIZANTE DE PEGA ULTRARRAPIDA, LIQUIDO E ISENTO DE CLORETOS | C132: L | D132: CR | E132: 19.98
A133: 133 | B133: ADITIVO LIQUIDO INCORPORADOR DE AR PARA CONCRETO E ARGAMASSA, LIQUIDO E ISENTO DE CLORETOS | C133: L | D133: CR | E133: 8.3
A134: 43617 | B134: ADITIVO PLASTIFICANTE E ESTABILIZADOR PARA ARGAMASSAS DE ASSENTAMENTO E REBOCO, LIQUIDO E ISENTO DE CLORETOS | C134: L | D134: CR | E134: 9.27
A135: 132 | B135: ADITIVO PLASTIFICANTE RETARDADOR DE PEGA E REDUTOR DE AGUA PARA CONCRETO, LIQUIDO E ISENTO DE CLORETOS | C135: L | D135: CR | E135: 8.6
A136: 43618 | B136: ADITIVO SUPERPLASTIFICANTE DE PEGA NORMAL PARA CONCRETO, LIQUIDO E ISENTO DE CLORETOS | C136: KG | D136: CR | E136: 21.66
A137: 37476 | B137: ADUELA/ GALERIA PRE-MOLDADA DE CONCRETO ARMADO, SECAO QUADRADA INTERNA DE 1,50 X 1,50 M (L X A), MISULA DE 20 X 20 CM, C = 1,00 M, ESPESSURA MIN = 15 CM, TB-45 E FCK DO CONCRETO = 30 MPA | C137: UN | D137: CR | E137: 3244.53
A138: 37478 | B138: ADUELA/ GALERIA PRE-MOLDADA DE CONCRETO ARMADO, SECAO RETANGULAR INTERNA DE 2,00 X 2,00 M (L X A), MISULA DE 20 X 20 CM, C = 1,00 M, ESPESSURA MIN = 15 CM, TB-45 E FCK DO CONCRETO = 30 MPA | C138: UN | D138: CR | E138: 4063.86
A139: 37477 | B139: ADUELA/ GALERIA PRE-MOLDADA DE CONCRETO ARMADO, SECAO RETANGULAR INTERNA DE 2,50 X 2,50 M (L X A), MISULA DE 20 X 20 CM, C = 1,00 M, ESPESSURA MIN = 15 CM, TB-45 E FCK DO CONCRETO = 30 MPA | C139: UN | D139: CR | E139: 5505.88
A140: 37479 | B140: ADUELA/ GALERIA PRE-MOLDADA DE CONCRETO ARMADO, SECAO RETANGULAR INTERNA DE 3,00 X 3,00 M (L X A), MISULA DE 20 X 20 CM, C = 1.00 M, ESPESSURA MIN = 20 CM, TB-45 E FCK DO CONCRETO = 30 MPA | C140: UN | D140: CR | E140: 6530.04
A141: 4319 | B141: AFASTADOR PARA TELHA DE FIBROCIMENTO CANALETE 90 OU KALHETAO | C141: UN | D141: CR | E141: 1.44
A142: 42409 | B142: AGENTE DE CURA, PROTETOR DA EVAPORACAO DA AGUA DE HIDRATACAO DO CONCRETO | C142: KG | D142: CR | E142: 13.64
A143: 40553 | B143: AGREGADO RECICLADO, TIPO RACHAO RECICLADO CINZA, CLASSE A | C143: M3 | D143: AS | E143: 60
A144: 6114 | B144: AJUDANTE DE ARMADOR (HORISTA) | C144: H | D144: CR | E144: 16.75
A145: 40912 | B145: AJUDANTE DE ARMADOR (MENSALISTA) | C145: MES | D145: CR | E145: 2929.3
A146: 247 | B146: AJUDANTE DE ELETRICISTA (HORISTA) | C146: H | D146: CR | E146: 16.75
A147: 40919 | B147: AJUDANTE DE ELETRICISTA (MENSALISTA) | C147: MES | D147: CR | E147: 2929.3
A148: 44499 | B148: AJUDANTE DE ESTRUTURAS METALICAS (HORISTA) | C148: H | D148: CR | E148: 16.75
A149: 40984 | B149: AJUDANTE DE ESTRUTURAS METALICAS (MENSALISTA) | C149: MES | D149: CR | E149: 2929.3
A150: 248 | B150: AJUDANTE DE OPERACAO EM GERAL (HORISTA) | C150: H | D150: CR | E150: 16.9
A151: 41086 | B151: AJUDANTE DE OPERACAO EM GERAL (MENSALISTA) | C151: MES | D151: CR | E151: 2955.26
A152: 34466 | B152: AJUDANTE DE PINTOR (HORISTA) | C152: H | D152: CR | E152: 16.75
A153: 41083 | B153: AJUDANTE DE PINTOR (MENSALISTA) | C153: MES | D153: CR | E153: 2929.3
A154: 252 | B154: AJUDANTE DE SERRALHEIRO (HORISTA) | C154: H | D154: CR | E154: 16.75
A155: 40909 | B155: AJUDANTE DE SERRALHEIRO (MENSALISTA) | C155: MES | D155: CR | E155: 2929.3
A156: 242 | B156: AJUDANTE ESPECIALIZADO (HORISTA) | C156: H | D156: CR | E156: 16.9
A157: 41085 | B157: AJUDANTE ESPECIALIZADO (MENSALISTA) | C157: MES | D157: CR | E157: 2955.26
A158: 427 | B158: ALCA PREFORMADA DE CONTRA POSTE, EM ACO GALVANIZADO, PARA CABO 3/16", COMPRIMENTO *860* MM | C158: UN | D158: AS | E158: 6.93
A159: 417 | B159: ALCA PREFORMADA DE DISTRIBUICAO, EM ACO GALVANIZADO, PARA CABO DE ALUMINIO DIAMETRO 16 A 25 MM | C159: UN | D159: AS | E159: 3.26
A160: 11273 | B160: ALCA PREFORMADA DE DISTRIBUICAO, EM ACO GALVANIZADO, PARA CONDUTORES DE ALUMINIO AWG 1/0 (CAA 6/1 OU CA 7 FIOS) | C160: UN | D160: AS | E160: 10.13
A161: 11272 | B161: ALCA PREFORMADA DE DISTRIBUICAO, EM ACO GALVANIZADO, PARA CONDUTORES DE ALUMINIO AWG 2 (CAA 6/1 OU CA 7 FIOS) | C161: UN | D161: AS | E161: 6.12
A162: 11275 | B162: ALCA PREFORMADA DE SERVICO, EM ACO GALVANIZADO, PARA CONDUTORES DE ALUMINIO AWG 4 (CAA 6/1) | C162: UN | D162: AS | E162: 2.45
A163: 11274 | B163: ALCA PREFORMADA DE SERVICO, EM ACO GALVANIZADO, PARA CONDUTORES DE ALUMINIO AWG 6 (CAA 6/1) | C163: UN | D163: AS | E163: 1.87
A164: 38470 | B164: ALICATE DE CORTE DIAGONAL 6" COM ISOLAMENTO | C164: UN | D164: C | E164: 39.99
A165: 38547 | B165: ALICATE DE CRIMPAR RJ11, RJ12 E RJ45 | C165: UN | D165: CR | E165: 109.12
A166: 38469 | B166: ALICATE DE PRESSAO PARA SOLDA DE CHAPA 18" | C166: UN | D166: CR | E166: 117.34
A167: 38467 | B167: ALICATE DE PRESSAO 11" PARA SOLDA, TIPO C | C167: UN | D167: CR | E167: 66.02
A168: 38468 | B168: ALICATE DE PRESSAO 11" PARA SOLDA, TIPO U | C168: UN | D168: CR | E168: 72.65
A169: 38471 | B169: ALICATE PARA ANEIS DE PISTAO, CAPACIDADE 50 A 100 MM | C169: UN | D169: CR | E169: 94.35
A170: 37370 | B170: ALIMENTACAO - HORISTA (COLETADO CAIXA - ENCARGOS COMPLEMENTARES) | C170: H | D170: C | E170: 1.02
A171: 40862 | B171: ALIMENTACAO - MENSALISTA (COLETADO CAIXA - ENCARGOS COMPLEMENTARES) | C171: MES | D171: C | E171: 192.94
A172: 10658 | B172: ALISADORA DE CONCRETO COM MOTOR A GASOLINA DE 5,5 HP, PESO COM MOTOR DE 78 KG, 4 PAS | C172: UN | D172: AS | E172: 7709
A173: 253 | B173: ALMOXARIFE (HORISTA) | C173: H | D173: C | E173: 20.99
A174: 40809 | B174: ALMOXARIFE (MENSALISTA) | C174: MES | D174: CR | E174: 3668.94
A175: 42428 | B175: ALONGADOR COM TRES ALTURAS, EM TUBO DE ACO CARBONO, PINTURA NO PROCESSO ELETROSTATICO - EQUIPAMENTO DE GINASTICA PARA ACADEMIA AO AR LIVRE / ACADEMIA DA TERCEIRA IDADE - ATI | C175: UN | D175: AS | E175: 2271
A176: 301 | B176: ANEL BORRACHA PARA TUBO ESGOTO PREDIAL, DN 100 MM (NBR 5688) | C176: UN | D176: C | E176: 4
A177: 296 | B177: ANEL BORRACHA PARA TUBO ESGOTO PREDIAL, DN 50 MM (NBR 5688) | C177: UN | D177: CR | E177: 2.26
A178: 297 | B178: ANEL BORRACHA PARA TUBO ESGOTO PREDIAL, DN 75 MM (NBR 5688) | C178: UN | D178: CR | E178: 3.32
A179: 299 | B179: ANEL BORRACHA, DN 100 MM, PARA TUBO SERIE REFORCADA ESGOTO PREDIAL | C179: UN | D179: CR | E179: 4.69
A180: 300 | B180: ANEL BORRACHA, DN 150 MM, PARA TUBO SERIE REFORCADA ESGOTO PREDIAL | C180: UN | D180: CR | E180: 16.24
A181: 20085 | B181: ANEL BORRACHA, DN 50 MM, PARA TUBO SERIE REFORCADA ESGOTO PREDIAL | C181: UN | D181: CR | E181: 2.97
A182: 298 | B182: ANEL BORRACHA, DN 75 MM, PARA TUBO SERIE REFORCADA ESGOTO PREDIAL | C182: UN | D182: CR | E182: 3.61
A183: 311 | B183: ANEL BORRACHA, PARA TUBO PVC DEFOFO, DN 100 MM (NBR 7665) | C183: UN | D183: CR | E183: 13.39
A184: 318 | B184: ANEL BORRACHA, PARA TUBO PVC DEFOFO, DN 150 MM (NBR 7665) | C184: UN | D184: CR | E184: 26.97
A185: 319 | B185: ANEL BORRACHA, PARA TUBO PVC DEFOFO, DN 200 MM (NBR 7665) | C185: UN | D185: CR | E185: 42.28
A186: 303 | B186: ANEL BORRACHA, PARA TUBO PVC, REDE COLETOR ESGOTO, DN 100 MM (NBR 7362) | C186: UN | D186: CR | E186: 4.43
A187: 305 | B187: ANEL BORRACHA, PARA TUBO PVC, REDE COLETOR ESGOTO, DN 150 MM (NBR 7362) | C187: UN | D187: CR | E187: 13.94
A188: 306 | B188: ANEL BORRACHA, PARA TUBO PVC, REDE COLETOR ESGOTO, DN 200 MM (NBR 7362) | C188: UN | D188: CR | E188: 21.14
A189: 307 | B189: ANEL BORRACHA, PARA TUBO PVC, REDE COLETOR ESGOTO, DN 250 MM (NBR 7362) | C189: UN | D189: CR | E189: 53.41
A190: 309 | B190: ANEL BORRACHA, PARA TUBO PVC, REDE COLETOR ESGOTO, DN 350 MM (NBR 7362) | C190: UN | D190: CR | E190: 87.49
A191: 310 | B191: ANEL BORRACHA, PARA TUBO PVC, REDE COLETOR ESGOTO, DN 400 MM (NBR 7362) | C191: UN | D191: CR | E191: 121.26
A192: 328 | B192: ANEL BORRACHA, PARA TUBO/CONEXAO PVC PBA, DN 100 MM, PARA REDE AGUA | C192: UN | D192: CR | E192: 10.6
A193: 325 | B193: ANEL BORRACHA, PARA TUBO/CONEXAO PVC PBA, DN 50 MM, PARA REDE AGUA | C193: UN | D193: CR | E193: 3.13
A194: 20326 | B194: ANEL BORRACHA, PARA TUBO/CONEXAO PVC PBA, DN 60 MM, PARA REDE AGUA | C194: UN | D194: CR | E194: 5.72
A195: 329 | B195: ANEL BORRACHA, PARA TUBO/CONEXAO PVC PBA, DN 75 MM, PARA REDE AGUA | C195: UN | D195: CR | E195: 8.86
A196: 308 | B196: ANEL BORRACHA, PARA TUBO, PVC REDE COLETOR ESGOTO, DN 300 MM (NBR 7362) | C196: UN | D196: CR | E196: 119.21
A197: 39642 | B197: ANEL DE BORRACHA PARA VEDACAO DE DUTO PEAD CORRUGADO PARA ELETRICA, DN 1 1/2" (NBR 15715) | C197: UN | D197: CR | E197: 3.93
A198: 39641 | B198: ANEL DE BORRACHA PARA VEDACAO DE DUTO PEAD CORRUGADO PARA ELETRICA, DN 1 1/4" (NBR 15715) | C198: UN | D198: CR | E198: 3.45
A199: 39643 | B199: ANEL DE BORRACHA PARA VEDACAO DE DUTO PEAD CORRUGADO PARA ELETRICA, DN 2" (NBR 15715) | C199: UN | D199: CR | E199: 4.61
A200: 39644 | B200: ANEL DE BORRACHA PARA VEDACAO DE DUTO PEAD CORRUGADO PARA ELETRICA, DN 3" (NBR 15715) | C200: UN | D200: CR | E200: 7.15
... 4612 more rows

Sheet Comp-SINAPI
A1: CODIGO DA COMPOSICAO | B1: DESCRICAO DA COMPOSICAO | C1: UNIDADE | D1: ORIGEM DE PREÇO | E1: CUSTO TOTAL
A3: 97141 | B3: ASSENTAMENTO DE TUBO DE FERRO FUNDIDO PARA REDE DE ÁGUA, DN 80 MM, JUNTA ELÁSTICA, INSTALADO EM LOCAL COM NÍVEL ALTO DE INTERFERÊNCIAS (NÃO INCLUI FORNECIMENTO). AF_05/2024 | C3: M | D3: COEFICIENTE DE REPRESENTATIVIDADE | E3: 5.03
A4: 97142 | B4: ASSENTAMENTO DE TUBO DE FERRO FUNDIDO PARA REDE DE ÁGUA, DN 100 MM, JUNTA ELÁSTICA, INSTALADO EM LOCAL COM NÍVEL ALTO DE INTERFERÊNCIAS (NÃO INCLUI FORNECIMENTO). AF_05/2024 | C4: M | D4: COEFICIENTE DE REPRESENTATIVIDADE | E4: 5.8
A5: 97143 | B5: ASSENTAMENTO DE TUBO DE FERRO FUNDIDO PARA REDE DE ÁGUA, DN 150 MM, JUNTA ELÁSTICA, INSTALADO EM LOCAL COM NÍVEL ALTO DE INTERFERÊNCIAS (NÃO INCLUI FORNECIMENTO). AF_05/2024 | C5: M | D5: COEFICIENTE DE REPRESENTATIVIDADE | E5: 7.63
A6: 97144 | B6: ASSENTAMENTO DE TUBO DE FERRO FUNDIDO PARA REDE DE ÁGUA, DN 200 MM, JUNTA ELÁSTICA, INSTALADO EM LOCAL COM NÍVEL ALTO DE INTERFERÊNCIAS (NÃO INCLUI FORNECIMENTO). AF_05/2024 | C6: M | D6: COEFICIENTE DE REPRESENTATIVIDADE | E6: 9.48
A7: 97145 | B7: ASSENTAMENTO DE TUBO DE FERRO FUNDIDO PARA REDE DE ÁGUA, DN 250 MM, JUNTA ELÁSTICA, INSTALADO EM LOCAL COM NÍVEL ALTO DE INTERFERÊNCIAS (NÃO INCLUI FORNECIMENTO). AF_05/2024 | C7: M | D7: COEFICIENTE DE REPRESENTATIVIDADE | E7: 11.35
A8: 97146 | B8: ASSENTAMENTO DE TUBO DE FERRO FUNDIDO PARA REDE DE ÁGUA, DN 300 MM, JUNTA ELÁSTICA, INSTALADO EM LOCAL COM NÍVEL ALTO DE INTERFERÊNCIAS (NÃO INCLUI FORNECIMENTO). AF_05/2024 | C8: M | D8: COEFICIENTE DE REPRESENTATIVIDADE | E8: 13.21
A9: 97147 | B9: ASSENTAMENTO DE TUBO DE FERRO FUNDIDO PARA REDE DE ÁGUA, DN 350 MM, JUNTA ELÁSTICA, INSTALADO EM LOCAL COM NÍVEL ALTO DE INTERFERÊNCIAS (NÃO INCLUI FORNECIMENTO). AF_05/2024 | C9: M | D9: COEFICIENTE DE REPRESENTATIVIDADE | E9: 15.07
A10: 97148 | B10: ASSENTAMENTO DE TUBO DE FERRO FUNDIDO PARA REDE DE ÁGUA, DN 400 MM, JUNTA ELÁSTICA, INSTALADO EM LOCAL COM NÍVEL ALTO DE INTERFERÊNCIAS (NÃO INCLUI FORNECIMENTO). AF_05/2024 | C10: M | D10: COEFICIENTE DE REPRESENTATIVIDADE | E10: 16.94
A11: 97149 | B11: ASSENTAMENTO DE TUBO DE FERRO FUNDIDO PARA REDE DE ÁGUA, DN 450 MM, JUNTA ELÁSTICA, INSTALADO EM LOCAL COM NÍVEL ALTO DE INTERFERÊNCIAS (NÃO INCLUI FORNECIMENTO). AF_05/2024 | C11: M | D11: COEFICIENTE DE REPRESENTATIVIDADE | E11: 18.84
A12: 97150 | B12: ASSENTAMENTO DE TUBO DE FERRO FUNDIDO PARA REDE DE ÁGUA, DN 500 MM, JUNTA ELÁSTICA, INSTALADO EM LOCAL COM NÍVEL ALTO DE INTERFERÊNCIAS (NÃO INCLUI FORNECIMENTO). AF_05/2024 | C12: M | D12: COEFICIENTE DE REPRESENTATIVIDADE | E12: 23.58
A13: 97151 | B13: ASSENTAMENTO DE TUBO DE FERRO FUNDIDO PARA REDE DE ÁGUA, DN 600 MM, JUNTA ELÁSTICA, INSTALADO EM LOCAL COM NÍVEL ALTO DE INTERFERÊNCIAS (NÃO INCLUI FORNECIMENTO). AF_05/2024 | C13: M | D13: COEFICIENTE DE REPRESENTATIVIDADE | E13: 27.77
A14: 97152 | B14: ASSENTAMENTO DE TUBO DE FERRO FUNDIDO PARA REDE DE ÁGUA, DN 700 MM, JUNTA ELÁSTICA, INSTALADO EM LOCAL COM NÍVEL ALTO DE INTERFERÊNCIAS (NÃO INCLUI FORNECIMENTO). AF_05/2024 | C14: M | D14: COEFICIENTE DE REPRESENTATIVIDADE | E14: 31.74
A15: 97153 | B15: ASSENTAMENTO DE TUBO DE FERRO FUNDIDO PARA REDE DE ÁGUA, DN 800 MM, JUNTA ELÁSTICA, INSTALADO EM LOCAL COM NÍVEL ALTO DE INTERFERÊNCIAS (NÃO INCLUI FORNECIMENTO). AF_05/2024 | C15: M | D15: COEFICIENTE DE REPRESENTATIVIDADE | E15: 35.85
A16: 97154 | B16: ASSENTAMENTO DE TUBO DE FERRO FUNDIDO PARA REDE DE ÁGUA, DN 900 MM, JUNTA ELÁSTICA, INSTALADO EM LOCAL COM NÍVEL ALTO DE INTERFERÊNCIAS (NÃO INCLUI FORNECIMENTO). AF_05/2024 | C16: M | D16: COEFICIENTE DE REPRESENTATIVIDADE | E16: 40.01
A17: 97155 | B17: ASSENTAMENTO DE TUBO DE FERRO FUNDIDO PARA REDE DE ÁGUA, DN 1000 MM, JUNTA ELÁSTICA, INSTALADO EM LOCAL COM NÍVEL ALTO DE INTERFERÊNCIAS (NÃO INCLUI FORNECIMENTO). AF_05/2024 | C17: M | D17: COEFICIENTE DE REPRESENTATIVIDADE | E17: 44.15
A18: 97156 | B18: ASSENTAMENTO DE TUBO DE FERRO FUNDIDO PARA REDE DE ÁGUA, DN 1200 MM, JUNTA ELÁSTICA, INSTALADO EM LOCAL COM NÍVEL ALTO DE INTERFERÊNCIAS (NÃO INCLUI FORNECIMENTO). AF_05/2024 | C18: M | D18: COEFICIENTE DE REPRESENTATIVIDADE | E18: 52.82
A19: 97157 | B19: ASSENTAMENTO DE TUBO DE FERRO FUNDIDO PARA REDE DE ÁGUA, DN 80 MM, JUNTA ELÁSTICA, INSTALADO EM LOCAL COM NÍVEL BAIXO DE INTERFERÊNCIAS (NÃO INCLUI FORNECIMENTO). AF_05/2024 | C19: M | D19: COEFICIENTE DE REPRESENTATIVIDADE | E19: 3.77
A20: 97158 | B20: ASSENTAMENTO DE TUBO DE FERRO FUNDIDO PARA REDE DE ÁGUA, DN 100 MM, JUNTA ELÁSTICA, INSTALADO EM LOCAL COM NÍVEL BAIXO DE INTERFERÊNCIAS (NÃO INCLUI FORNECIMENTO). AF_05/2024 | C20: M | D20: COEFICIENTE DE REPRESENTATIVIDADE | E20: 4.39
A21: 97159 | B21: ASSENTAMENTO DE TUBO DE FERRO FUNDIDO PARA REDE DE ÁGUA, DN 150 MM, JUNTA ELÁSTICA, INSTALADO EM LOCAL COM NÍVEL BAIXO DE INTERFERÊNCIAS (NÃO INCLUI FORNECIMENTO). AF_05/2024 | C21: M | D21: COEFICIENTE DE REPRESENTATIVIDADE | E21: 5.9
A22: 97160 | B22: ASSENTAMENTO DE TUBO DE FERRO FUNDIDO PARA REDE DE ÁGUA, DN 200 MM, JUNTA ELÁSTICA, INSTALADO EM LOCAL COM NÍVEL BAIXO DE INTERFERÊNCIAS (NÃO INCLUI FORNECIMENTO). AF_05/2024 | C22: M | D22: COEFICIENTE DE REPRESENTATIVIDADE | E22: 7.41
A23: 97161 | B23: ASSENTAMENTO DE TUBO DE FERRO FUNDIDO PARA REDE DE ÁGUA, DN 250 MM, JUNTA ELÁSTICA, INSTALADO EM LOCAL COM NÍVEL BAIXO DE INTERFERÊNCIAS (NÃO INCLUI FORNECIMENTO). AF_05/2024 | C23: M | D23: COEFICIENTE DE REPRESENTATIVIDADE | E23: 8.95
A24: 97162 | B24: ASSENTAMENTO DE TUBO DE FERRO FUNDIDO PARA REDE DE ÁGUA, DN 300 MM, JUNTA ELÁSTICA, INSTALADO EM LOCAL COM NÍVEL BAIXO DE INTERFERÊNCIAS (NÃO INCLUI FORNECIMENTO). AF_05/2024 | C24: M | D24: COEFICIENTE DE REPRESENTATIVIDADE | E24: 10.49
A25: 97163 | B25: ASSENTAMENTO DE TUBO DE FERRO FUNDIDO PARA REDE DE ÁGUA, DN 350 MM, JUNTA ELÁSTICA, INSTALADO EM LOCAL COM NÍVEL BAIXO DE INTERFERÊNCIAS (NÃO INCLUI FORNECIMENTO). AF_05/2024 | C25: M | D25: COEFICIENTE DE REPRESENTATIVIDADE | E25: 12.01
A26: 97164 | B26: ASSENTAMENTO DE TUBO DE FERRO FUNDIDO PARA REDE DE ÁGUA, DN 400 MM, JUNTA ELÁSTICA, INSTALADO EM LOCAL COM NÍVEL BAIXO DE INTERFERÊNCIAS (NÃO INCLUI FORNECIMENTO). AF_05/2024 | C26: M | D26: COEFICIENTE DE REPRESENTATIVIDADE | E26: 13.55
A27: 97165 | B27: ASSENTAMENTO DE TUBO DE FERRO FUNDIDO PARA REDE DE ÁGUA, DN 450 MM, JUNTA ELÁSTICA, INSTALADO EM LOCAL COM NÍVEL BAIXO DE INTERFERÊNCIAS (NÃO INCLUI FORNECIMENTO). AF_05/2024 | C27: M | D27: COEFICIENTE DE REPRESENTATIVIDADE | E27: 15.1
A28: 97166 | B28: ASSENTAMENTO DE TUBO DE FERRO FUNDIDO PARA REDE DE ÁGUA, DN 500 MM, JUNTA ELÁSTICA, INSTALADO EM LOCAL COM NÍVEL BAIXO DE INTERFERÊNCIAS (NÃO INCLUI FORNECIMENTO). AF_05/2024 | C28: M | D28: COEFICIENTE DE REPRESENTATIVIDADE | E28: 18.57
A29: 97167 | B29: ASSENTAMENTO DE TUBO DE FERRO FUNDIDO PARA REDE DE ÁGUA, DN 600 MM, JUNTA ELÁSTICA, INSTALADO EM LOCAL COM NÍVEL BAIXO DE INTERFERÊNCIAS (NÃO INCLUI FORNECIMENTO). AF_05/2024 | C29: M | D29: COEFICIENTE DE REPRESENTATIVIDADE | E29: 21.96
A30: 97168 | B30: ASSENTAMENTO DE TUBO DE FERRO FUNDIDO PARA REDE DE ÁGUA, DN 700 MM, JUNTA ELÁSTICA, INSTALADO EM LOCAL COM NÍVEL BAIXO DE INTERFERÊNCIAS (NÃO INCLUI FORNECIMENTO). AF_05/2024 | C30: M | D30: COEFICIENTE DE REPRESENTATIVIDADE | E30: 25.13
A31: 97169 | B31: ASSENTAMENTO DE TUBO DE FERRO FUNDIDO PARA REDE DE ÁGUA, DN 800 MM, JUNTA ELÁSTICA, INSTALADO EM LOCAL COM NÍVEL BAIXO DE INTERFERÊNCIAS (NÃO INCLUI FORNECIMENTO). AF_05/2024 | C31: M | D31: COEFICIENTE DE REPRESENTATIVIDADE | E31: 28.44
A32: 97170 | B32: ASSENTAMENTO DE TUBO DE FERRO FUNDIDO PARA REDE DE ÁGUA, DN 900 MM, JUNTA ELÁSTICA, INSTALADO EM LOCAL COM NÍVEL BAIXO DE INTERFERÊNCIAS (NÃO INCLUI FORNECIMENTO). AF_05/2024 | C32: M | D32: COEFICIENTE DE REPRESENTATIVIDADE | E32: 31.78
A33: 97171 | B33: ASSENTAMENTO DE TUBO DE FERRO FUNDIDO PARA REDE DE ÁGUA, DN 1000 MM, JUNTA ELÁSTICA, INSTALADO EM LOCAL COM NÍVEL BAIXO DE INTERFERÊNCIAS (NÃO INCLUI FORNECIMENTO). AF_05/2024 | C33: M | D33: COEFICIENTE DE REPRESENTATIVIDADE | E33: 35.12
A34: 97172 | B34: ASSENTAMENTO DE TUBO DE FERRO FUNDIDO PARA REDE DE ÁGUA, DN 1200 MM, JUNTA ELÁSTICA, INSTALADO EM LOCAL COM NÍVEL BAIXO DE INTERFERÊNCIAS (NÃO INCLUI FORNECIMENTO). AF_05/2024 | C34: M | D34: COEFICIENTE DE REPRESENTATIVIDADE | E34: 42.18
A35: 105249 | B35: ASSENTAMENTO DE CONEXÃO 2 ACESSOS ALINHADOS DE FERRO FUNDIDO PARA REDE DE ÁGUA, DN 1200, JUNTA ELÁSTICA, INSTALADO EM LOCAL COM NÍVEL ALTO DE INTERFERÊNCIAS (NÃO INCLUI FORNECIMENTO). AF_05/2024 | C35: UN | D35: COEFICIENTE DE REPRESENTATIVIDADE | E35: 116.02
A36: 105250 | B36: ASSENTAMENTO DE CONEXÃO 2 ACESSOS INCLINADOS DE FERRO FUNDIDO PARA REDE DE ÁGUA, DN 80, JUNTA ELÁSTICA, INSTALADO EM LOCAL COM NÍVEL ALTO DE INTERFERÊNCIAS (NÃO INCLUI FORNECIMENTO). AF_05/2024 | C36: UN | D36: COEFICIENTE DE REPRESENTATIVIDADE | E36: 15.89
A37: 105251 | B37: ASSENTAMENTO DE CONEXÃO 2 ACESSOS INCLINADOS DE FERRO FUNDIDO PARA REDE DE ÁGUA, DN 100, JUNTA ELÁSTICA, INSTALADO EM LOCAL COM NÍVEL ALTO DE INTERFERÊNCIAS (NÃO INCLUI FORNECIMENTO). AF_05/2024 | C37: UN | D37: COEFICIENTE DE REPRESENTATIVIDADE | E37: 18.25
A38: 105252 | B38: ASSENTAMENTO DE CONEXÃO 2 ACESSOS INCLINADOS DE FERRO FUNDIDO PARA REDE DE ÁGUA, DN 150, JUNTA ELÁSTICA, INSTALADO EM LOCAL COM NÍVEL ALTO DE INTERFERÊNCIAS (NÃO INCLUI FORNECIMENTO). AF_05/2024 | C38: UN | D38: COEFICIENTE DE REPRESENTATIVIDADE | E38: 24.03
A39: 105253 | B39: ASSENTAMENTO DE CONEXÃO 2 ACESSOS INCLINADOS DE FERRO FUNDIDO PARA REDE DE ÁGUA, DN 200, JUNTA ELÁSTICA, INSTALADO EM LOCAL COM NÍVEL ALTO DE INTERFERÊNCIAS (NÃO INCLUI FORNECIMENTO). AF_05/2024 | C39: UN | D39: COEFICIENTE DE REPRESENTATIVIDADE | E39: 29.83
A40: 105254 | B40: ASSENTAMENTO DE CONEXÃO 2 ACESSOS INCLINADOS DE FERRO FUNDIDO PARA REDE DE ÁGUA, DN 250, JUNTA ELÁSTICA, INSTALADO EM LOCAL COM NÍVEL ALTO DE INTERFERÊNCIAS (NÃO INCLUI FORNECIMENTO). AF_05/2024 | C40: UN | D40: COEFICIENTE DE REPRESENTATIVIDADE | E40: 35.75
A41: 105255 | B41: ASSENTAMENTO DE CONEXÃO 2 ACESSOS INCLINADOS DE FERRO FUNDIDO PARA REDE DE ÁGUA, DN 300, JUNTA ELÁSTICA, INSTALADO EM LOCAL COM NÍVEL ALTO DE INTERFERÊNCIAS (NÃO INCLUI FORNECIMENTO). AF_05/2024 | C41: UN | D41: COEFICIENTE DE REPRESENTATIVIDADE | E41: 41.68
A42: 105256 | B42: ASSENTAMENTO DE CONEXÃO 2 ACESSOS INCLINADOS DE FERRO FUNDIDO PARA REDE DE ÁGUA, DN 350, JUNTA ELÁSTICA, INSTALADO EM LOCAL COM NÍVEL ALTO DE INTERFERÊNCIAS (NÃO INCLUI FORNECIMENTO). AF_05/2024 | C42: UN | D42: COEFICIENTE DE REPRESENTATIVIDADE | E42: 47.59
A43: 105257 | B43: ASSENTAMENTO DE CONEXÃO 2 ACESSOS INCLINADOS DE FERRO FUNDIDO PARA REDE DE ÁGUA, DN 400, JUNTA ELÁSTICA, INSTALADO EM LOCAL COM NÍVEL ALTO DE INTERFERÊNCIAS (NÃO INCLUI FORNECIMENTO). AF_05/2024 | C43: UN | D43: COEFICIENTE DE REPRESENTATIVIDADE | E43: 53.48
A44: 105258 | B44: ASSENTAMENTO DE CONEXÃO 2 ACESSOS ALINHADOS DE FERRO FUNDIDO PARA REDE DE ÁGUA, DN 400, JUNTA ELÁSTICA, INSTALADO EM LOCAL COM NÍVEL BAIXO DE INTERFERÊNCIAS (NÃO INCLUI FORNECIMENTO). AF_05/2024 | C44: UN | D44: COEFICIENTE DE REPRESENTATIVIDADE | E44: 29.57
A45: 105259 | B45: ASSENTAMENTO DE CONEXÃO 3 ACESSOS DE FERRO FUNDIDO PARA REDE DE ÁGUA, DN 100, JUNTA ELÁSTICA, INSTALADO EM LOCAL COM NÍVEL BAIXO DE INTERFERÊNCIAS (NÃO INCLUI FORNECIMENTO). AF_05/2024 | C45: UN | D45: COEFICIENTE DE REPRESENTATIVIDADE | E45: 19.14
A46: 105261 | B46: ASSENTAMENTO DE CONEXÃO 2 ACESSOS ALINHADOS DE FERRO FUNDIDO PARA REDE DE ÁGUA, DN 450, JUNTA ELÁSTICA, INSTALADO EM LOCAL COM NÍVEL BAIXO DE INTERFERÊNCIAS (NÃO INCLUI FORNECIMENTO). AF_05/2024 | C46: UN | D46: COEFICIENTE DE REPRESENTATIVIDADE | E46: 33.06
A47: 105262 | B47: ASSENTAMENTO DE CONEXÃO 2 ACESSOS ALINHADOS DE FERRO FUNDIDO PARA REDE DE ÁGUA, DN 500, JUNTA ELÁSTICA, INSTALADO EM LOCAL COM NÍVEL BAIXO DE INTERFERÊNCIAS (NÃO INCLUI FORNECIMENTO). AF_05/2024 | C47: UN | D47: COEFICIENTE DE REPRESENTATIVIDADE | E47: 40.46
A48: 105263 | B48: ASSENTAMENTO DE CONEXÃO 2 ACESSOS ALINHADOS DE FERRO FUNDIDO PARA REDE DE ÁGUA, DN 600, JUNTA ELÁSTICA, INSTALADO EM LOCAL COM NÍVEL BAIXO DE INTERFERÊNCIAS (NÃO INCLUI FORNECIMENTO). AF_05/2024 | C48: UN | D48: COEFICIENTE DE REPRESENTATIVIDADE | E48: 48.01
A49: 105264 | B49: ASSENTAMENTO DE CONEXÃO 2 ACESSOS ALINHADOS DE FERRO FUNDIDO PARA REDE DE ÁGUA, DN 700, JUNTA ELÁSTICA, INSTALADO EM LOCAL COM NÍVEL BAIXO DE INTERFERÊNCIAS (NÃO INCLUI FORNECIMENTO). AF_05/2024 | C49: UN | D49: COEFICIENTE DE REPRESENTATIVIDADE | E49: 54.93
A50: 105265 | B50: ASSENTAMENTO DE CONEXÃO 2 ACESSOS ALINHADOS DE FERRO FUNDIDO PARA REDE DE ÁGUA, DN 800, JUNTA ELÁSTICA, INSTALADO EM LOCAL COM NÍVEL BAIXO DE INTERFERÊNCIAS (NÃO INCLUI FORNECIMENTO). AF_05/2024 | C50: UN | D50: COEFICIENTE DE REPRESENTATIVIDADE | E50: 62.07
A51: 105266 | B51: ASSENTAMENTO DE CONEXÃO 2 ACESSOS ALINHADOS DE FERRO FUNDIDO PARA REDE DE ÁGUA, DN 900, JUNTA ELÁSTICA, INSTALADO EM LOCAL COM NÍVEL BAIXO DE INTERFERÊNCIAS (NÃO INCLUI FORNECIMENTO). AF_05/2024 | C51: UN | D51: COEFICIENTE DE REPRESENTATIVIDADE | E51: 69.41
A52: 105267 | B52: ASSENTAMENTO DE CONEXÃO 2 ACESSOS ALINHADOS DE FERRO FUNDIDO PARA REDE DE ÁGUA, DN 1000, JUNTA ELÁSTICA, INSTALADO EM LOCAL COM NÍVEL BAIXO DE INTERFERÊNCIAS (NÃO INCLUI FORNECIMENTO). AF_05/2024 | C52: UN | D52: COEFICIENTE DE REPRESENTATIVIDADE | E52: 76.83
A53: 105268 | B53: ASSENTAMENTO DE CONEXÃO 2 ACESSOS ALINHADOS DE FERRO FUNDIDO PARA REDE DE ÁGUA, DN 1200, JUNTA ELÁSTICA, INSTALADO EM LOCAL COM NÍVEL BAIXO DE INTERFERÊNCIAS (NÃO INCLUI FORNECIMENTO). AF_05/2024 | C53: UN | D53: COEFICIENTE DE REPRESENTATIVIDADE | E53: 94.17
A54: 105269 | B54: ASSENTAMENTO DE CONEXÃO 2 ACESSOS INCLINADOS DE FERRO FUNDIDO PARA REDE DE ÁGUA, DN 80, JUNTA ELÁSTICA, INSTALADO EM LOCAL COM NÍVEL BAIXO DE INTERFERÊNCIAS (NÃO INCLUI FORNECIMENTO). AF_05/2024 | C54: UN | D54: COEFICIENTE DE REPRESENTATIVIDADE | E54: 12.01
A55: 105270 | B55: ASSENTAMENTO DE CONEXÃO 2 ACESSOS INCLINADOS DE FERRO FUNDIDO PARA REDE DE ÁGUA, DN 450, JUNTA ELÁSTICA, INSTALADO EM LOCAL COM NÍVEL ALTO DE INTERFERÊNCIAS (NÃO INCLUI FORNECIMENTO). AF_05/2024 | C55: UN | D55: COEFICIENTE DE REPRESENTATIVIDADE | E55: 59.53
A56: 105271 | B56: ASSENTAMENTO DE CONEXÃO 2 ACESSOS INCLINADOS DE FERRO FUNDIDO PARA REDE DE ÁGUA, DN 500, JUNTA ELÁSTICA, INSTALADO EM LOCAL COM NÍVEL ALTO DE INTERFERÊNCIAS (NÃO INCLUI FORNECIMENTO). AF_05/2024 | C56: UN | D56: COEFICIENTE DE REPRESENTATIVIDADE | E56: 74.29
A57: 105272 | B57: ASSENTAMENTO DE CONEXÃO 2 ACESSOS INCLINADOS DE FERRO FUNDIDO PARA REDE DE ÁGUA, DN 600, JUNTA ELÁSTICA, INSTALADO EM LOCAL COM NÍVEL ALTO DE INTERFERÊNCIAS (NÃO INCLUI FORNECIMENTO). AF_05/2024 | C57: UN | D57: COEFICIENTE DE REPRESENTATIVIDADE | E57: 87.65
A58: 105273 | B58: ASSENTAMENTO DE CONEXÃO 2 ACESSOS INCLINADOS DE FERRO FUNDIDO PARA REDE DE ÁGUA, DN 700, JUNTA ELÁSTICA, INSTALADO EM LOCAL COM NÍVEL ALTO DE INTERFERÊNCIAS (NÃO INCLUI FORNECIMENTO). AF_05/2024 | C58: UN | D58: COEFICIENTE DE REPRESENTATIVIDADE | E58: 100.36
A59: 105274 | B59: ASSENTAMENTO DE CONEXÃO 2 ACESSOS INCLINADOS DE FERRO FUNDIDO PARA REDE DE ÁGUA, DN 800, JUNTA ELÁSTICA, INSTALADO EM LOCAL COM NÍVEL ALTO DE INTERFERÊNCIAS (NÃO INCLUI FORNECIMENTO). AF_05/2024 | C59: UN | D59: COEFICIENTE DE REPRESENTATIVIDADE | E59: 113.32
A60: 105275 | B60: ASSENTAMENTO DE CONEXÃO 2 ACESSOS INCLINADOS DE FERRO FUNDIDO PARA REDE DE ÁGUA, DN 900, JUNTA ELÁSTICA, INSTALADO EM LOCAL COM NÍVEL ALTO DE INTERFERÊNCIAS (NÃO INCLUI FORNECIMENTO). AF_05/2024 | C60: UN | D60: COEFICIENTE DE REPRESENTATIVIDADE | E60: 126.45
A61: 105276 | B61: ASSENTAMENTO DE CONEXÃO 2 ACESSOS INCLINADOS DE FERRO FUNDIDO PARA REDE DE ÁGUA, DN 1000, JUNTA ELÁSTICA, INSTALADO EM LOCAL COM NÍVEL ALTO DE INTERFERÊNCIAS (NÃO INCLUI FORNECIMENTO). AF_05/2024 | C61: UN | D61: COEFICIENTE DE REPRESENTATIVIDADE | E61: 139.68
A62: 105277 | B62: ASSENTAMENTO DE CONEXÃO 2 ACESSOS INCLINADOS DE FERRO FUNDIDO PARA REDE DE ÁGUA, DN 1200, JUNTA ELÁSTICA, INSTALADO EM LOCAL COM NÍVEL ALTO DE INTERFERÊNCIAS (NÃO INCLUI FORNECIMENTO). AF_05/2024 | C62: UN | D62: COEFICIENTE DE REPRESENTATIVIDADE | E62: 168.63
A63: 105278 | B63: ASSENTAMENTO DE CONEXÃO 3 ACESSOS DE FERRO FUNDIDO PARA REDE DE ÁGUA, DN 80, JUNTA ELÁSTICA, INSTALADO EM LOCAL COM NÍVEL ALTO DE INTERFERÊNCIAS (NÃO INCLUI FORNECIMENTO). AF_05/2024 | C63: UN | D63: COEFICIENTE DE REPRESENTATIVIDADE | E63: 21.64
A64: 105279 | B64: ASSENTAMENTO DE CONEXÃO 3 ACESSOS DE FERRO FUNDIDO PARA REDE DE ÁGUA, DN 100, JUNTA ELÁSTICA, INSTALADO EM LOCAL COM NÍVEL ALTO DE INTERFERÊNCIAS (NÃO INCLUI FORNECIMENTO). AF_05/2024 | C64: UN | D64: COEFICIENTE DE REPRESENTATIVIDADE | E64: 24.85
A65: 105280 | B65: ASSENTAMENTO DE CONEXÃO 3 ACESSOS DE FERRO FUNDIDO PARA REDE DE ÁGUA, DN 150, JUNTA ELÁSTICA, INSTALADO EM LOCAL COM NÍVEL ALTO DE INTERFERÊNCIAS (NÃO INCLUI FORNECIMENTO). AF_05/2024 | C65: UN | D65: COEFICIENTE DE REPRESENTATIVIDADE | E65: 32.74
A66: 105281 | B66: ASSENTAMENTO DE CONEXÃO 3 ACESSOS DE FERRO FUNDIDO PARA REDE DE ÁGUA, DN 200, JUNTA ELÁSTICA, INSTALADO EM LOCAL COM NÍVEL ALTO DE INTERFERÊNCIAS (NÃO INCLUI FORNECIMENTO). AF_05/2024 | C66: UN | D66: COEFICIENTE DE REPRESENTATIVIDADE | E66: 40.61
A67: 105282 | B67: ASSENTAMENTO DE CONEXÃO 2 ACESSOS INCLINADOS DE FERRO FUNDIDO PARA REDE DE ÁGUA, DN 100, JUNTA ELÁSTICA, INSTALADO EM LOCAL COM NÍVEL BAIXO DE INTERFERÊNCIAS (NÃO INCLUI FORNECIMENTO). AF_05/2024 | C67: UN | D67: COEFICIENTE DE REPRESENTATIVIDADE | E67: 13.95
A68: 105283 | B68: ASSENTAMENTO DE CONEXÃO 3 ACESSOS DE FERRO FUNDIDO PARA REDE DE ÁGUA, DN 150, JUNTA ELÁSTICA, INSTALADO EM LOCAL COM NÍVEL BAIXO DE INTERFERÊNCIAS (NÃO INCLUI FORNECIMENTO). AF_05/2024 | C68: UN | D68: COEFICIENTE DE REPRESENTATIVIDADE | E68: 25.64
A69: 105284 | B69: ASSENTAMENTO DE CONEXÃO 3 ACESSOS DE FERRO FUNDIDO PARA REDE DE ÁGUA, DN 250, JUNTA ELÁSTICA, INSTALADO EM LOCAL COM NÍVEL ALTO DE INTERFERÊNCIAS (NÃO INCLUI FORNECIMENTO). AF_05/2024 | C69: UN | D69: COEFICIENTE DE REPRESENTATIVIDADE | E69: 48.77
A70: 105297 | B70: ASSENTAMENTO DE CONEXÃO 2 ACESSOS ALINHADOS DE FERRO FUNDIDO PARA REDE DE ÁGUA, DN 80, JUNTA ELÁSTICA, INSTALADO EM LOCAL COM NÍVEL ALTO DE INTERFERÊNCIAS (NÃO INCLUI FORNECIMENTO). AF_05/2024 | C70: UN | D70: COEFICIENTE DE REPRESENTATIVIDADE | E70: 10.81
A71: 105298 | B71: ASSENTAMENTO DE CONEXÃO 2 ACESSOS INCLINADOS DE FERRO FUNDIDO PARA REDE DE ÁGUA, DN 150, JUNTA ELÁSTICA, INSTALADO EM LOCAL COM NÍVEL BAIXO DE INTERFERÊNCIAS (NÃO INCLUI FORNECIMENTO). AF_05/2024 | C71: UN | D71: COEFICIENTE DE REPRESENTATIVIDADE | E71: 18.72
A72: 105299 | B72: ASSENTAMENTO DE CONEXÃO 2 ACESSOS INCLINADOS DE FERRO FUNDIDO PARA REDE DE ÁGUA, DN 200, JUNTA ELÁSTICA, INSTALADO EM LOCAL COM NÍVEL BAIXO DE INTERFERÊNCIAS (NÃO INCLUI FORNECIMENTO). AF_05/2024 | C72: UN | D72: COEFICIENTE DE REPRESENTATIVIDADE | E72: 23.47
A73: 105300 | B73: ASSENTAMENTO DE CONEXÃO 2 ACESSOS INCLINADOS DE FERRO FUNDIDO PARA REDE DE ÁGUA, DN 250, JUNTA ELÁSTICA, INSTALADO EM LOCAL COM NÍVEL BAIXO DE INTERFERÊNCIAS (NÃO INCLUI FORNECIMENTO). AF_05/2024 | C73: UN | D73: COEFICIENTE DE REPRESENTATIVIDADE | E73: 28.37
A74: 105301 | B74: ASSENTAMENTO DE CONEXÃO 2 ACESSOS INCLINADOS DE FERRO FUNDIDO PARA REDE DE ÁGUA, DN 300, JUNTA ELÁSTICA, INSTALADO EM LOCAL COM NÍVEL BAIXO DE INTERFERÊNCIAS (NÃO INCLUI FORNECIMENTO). AF_05/2024 | C74: UN | D74: COEFICIENTE DE REPRESENTATIVIDADE | E74: 33.26
A75: 105302 | B75: ASSENTAMENTO DE CONEXÃO 2 ACESSOS INCLINADOS DE FERRO FUNDIDO PARA REDE DE ÁGUA, DN 350, JUNTA ELÁSTICA, INSTALADO EM LOCAL COM NÍVEL BAIXO DE INTERFERÊNCIAS (NÃO INCLUI FORNECIMENTO). AF_05/2024 | C75: UN | D75: COEFICIENTE DE REPRESENTATIVIDADE | E75: 38.15
A76: 105303 | B76: ASSENTAMENTO DE CONEXÃO 2 ACESSOS INCLINADOS DE FERRO FUNDIDO PARA REDE DE ÁGUA, DN 400, JUNTA ELÁSTICA, INSTALADO EM LOCAL COM NÍVEL BAIXO DE INTERFERÊNCIAS (NÃO INCLUI FORNECIMENTO). AF_05/2024 | C76: UN | D76: COEFICIENTE DE REPRESENTATIVIDADE | E76: 43.02
A77: 105304 | B77: ASSENTAMENTO DE CONEXÃO 2 ACESSOS INCLINADOS DE FERRO FUNDIDO PARA REDE DE ÁGUA, DN 450, JUNTA ELÁSTICA, INSTALADO EM LOCAL COM NÍVEL BAIXO DE INTERFERÊNCIAS (NÃO INCLUI FORNECIMENTO). AF_05/2024 | C77: UN | D77: COEFICIENTE DE REPRESENTATIVIDADE | E77: 48.03
A78: 105305 | B78: ASSENTAMENTO DE CONEXÃO 2 ACESSOS INCLINADOS DE FERRO FUNDIDO PARA REDE DE ÁGUA, DN 500, JUNTA ELÁSTICA, INSTALADO EM LOCAL COM NÍVEL BAIXO DE INTERFERÊNCIAS (NÃO INCLUI FORNECIMENTO). AF_05/2024 | C78: UN | D78: COEFICIENTE DE REPRESENTATIVIDADE | E78: 58.93
A79: 105306 | B79: ASSENTAMENTO DE CONEXÃO 2 ACESSOS INCLINADOS DE FERRO FUNDIDO PARA REDE DE ÁGUA, DN 600, JUNTA ELÁSTICA, INSTALADO EM LOCAL COM NÍVEL BAIXO DE INTERFERÊNCIAS (NÃO INCLUI FORNECIMENTO). AF_05/2024 | C79: UN | D79: COEFICIENTE DE REPRESENTATIVIDADE | E79: 69.8
A80: 105307 | B80: ASSENTAMENTO DE CONEXÃO 2 ACESSOS INCLINADOS DE FERRO FUNDIDO PARA REDE DE ÁGUA, DN 700, JUNTA ELÁSTICA, INSTALADO EM LOCAL COM NÍVEL BAIXO DE INTERFERÊNCIAS (NÃO INCLUI FORNECIMENTO). AF_05/2024 | C80: UN | D80: COEFICIENTE DE REPRESENTATIVIDADE | E80: 80.02
A81: 105317 | B81: ASSENTAMENTO DE CONEXÃO 2 ACESSOS ALINHADOS DE FERRO FUNDIDO PARA REDE DE ÁGUA, DN 300, JUNTA ELÁSTICA, INSTALADO EM LOCAL COM NÍVEL BAIXO DE INTERFERÊNCIAS (NÃO INCLUI FORNECIMENTO). AF_05/2024 | C81: UN | D81: COEFICIENTE DE REPRESENTATIVIDADE | E81: 22.82
A82: 105318 | B82: ASSENTAMENTO DE CONEXÃO 2 ACESSOS ALINHADOS DE FERRO FUNDIDO PARA REDE DE ÁGUA, DN 350, JUNTA ELÁSTICA, INSTALADO EM LOCAL COM NÍVEL BAIXO DE INTERFERÊNCIAS (NÃO INCLUI FORNECIMENTO). AF_05/2024 | C82: UN | D82: COEFICIENTE DE REPRESENTATIVIDADE | E82: 26.19
A83: 105319 | B83: ASSENTAMENTO DE CONEXÃO 3 ACESSOS DE FERRO FUNDIDO PARA REDE DE ÁGUA, DN 200, JUNTA ELÁSTICA, INSTALADO EM LOCAL COM NÍVEL BAIXO DE INTERFERÊNCIAS (NÃO INCLUI FORNECIMENTO). AF_05/2024 | C83: UN | D83: COEFICIENTE DE REPRESENTATIVIDADE | E83: 32.14
A84: 105320 | B84: ASSENTAMENTO DE CONEXÃO 3 ACESSOS DE FERRO FUNDIDO PARA REDE DE ÁGUA, DN 250, JUNTA ELÁSTICA, INSTALADO EM LOCAL COM NÍVEL BAIXO DE INTERFERÊNCIAS (NÃO INCLUI FORNECIMENTO). AF_05/2024 | C84: UN | D84: COEFICIENTE DE REPRESENTATIVIDADE | E84: 38.93
A85: 105321 | B85: ASSENTAMENTO DE CONEXÃO 3 ACESSOS DE FERRO FUNDIDO PARA REDE DE ÁGUA, DN 300, JUNTA ELÁSTICA, INSTALADO EM LOCAL COM NÍVEL BAIXO DE INTERFERÊNCIAS (NÃO INCLUI FORNECIMENTO). AF_05/2024 | C85: UN | D85: COEFICIENTE DE REPRESENTATIVIDADE | E85: 45.68
A86: 105322 | B86: ASSENTAMENTO DE CONEXÃO 3 ACESSOS DE FERRO FUNDIDO PARA REDE DE ÁGUA, DN 350, JUNTA ELÁSTICA, INSTALADO EM LOCAL COM NÍVEL BAIXO DE INTERFERÊNCIAS (NÃO INCLUI FORNECIMENTO). AF_05/2024 | C86: UN | D86: COEFICIENTE DE REPRESENTATIVIDADE | E86: 52.42
A87: 105323 | B87: ASSENTAMENTO DE CONEXÃO 3 ACESSOS DE FERRO FUNDIDO PARA REDE DE ÁGUA, DN 400, JUNTA ELÁSTICA, INSTALADO EM LOCAL COM NÍVEL BAIXO DE INTERFERÊNCIAS (NÃO INCLUI FORNECIMENTO). AF_05/2024 | C87: UN | D87: COEFICIENTE DE REPRESENTATIVIDADE | E87: 59.17
A88: 105324 | B88: ASSENTAMENTO DE CONEXÃO 3 ACESSOS DE FERRO FUNDIDO PARA REDE DE ÁGUA, DN 450, JUNTA ELÁSTICA, INSTALADO EM LOCAL COM NÍVEL BAIXO DE INTERFERÊNCIAS (NÃO INCLUI FORNECIMENTO). AF_05/2024 | C88: UN | D88: COEFICIENTE DE REPRESENTATIVIDADE | E88: 66.16
A89: 105325 | B89: ASSENTAMENTO DE CONEXÃO 3 ACESSOS DE FERRO FUNDIDO PARA REDE DE ÁGUA, DN 500, JUNTA ELÁSTICA, INSTALADO EM LOCAL COM NÍVEL BAIXO DE INTERFERÊNCIAS (NÃO INCLUI FORNECIMENTO). AF_05/2024 | C89: UN | D89: COEFICIENTE DE REPRESENTATIVIDADE | E89: 80.93
A90: 105326 | B90: ASSENTAMENTO DE CONEXÃO 3 ACESSOS DE FERRO FUNDIDO PARA REDE DE ÁGUA, DN 600, JUNTA ELÁSTICA, INSTALADO EM LOCAL COM NÍVEL BAIXO DE INTERFERÊNCIAS (NÃO INCLUI FORNECIMENTO). AF_05/2024 | C90: UN | D90: COEFICIENTE DE REPRESENTATIVIDADE | E90: 96.05
A91: 105340 | B91: ASSENTAMENTO DE CONEXÃO 2 ACESSOS INCLINADOS DE FERRO FUNDIDO PARA REDE DE ÁGUA, DN 800, JUNTA ELÁSTICA, INSTALADO EM LOCAL COM NÍVEL BAIXO DE INTERFERÊNCIAS (NÃO INCLUI FORNECIMENTO). AF_05/2024 | C91: UN | D91: COEFICIENTE DE REPRESENTATIVIDADE | E91: 90.49
A92: 105341 | B92: ASSENTAMENTO DE CONEXÃO 2 ACESSOS INCLINADOS DE FERRO FUNDIDO PARA REDE DE ÁGUA, DN 1000, JUNTA ELÁSTICA, INSTALADO EM LOCAL COM NÍVEL BAIXO DE INTERFERÊNCIAS (NÃO INCLUI FORNECIMENTO). AF_05/2024 | C92: UN | D92: COEFICIENTE DE REPRESENTATIVIDADE | E92: 111.88
A93: 105342 | B93: ASSENTAMENTO DE CONEXÃO 2 ACESSOS INCLINADOS DE FERRO FUNDIDO PARA REDE DE ÁGUA, DN 1200, JUNTA ELÁSTICA, INSTALADO EM LOCAL COM NÍVEL BAIXO DE INTERFERÊNCIAS (NÃO INCLUI FORNECIMENTO). AF_05/2024 | C93: UN | D93: COEFICIENTE DE REPRESENTATIVIDADE | E93: 135.87
A94: 105343 | B94: ASSENTAMENTO DE CONEXÃO 3 ACESSOS DE FERRO FUNDIDO PARA REDE DE ÁGUA, DN 80, JUNTA ELÁSTICA, INSTALADO EM LOCAL COM NÍVEL BAIXO DE INTERFERÊNCIAS (NÃO INCLUI FORNECIMENTO). AF_05/2024 | C94: UN | D94: COEFICIENTE DE REPRESENTATIVIDADE | E94: 16.46
A95: 105344 | B95: ASSENTAMENTO DE CONEXÃO 3 ACESSOS DE FERRO FUNDIDO PARA REDE DE ÁGUA, DN 700, JUNTA ELÁSTICA, INSTALADO EM LOCAL COM NÍVEL BAIXO DE INTERFERÊNCIAS (NÃO INCLUI FORNECIMENTO). AF_05/2024 | C95: UN | D95: COEFICIENTE DE REPRESENTATIVIDADE | E95: 109.86
A96: 105345 | B96: ASSENTAMENTO DE CONEXÃO 3 ACESSOS DE FERRO FUNDIDO PARA REDE DE ÁGUA, DN 900, JUNTA ELÁSTICA, INSTALADO EM LOCAL COM NÍVEL BAIXO DE INTERFERÊNCIAS (NÃO INCLUI FORNECIMENTO). AF_05/2024 | C96: UN | D96: COEFICIENTE DE REPRESENTATIVIDADE | E96: 138.81
A97: 105346 | B97: ASSENTAMENTO DE CONEXÃO 3 ACESSOS DE FERRO FUNDIDO PARA REDE DE ÁGUA, DN 1000, JUNTA ELÁSTICA, INSTALADO EM LOCAL COM NÍVEL BAIXO DE INTERFERÊNCIAS (NÃO INCLUI FORNECIMENTO). AF_05/2024 | C97: UN | D97: COEFICIENTE DE REPRESENTATIVIDADE | E97: 153.67
A98: 105347 | B98: ASSENTAMENTO DE CONEXÃO 3 ACESSOS DE FERRO FUNDIDO PARA REDE DE ÁGUA, DN 1200, JUNTA ELÁSTICA, INSTALADO EM LOCAL COM NÍVEL BAIXO DE INTERFERÊNCIAS (NÃO INCLUI FORNECIMENTO). AF_05/2024 | C98: UN | D98: COEFICIENTE DE REPRESENTATIVIDADE | E98: 188.33
A99: 105348 | B99: ASSENTAMENTO DE CONEXÃO 3 ACESSOS DE FERRO FUNDIDO PARA REDE DE ÁGUA, DN 300, JUNTA ELÁSTICA, INSTALADO EM LOCAL COM NÍVEL ALTO DE INTERFERÊNCIAS (NÃO INCLUI FORNECIMENTO). AF_05/2024 | C99: UN | D99: COEFICIENTE DE REPRESENTATIVIDADE | E99: 56.88
A100: 105349 | B100: ASSENTAMENTO DE CONEXÃO 3 ACESSOS DE FERRO FUNDIDO PARA REDE DE ÁGUA, DN 350, JUNTA ELÁSTICA, INSTALADO EM LOCAL COM NÍVEL ALTO DE INTERFERÊNCIAS (NÃO INCLUI FORNECIMENTO). AF_05/2024 | C100: UN | D100: COEFICIENTE DE REPRESENTATIVIDADE | E100: 65.01
A101: 105350 | B101: ASSENTAMENTO DE CONEXÃO 3 ACESSOS DE FERRO FUNDIDO PARA REDE DE ÁGUA, DN 400, JUNTA ELÁSTICA, INSTALADO EM LOCAL COM NÍVEL ALTO DE INTERFERÊNCIAS (NÃO INCLUI FORNECIMENTO). AF_05/2024 | C101: UN | D101: COEFICIENTE DE REPRESENTATIVIDADE | E101: 73.14
A102: 105351 | B102: ASSENTAMENTO DE CONEXÃO 3 ACESSOS DE FERRO FUNDIDO PARA REDE DE ÁGUA, DN 450, JUNTA ELÁSTICA, INSTALADO EM LOCAL COM NÍVEL ALTO DE INTERFERÊNCIAS (NÃO INCLUI FORNECIMENTO). AF_05/2024 | C102: UN | D102: COEFICIENTE DE REPRESENTATIVIDADE | E102: 81.49
A103: 105352 | B103: ASSENTAMENTO DE CONEXÃO 3 ACESSOS DE FERRO FUNDIDO PARA REDE DE ÁGUA, DN 500, JUNTA ELÁSTICA, INSTALADO EM LOCAL COM NÍVEL ALTO DE INTERFERÊNCIAS (NÃO INCLUI FORNECIMENTO). AF_05/2024 | C103: UN | D103: COEFICIENTE DE REPRESENTATIVIDADE | E103: 101.42
A104: 105353 | B104: ASSENTAMENTO DE CONEXÃO 3 ACESSOS DE FERRO FUNDIDO PARA REDE DE ÁGUA, DN 600, JUNTA ELÁSTICA, INSTALADO EM LOCAL COM NÍVEL ALTO DE INTERFERÊNCIAS (NÃO INCLUI FORNECIMENTO). AF_05/2024 | C104: UN | D104: COEFICIENTE DE REPRESENTATIVIDADE | E104: 119.86
A105: 105354 | B105: ASSENTAMENTO DE CONEXÃO 3 ACESSOS DE FERRO FUNDIDO PARA REDE DE ÁGUA, DN 700, JUNTA ELÁSTICA, INSTALADO EM LOCAL COM NÍVEL ALTO DE INTERFERÊNCIAS (NÃO INCLUI FORNECIMENTO). AF_05/2024 | C105: UN | D105: COEFICIENTE DE REPRESENTATIVIDADE | E105: 136.98
A106: 105355 | B106: ASSENTAMENTO DE CONEXÃO 3 ACESSOS DE FERRO FUNDIDO PARA REDE DE ÁGUA, DN 800, JUNTA ELÁSTICA, INSTALADO EM LOCAL COM NÍVEL ALTO DE INTERFERÊNCIAS (NÃO INCLUI FORNECIMENTO). AF_05/2024 | C106: UN | D106: COEFICIENTE DE REPRESENTATIVIDADE | E106: 154.59
A107: 105356 | B107: ASSENTAMENTO DE CONEXÃO 3 ACESSOS DE FERRO FUNDIDO PARA REDE DE ÁGUA, DN 900, JUNTA ELÁSTICA, INSTALADO EM LOCAL COM NÍVEL ALTO DE INTERFERÊNCIAS (NÃO INCLUI FORNECIMENTO). AF_05/2024 | C107: UN | D107: COEFICIENTE DE REPRESENTATIVIDADE | E107: 172.55
A108: 105357 | B108: ASSENTAMENTO DE CONEXÃO 3 ACESSOS DE FERRO FUNDIDO PARA REDE DE ÁGUA, DN 1000, JUNTA ELÁSTICA, INSTALADO EM LOCAL COM NÍVEL ALTO DE INTERFERÊNCIAS (NÃO INCLUI FORNECIMENTO). AF_05/2024 | C108: UN | D108: COEFICIENTE DE REPRESENTATIVIDADE | E108: 190.74
A109: 105358 | B109: ASSENTAMENTO DE CONEXÃO 3 ACESSOS DE FERRO FUNDIDO PARA REDE DE ÁGUA, DN 1200, JUNTA ELÁSTICA, INSTALADO EM LOCAL COM NÍVEL ALTO DE INTERFERÊNCIAS (NÃO INCLUI FORNECIMENTO). AF_05/2024 | C109: UN | D109: COEFICIENTE DE REPRESENTATIVIDADE | E109: 232.03
A110: 105369 | B110: FORNECIMENTO E ASSENTAMENTO DE TE RANHURADO EM FERRO FUNDIDO, DN 80 (3") PARA REDE DE ÁGUA, INSTALADO EM LOCAL COM NÍVEL ALTO DE INTERFERÊNCIAS (INCLUI FORNECIMENTO). AF_05/2024 | C110: UN | D110: ATRIBUÍDO SÃO PAULO | E110: 68.69
A111: 105377 | B111: FORNECIMENTO E ASSENTAMENTO DE CURVA 45 GRAUS RANHURADA EM FERRO FUNDIDO, DN 80 MM (3") PARA REDE DE ÁGUA, INSTALADO EM LOCAL COM NÍVEL ALTO DE INTERFERÊNCIAS (INCLUI FORNECIMENTO). AF_05/2024 | C111: UN | D111: ATRIBUÍDO SÃO PAULO | E111: 43.96
A112: 105378 | B112: ASSENTAMENTO DE CONEXÃO 2 ACESSOS ALINHADOS DE FERRO FUNDIDO PARA REDE DE ÁGUA, DN 100, JUNTA ELÁSTICA, INSTALADO EM LOCAL COM NÍVEL ALTO DE INTERFERÊNCIAS (NÃO INCLUI FORNECIMENTO). AF_05/2024 | C112: UN | D112: COEFICIENTE DE REPRESENTATIVIDADE | E112: 12.42
A113: 105379 | B113: ASSENTAMENTO DE CONEXÃO 2 ACESSOS ALINHADOS DE FERRO FUNDIDO PARA REDE DE ÁGUA, DN 150, JUNTA ELÁSTICA, INSTALADO EM LOCAL COM NÍVEL ALTO DE INTERFERÊNCIAS (NÃO INCLUI FORNECIMENTO). AF_05/2024 | C113: UN | D113: COEFICIENTE DE REPRESENTATIVIDADE | E113: 16.36
A114: 105380 | B114: ASSENTAMENTO DE CONEXÃO 2 ACESSOS ALINHADOS DE FERRO FUNDIDO PARA REDE DE ÁGUA, DN 1000, JUNTA ELÁSTICA, INSTALADO EM LOCAL COM NÍVEL ALTO DE INTERFERÊNCIAS (NÃO INCLUI FORNECIMENTO). AF_05/2024 | C114: UN | D114: COEFICIENTE DE REPRESENTATIVIDADE | E114: 95.36
A115: 105388 | B115: ASSENTAMENTO DE CONEXÃO 2 ACESSOS ALINHADOS DE FERRO FUNDIDO PARA REDE DE ÁGUA, DN 150, JUNTA ELÁSTICA, INSTALADO EM LOCAL COM NÍVEL BAIXO DE INTERFERÊNCIAS (NÃO INCLUI FORNECIMENTO). AF_05/2024 | C115: UN | D115: COEFICIENTE DE REPRESENTATIVIDADE | E115: 12.81
A116: 105389 | B116: ASSENTAMENTO DE CONEXÃO 2 ACESSOS ALINHADOS DE FERRO FUNDIDO PARA REDE DE ÁGUA, DN 200, JUNTA ELÁSTICA, INSTALADO EM LOCAL COM NÍVEL BAIXO DE INTERFERÊNCIAS (NÃO INCLUI FORNECIMENTO). AF_05/2024 | C116: UN | D116: COEFICIENTE DE REPRESENTATIVIDADE | E116: 16.06
A117: 105390 | B117: ASSENTAMENTO DE CONEXÃO 2 ACESSOS INCLINADOS DE FERRO FUNDIDO PARA REDE DE ÁGUA, DN 900, JUNTA ELÁSTICA, INSTALADO EM LOCAL COM NÍVEL BAIXO DE INTERFERÊNCIAS (NÃO INCLUI FORNECIMENTO). AF_05/2024 | C117: UN | D117: COEFICIENTE DE REPRESENTATIVIDADE | E117: 101.13
A118: 105391 | B118: ASSENTAMENTO DE CONEXÃO 3 ACESSOS DE FERRO FUNDIDO PARA REDE DE ÁGUA, DN 800, JUNTA ELÁSTICA, INSTALADO EM LOCAL COM NÍVEL BAIXO DE INTERFERÊNCIAS (NÃO INCLUI FORNECIMENTO). AF_05/2024 | C118: UN | D118: COEFICIENTE DE REPRESENTATIVIDADE | E118: 124.15
A119: 105392 | B119: ASSENTAMENTO DE CONEXÃO 2 ACESSOS ALINHADOS DE FERRO FUNDIDO PARA REDE DE ÁGUA, DN 200, JUNTA ELÁSTICA, INSTALADO EM LOCAL COM NÍVEL ALTO DE INTERFERÊNCIAS (NÃO INCLUI FORNECIMENTO). AF_05/2024 | C119: UN | D119: COEFICIENTE DE REPRESENTATIVIDADE | E119: 20.29
A120: 105393 | B120: ASSENTAMENTO DE CONEXÃO 2 ACESSOS ALINHADOS DE FERRO FUNDIDO PARA REDE DE ÁGUA, DN 250, JUNTA ELÁSTICA, INSTALADO EM LOCAL COM NÍVEL ALTO DE INTERFERÊNCIAS (NÃO INCLUI FORNECIMENTO). AF_05/2024 | C120: UN | D120: COEFICIENTE DE REPRESENTATIVIDADE | E120: 24.38
A121: 105394 | B121: ASSENTAMENTO DE CONEXÃO 2 ACESSOS ALINHADOS DE FERRO FUNDIDO PARA REDE DE ÁGUA, DN 300, JUNTA ELÁSTICA, INSTALADO EM LOCAL COM NÍVEL ALTO DE INTERFERÊNCIAS (NÃO INCLUI FORNECIMENTO). AF_05/2024 | C121: UN | D121: COEFICIENTE DE REPRESENTATIVIDADE | E121: 28.42
A122: 105395 | B122: ASSENTAMENTO DE CONEXÃO 2 ACESSOS ALINHADOS DE FERRO FUNDIDO PARA REDE DE ÁGUA, DN 350, JUNTA ELÁSTICA, INSTALADO EM LOCAL COM NÍVEL ALTO DE INTERFERÊNCIAS (NÃO INCLUI FORNECIMENTO). AF_05/2024 | C122: UN | D122: COEFICIENTE DE REPRESENTATIVIDADE | E122: 32.49
A123: 105396 | B123: ASSENTAMENTO DE CONEXÃO 2 ACESSOS ALINHADOS DE FERRO FUNDIDO PARA REDE DE ÁGUA, DN 400, JUNTA ELÁSTICA, INSTALADO EM LOCAL COM NÍVEL ALTO DE INTERFERÊNCIAS (NÃO INCLUI FORNECIMENTO). AF_05/2024 | C123: UN | D123: COEFICIENTE DE REPRESENTATIVIDADE | E123: 36.56
A124: 105397 | B124: ASSENTAMENTO DE CONEXÃO 2 ACESSOS ALINHADOS DE FERRO FUNDIDO PARA REDE DE ÁGUA, DN 450, JUNTA ELÁSTICA, INSTALADO EM LOCAL COM NÍVEL ALTO DE INTERFERÊNCIAS (NÃO INCLUI FORNECIMENTO). AF_05/2024 | C124: UN | D124: COEFICIENTE DE REPRESENTATIVIDADE | E124: 40.72
A125: 105398 | B125: ASSENTAMENTO DE CONEXÃO 2 ACESSOS ALINHADOS DE FERRO FUNDIDO PARA REDE DE ÁGUA, DN 500, JUNTA ELÁSTICA, INSTALADO EM LOCAL COM NÍVEL ALTO DE INTERFERÊNCIAS (NÃO INCLUI FORNECIMENTO). AF_05/2024 | C125: UN | D125: COEFICIENTE DE REPRESENTATIVIDADE | E125: 50.7
A126: 105399 | B126: ASSENTAMENTO DE CONEXÃO 2 ACESSOS ALINHADOS DE FERRO FUNDIDO PARA REDE DE ÁGUA, DN 600, JUNTA ELÁSTICA, INSTALADO EM LOCAL COM NÍVEL ALTO DE INTERFERÊNCIAS (NÃO INCLUI FORNECIMENTO). AF_05/2024 | C126: UN | D126: COEFICIENTE DE REPRESENTATIVIDADE | E126: 59.91
A127: 105400 | B127: ASSENTAMENTO DE CONEXÃO 2 ACESSOS ALINHADOS DE FERRO FUNDIDO PARA REDE DE ÁGUA, DN 700, JUNTA ELÁSTICA, INSTALADO EM LOCAL COM NÍVEL ALTO DE INTERFERÊNCIAS (NÃO INCLUI FORNECIMENTO). AF_05/2024 | C127: UN | D127: COEFICIENTE DE REPRESENTATIVIDADE | E127: 68.49
A128: 105401 | B128: ASSENTAMENTO DE CONEXÃO 2 ACESSOS ALINHADOS DE FERRO FUNDIDO PARA REDE DE ÁGUA, DN 800, JUNTA ELÁSTICA, INSTALADO EM LOCAL COM NÍVEL ALTO DE INTERFERÊNCIAS (NÃO INCLUI FORNECIMENTO). AF_05/2024 | C128: UN | D128: COEFICIENTE DE REPRESENTATIVIDADE | E128: 77.29
A129: 105402 | B129: ASSENTAMENTO DE CONEXÃO 2 ACESSOS ALINHADOS DE FERRO FUNDIDO PARA REDE DE ÁGUA, DN 900, JUNTA ELÁSTICA, INSTALADO EM LOCAL COM NÍVEL ALTO DE INTERFERÊNCIAS (NÃO INCLUI FORNECIMENTO). AF_05/2024 | C129: UN | D129: COEFICIENTE DE REPRESENTATIVIDADE | E129: 86.29
A130: 97173 | B130: ASSENTAMENTO DE TUBO DE AÇO CARBONO PARA REDE DE ÁGUA, DN 600 MM (24"), JUNTA SOLDADA, INSTALADO EM LOCAL COM NÍVEL ALTO DE INTERFERÊNCIAS (NÃO INCLUI FORNECIMENTO). AF_05/2024 | C130: M | D130: COEFICIENTE DE REPRESENTATIVIDADE | E130: 38.77
A131: 97174 | B131: ASSENTAMENTO DE TUBO DE AÇO CARBONO PARA REDE DE ÁGUA, DN 700 MM (28"), JUNTA SOLDADA, INSTALADO EM LOCAL COM NÍVEL ALTO DE INTERFERÊNCIAS (NÃO INCLUI FORNECIMENTO). AF_05/2024 | C131: M | D131: COEFICIENTE DE REPRESENTATIVIDADE | E131: 46.21
A132: 97175 | B132: ASSENTAMENTO DE TUBO DE AÇO CARBONO PARA REDE DE ÁGUA, DN 800 MM (32"), JUNTA SOLDADA, INSTALADO EM LOCAL COM NÍVEL ALTO DE INTERFERÊNCIAS (NÃO INCLUI FORNECIMENTO). AF_05/2024 | C132: M | D132: COEFICIENTE DE REPRESENTATIVIDADE | E132: 53.69
A133: 97176 | B133: ASSENTAMENTO DE TUBO DE AÇO CARBONO PARA REDE DE ÁGUA, DN 900 MM (36"), JUNTA SOLDADA, INSTALADO EM LOCAL COM NÍVEL ALTO DE INTERFERÊNCIAS (NÃO INCLUI FORNECIMENTO). AF_05/2024 | C133: M | D133: COEFICIENTE DE REPRESENTATIVIDADE | E133: 61.16
A134: 97177 | B134: ASSENTAMENTO DE TUBO DE AÇO CARBONO PARA REDE DE ÁGUA, DN 1000 MM (40") OU DN 1100 MM (44"), JUNTA SOLDADA, INSTALADO EM LOCAL COM NÍVEL ALTO DE INTERFERÊNCIAS (NÃO INCLUI FORNECIMENTO). AF_05/2024 | C134: M | D134: COEFICIENTE DE REPRESENTATIVIDADE | E134: 68.63
A135: 97178 | B135: ASSENTAMENTO DE TUBO DE AÇO CARBONO PARA REDE DE ÁGUA, DN 1200 MM (48") OU DN 1300 MM (52"), JUNTA SOLDADA, INSTALADO EM LOCAL COM NÍVEL ALTO DE INTERFERÊNCIAS (NÃO INCLUI FORNECIMENTO). AF_05/2024 | C135: M | D135: COEFICIENTE DE REPRESENTATIVIDADE | E135: 83.57
A136: 97179 | B136: ASSENTAMENTO DE TUBO DE AÇO CARBONO PARA REDE DE ÁGUA, DN 1400 MM (56'') OU DN 1500 MM (60"), JUNTA SOLDADA, INSTALADO EM LOCAL COM NÍVEL ALTO DE INTERFERÊNCIAS (NÃO INCLUI FORNECIMENTO). AF_05/2024 | C136: M | D136: COEFICIENTE DE REPRESENTATIVIDADE | E136: 98.53
A137: 97180 | B137: ASSENTAMENTO DE TUBO DE AÇO CARBONO PARA REDE DE ÁGUA, DN 1600 MM (64") OU DN 1700 MM (68"), JUNTA SOLDADA, INSTALADO EM LOCAL COM NÍVEL ALTO DE INTERFERÊNCIAS (NÃO INCLUI FORNECIMENTO). AF_05/2024 | C137: M | D137: COEFICIENTE DE REPRESENTATIVIDADE | E137: 113.47
A138: 97181 | B138: ASSENTAMENTO DE TUBO DE AÇO CARBONO PARA REDE DE ÁGUA, DN 1800 MM (72") OU DN 1900 MM (76"), JUNTA SOLDADA, INSTALADO EM LOCAL COM NÍVEL ALTO DE INTERFERÊNCIAS (NÃO INCLUI FORNECIMENTO). AF_05/2024 | C138: M | D138: COEFICIENTE DE REPRESENTATIVIDADE | E138: 128.41
A139: 97182 | B139: ASSENTAMENTO DE TUBO DE AÇO CARBONO PARA REDE DE ÁGUA, DN 2000 MM (80") OU DN 2100 MM (84"), JUNTA SOLDADA, INSTALADO EM LOCAL COM NÍVEL ALTO DE INTERFERÊNCIAS (NÃO INCLUI FORNECIMENTO). AF_05/2024 | C139: M | D139: COEFICIENTE DE REPRESENTATIVIDADE | E139: 147.61
A140: 97183 | B140: ASSENTAMENTO DE TUBO DE AÇO CARBONO PARA REDE DE ÁGUA, DN 600 MM (24"), JUNTA SOLDADA, INSTALADO EM LOCAL COM NÍVEL BAIXO DE INTERFERÊNCIAS (NÃO INCLUI FORNECIMENTO). AF_05/2024 | C140: M | D140: COEFICIENTE DE REPRESENTATIVIDADE | E140: 34.05
A141: 97184 | B141: ASSENTAMENTO DE TUBO DE AÇO CARBONO PARA REDE DE ÁGUA, DN 700 MM (28"), JUNTA SOLDADA, INSTALADO EM LOCAL COM NÍVEL BAIXO DE INTERFERÊNCIAS (NÃO INCLUI FORNECIMENTO). AF_05/2024 | C141: M | D141: COEFICIENTE DE REPRESENTATIVIDADE | E141: 40.7
A142: 97185 | B142: ASSENTAMENTO DE TUBO DE AÇO CARBONO PARA REDE DE ÁGUA, DN 800 MM (32"), JUNTA SOLDADA, INSTALADO EM LOCAL COM NÍVEL BAIXO DE INTERFERÊNCIAS (NÃO INCLUI FORNECIMENTO). AF_05/2024 | C142: M | D142: COEFICIENTE DE REPRESENTATIVIDADE | E142: 47.36
A143: 97186 | B143: ASSENTAMENTO DE TUBO DE AÇO CARBONO PARA REDE DE ÁGUA, DN 900 MM (36"), JUNTA SOLDADA, INSTALADO EM LOCAL COM NÍVEL BAIXO DE INTERFERÊNCIAS (NÃO INCLUI FORNECIMENTO). AF_05/2024 | C143: M | D143: COEFICIENTE DE REPRESENTATIVIDADE | E143: 54.02
A144: 97187 | B144: ASSENTAMENTO DE TUBO DE AÇO CARBONO PARA REDE DE ÁGUA, DN 1000 MM (40") OU DN 1100 MM (44"), JUNTA SOLDADA, INSTALADO EM LOCAL COM NÍVEL BAIXO DE INTERFERÊNCIAS (NÃO INCLUI FORNECIMENTO). AF_05/2024 | C144: M | D144: COEFICIENTE DE REPRESENTATIVIDADE | E144: 60.68
A145: 97188 | B145: ASSENTAMENTO DE TUBO DE AÇO CARBONO PARA REDE DE ÁGUA, DN 1200 MM (48") OU DN 1300 MM (52"), JUNTA SOLDADA, INSTALADO EM LOCAL COM NÍVEL BAIXO DE INTERFERÊNCIAS (NÃO INCLUI FORNECIMENTO). AF_05/2024 | C145: M | D145: COEFICIENTE DE REPRESENTATIVIDADE | E145: 74.03
A146: 97189 | B146: ASSENTAMENTO DE TUBO DE AÇO CARBONO PARA REDE DE ÁGUA, DN 1400 MM (56'') OU DN 1500 MM (60"), JUNTA SOLDADA, INSTALADO EM LOCAL COM NÍVEL BAIXO DE INTERFERÊNCIAS (NÃO INCLUI FORNECIMENTO). AF_05/2024 | C146: M | D146: COEFICIENTE DE REPRESENTATIVIDADE | E146: 87.35
A147: 97190 | B147: ASSENTAMENTO DE TUBO DE AÇO CARBONO PARA REDE DE ÁGUA, DN 1600 MM (64") OU DN 1700 MM (68"), JUNTA SOLDADA, INSTALADO EM LOCAL COM NÍVEL BAIXO DE INTERFERÊNCIAS (NÃO INCLUI FORNECIMENTO). AF_05/2024 | C147: M | D147: COEFICIENTE DE REPRESENTATIVIDADE | E147: 100.68
A148: 97191 | B148: ASSENTAMENTO DE TUBO DE AÇO CARBONO PARA REDE DE ÁGUA, DN 1800 MM (72") OU DN 1900 MM (76"), JUNTA SOLDADA, INSTALADO EM LOCAL COM NÍVEL BAIXO DE INTERFERÊNCIAS (NÃO INCLUI FORNECIMENTO). AF_05/2024 | C148: M | D148: COEFICIENTE DE REPRESENTATIVIDADE | E148: 114
A149: 97192 | B149: ASSENTAMENTO DE TUBO DE AÇO CARBONO PARA REDE DE ÁGUA, DN 2000 MM (80") OU DN 2100 MM (84"), JUNTA SOLDADA, INSTALADO EM LOCAL COM NÍVEL BAIXO DE INTERFERÊNCIAS (NÃO INCLUI FORNECIMENTO). AF_05/2024 | C149: M | D149: COEFICIENTE DE REPRESENTATIVIDADE | E149: 130.58
A150: 90694 | B150: TUBO DE PVC PARA REDE COLETORA DE ESGOTO DE PAREDE MACIÇA, DN 100 MM, JUNTA ELÁSTICA - FORNECIMENTO E ASSENTAMENTO. AF_01/2021 | C150: M | D150: COEFICIENTE DE REPRESENTATIVIDADE | E150: 40.63
A151: 90695 | B151: TUBO DE PVC PARA REDE COLETORA DE ESGOTO DE PAREDE MACIÇA, DN 150 MM, JUNTA ELÁSTICA - FORNECIMENTO E ASSENTAMENTO. AF_01/2021 | C151: M | D151: COEFICIENTE DE REPRESENTATIVIDADE | E151: 77.02
A152: 90696 | B152: TUBO DE PVC PARA REDE COLETORA DE ESGOTO DE PAREDE MACIÇA, DN 200 MM, JUNTA ELÁSTICA - FORNECIMENTO E ASSENTAMENTO. AF_01/2021 | C152: M | D152: COEFICIENTE DE REPRESENTATIVIDADE | E152: 128.52
A153: 90697 | B153: TUBO DE PVC PARA REDE COLETORA DE ESGOTO DE PAREDE MACIÇA, DN 250 MM, JUNTA ELÁSTICA - FORNECIMENTO E ASSENTAMENTO. AF_01/2021 | C153: M | D153: COEFICIENTE DE REPRESENTATIVIDADE | E153: 199.26
A154: 90698 | B154: TUBO DE PVC PARA REDE COLETORA DE ESGOTO DE PAREDE MACIÇA, DN 300 MM, JUNTA ELÁSTICA, FORNECIMENTO E ASSENTAMENTO. AF_01/2021 | C154: M | D154: COEFICIENTE DE REPRESENTATIVIDADE | E154: 304.39
A155: 90699 | B155: TUBO DE PVC PARA REDE COLETORA DE ESGOTO DE PAREDE MACIÇA, DN 350 MM, JUNTA ELÁSTICA - FORNECIMENTO E ASSENTAMENTO. AF_01/2021 | C155: M | D155: COEFICIENTE DE REPRESENTATIVIDADE | E155: 428.3
A156: 90700 | B156: TUBO DE PVC PARA REDE COLETORA DE ESGOTO DE PAREDE MACIÇA, DN 400 MM, JUNTA ELÁSTICA FORNECIMENTO E ASSENTAMENTO. AF_01/2021 | C156: M | D156: COEFICIENTE DE REPRESENTATIVIDADE | E156: 501.01
A157: 90701 | B157: TUBO DE PVC CORRUGADO DE DUPLA PAREDE PARA REDE COLETORA DE ESGOTO, DN 150 MM, JUNTA ELÁSTICA - FORNECIMENTO E ASSENTAMENTO. AF_01/2021 | C157: M | D157: COEFICIENTE DE REPRESENTATIVIDADE | E157: 61.45
A158: 90702 | B158: TUBO DE PVC CORRUGADO DE DUPLA PAREDE PARA REDE COLETORA DE ESGOTO, DN 200 MM, JUNTA ELÁSTICA - FORNECIMENTO E ASSENTAMENTO. AF_01/2021 | C158: M | D158: COEFICIENTE DE REPRESENTATIVIDADE | E158: 101.42
A159: 90703 | B159: TUBO DE PVC CORRUGADO DE DUPLA PAREDE PARA REDE COLETORA DE ESGOTO, DN 250 MM, JUNTA ELÁSTICA - FORNECIMENTO E ASSENTAMENTO. AF_01/2021 | C159: M | D159: COEFICIENTE DE REPRESENTATIVIDADE | E159: 159.91
A160: 90704 | B160: TUBO DE PVC CORRUGADO DE DUPLA PAREDE PARA REDE COLETORA DE ESGOTO, DN 300 MM, JUNTA ELÁSTICA - FORNECIMENTO E ASSENTAMENTO. AF_01/2021 | C160: M | D160: COEFICIENTE DE REPRESENTATIVIDADE | E160: 239.88
A161: 90705 | B161: TUBO DE PVC CORRUGADO DE DUPLA PAREDE PARA REDE COLETORA DE ESGOTO, DN 350 MM, JUNTA ELÁSTICA - FORNECIMENTO E ASSENTAMENTO. AF_01/2021 | C161: M | D161: COEFICIENTE DE REPRESENTATIVIDADE | E161: 309.33
A162: 90706 | B162: TUBO DE PVC CORRUGADO DE DUPLA PAREDE PARA REDE COLETORA DE ESGOTO, DN 400 MM, JUNTA ELÁSTICA - FORNECIMENTO E ASSENTAMENTO. AF_01/2021 | C162: M | D162: COEFICIENTE DE REPRESENTATIVIDADE | E162: 411.19
A163: 90708 | B163: TUBO DE PEAD CORRUGADO DE DUPLA PAREDE PARA REDE COLETORA DE ESGOTO, DN 600 MM, JUNTA ELÁSTICA INTEGRADA - FORNECIMENTO E ASSENTAMENTO. AF_01/2021 | C163: M | D163: ATRIBUÍDO SÃO PAULO | E163: 865.67
A164: 90724 | B164: JUNTA ARGAMASSADA ENTRE TUBO DN 100 MM E O POÇO DE VISITA/ CAIXA DE CONCRETO OU ALVENARIA EM REDES DE ESGOTO. AF_01/2021 | C164: UN | D164: COEFICIENTE DE REPRESENTATIVIDADE | E164: 23.3
A165: 90725 | B165: JUNTA ARGAMASSADA ENTRE TUBO DN 150 MM E O POÇO DE VISITA/ CAIXA DE CONCRETO OU ALVENARIA EM REDES DE ESGOTO. AF_01/2021 | C165: UN | D165: COEFICIENTE DE REPRESENTATIVIDADE | E165: 28.68
A166: 90726 | B166: JUNTA ARGAMASSADA ENTRE TUBO DN 200 MM E O POÇO/ CAIXA DE CONCRETO OU ALVENARIA EM REDES DE ESGOTO. AF_01/2021 | C166: UN | D166: COEFICIENTE DE REPRESENTATIVIDADE | E166: 34.13
A167: 90727 | B167: JUNTA ARGAMASSADA ENTRE TUBO DN 250 MM E O POÇO DE VISITA/ CAIXA DE CONCRETO OU ALVENARIA EM REDES DE ESGOTO. AF_01/2021 | C167: UN | D167: COEFICIENTE DE REPRESENTATIVIDADE | E167: 39.52
A168: 90728 | B168: JUNTA ARGAMASSADA ENTRE TUBO DN 300 MM E O POÇO DE VISITA/ CAIXA DE CONCRETO OU ALVENARIA EM REDES DE ESGOTO. AF_01/2021 | C168: UN | D168: COEFICIENTE DE REPRESENTATIVIDADE | E168: 44.9
A169: 90729 | B169: JUNTA ARGAMASSADA ENTRE TUBO DN 350 MM E O POÇO DE VISITA/ CAIXA DE CONCRETO OU ALVENARIA EM REDES DE ESGOTO. AF_01/2021 | C169: UN | D169: COEFICIENTE DE REPRESENTATIVIDADE | E169: 50.28
A170: 90730 | B170: JUNTA ARGAMASSADA ENTRE TUBO DN 400 MM E O POÇO DE VISITA/ CAIXA DE CONCRETO OU ALVENARIA EM REDES DE ESGOTO. AF_01/2021 | C170: UN | D170: COEFICIENTE DE REPRESENTATIVIDADE | E170: 55.67
A171: 90731 | B171: JUNTA ARGAMASSADA ENTRE TUBO DN 450 MM E O POÇO DE VISITA/ CAIXA DE CONCRETO OU ALVENARIA EM REDES DE ESGOTO. AF_01/2021 | C171: UN | D171: COEFICIENTE DE REPRESENTATIVIDADE | E171: 61.05
A172: 90732 | B172: JUNTA ARGAMASSADA ENTRE TUBO DN 600 MM E O POÇO DE VISITA/ CAIXA DE CONCRETO OU ALVENARIA EM REDES DE ESGOTO. AF_01/2021 | C172: UN | D172: COEFICIENTE DE REPRESENTATIVIDADE | E172: 77.2
A173: 90733 | B173: ASSENTAMENTO DE TUBO DE PVC PARA REDE COLETORA DE ESGOTO DE PAREDE MACIÇA, DN 100 MM, JUNTA ELÁSTICA (NÃO INCLUI FORNECIMENTO). AF_01/2021 | C173: M | D173: COEFICIENTE DE REPRESENTATIVIDADE | E173: 3.27
A174: 90734 | B174: ASSENTAMENTO DE TUBO DE PVC PARA REDE COLETORA DE ESGOTO DE PAREDE MACIÇA, DN 150 MM, JUNTA ELÁSTICA, (NÃO INCLUI FORNECIMENTO). AF_01/2021 | C174: M | D174: COEFICIENTE DE REPRESENTATIVIDADE | E174: 3.87
A175: 90735 | B175: ASSENTAMENTO DE TUBO DE PVC PARA REDE COLETORA DE ESGOTO DE PAREDE MACIÇA, DN 200 MM, JUNTA ELÁSTICA (NÃO INCLUI FORNECIMENTO). AF_01/2021 | C175: M | D175: COEFICIENTE DE REPRESENTATIVIDADE | E175: 4.47
A176: 90736 | B176: ASSENTAMENTO DE TUBO DE PVC PARA REDE COLETORA DE ESGOTO DE PAREDE MACIÇA, DN 250 MM, JUNTA ELÁSTICA (NÃO INCLUI FORNECIMENTO). AF_01/2021 | C176: M | D176: COEFICIENTE DE REPRESENTATIVIDADE | E176: 5.08
A177: 90737 | B177: ASSENTAMENTO DE TUBO DE PVC PARA REDE COLETORA DE ESGOTO DE PAREDE MACIÇA, DN 300 MM, JUNTA ELÁSTICA (NÃO INCLUI FORNECIMENTO). AF_01/2021 | C177: M | D177: COEFICIENTE DE REPRESENTATIVIDADE | E177: 5.68
A178: 90738 | B178: ASSENTAMENTO DE TUBO DE PVC PARA REDE COLETORA DE ESGOTO DE PAREDE MACIÇA, DN 350 MM, JUNTA ELÁSTICA (NÃO INCLUI FORNECIMENTO). AF_01/2021 | C178: M | D178: COEFICIENTE DE REPRESENTATIVIDADE | E178: 6.29
A179: 90739 | B179: ASSENTAMENTO DE TUBO DE PVC PARA REDE COLETORA DE ESGOTO DE PAREDE MACIÇA, DN 400 MM, JUNTA ELÁSTICA (NÃO INCLUI FORNECIMENTO). AF_01/2021 | C179: M | D179: COEFICIENTE DE REPRESENTATIVIDADE | E179: 9.55
A180: 90740 | B180: ASSENTAMENTO DE TUBO DE PVC CORRUGADO DE DUPLA PAREDE PARA REDE COLETORA DE ESGOTO, DN 150 MM, JUNTA ELÁSTICA (NÃO INCLUI FORNECIMENTO). AF_01/2021 | C180: M | D180: COEFICIENTE DE REPRESENTATIVIDADE | E180: 4.32
A181: 90741 | B181: ASSENTAMENTO DE TUBO DE PVC CORRUGADO DE DUPLA PAREDE PARA REDE COLETORA DE ESGOTO, DN 200 MM, JUNTA ELÁSTICA (NÃO INCLUI FORNECIMENTO). AF_01/2021 | C181: M | D181: COEFICIENTE DE REPRESENTATIVIDADE | E181: 4.92
A182: 90742 | B182: ASSENTAMENTO DE TUBO DE PVC CORRUGADO DE DUPLA PAREDE PARA REDE COLETORA DE ESGOTO, DN 250 MM, JUNTA ELÁSTICA (NÃO INCLUI FORNECIMENTO). AF_01/2021 | C182: M | D182: COEFICIENTE DE REPRESENTATIVIDADE | E182: 5.52
A183: 90743 | B183: ASSENTAMENTO DE TUBO DE PVC CORRUGADO DE DUPLA PAREDE PARA REDE COLETORA DE ESGOTO, DN 300 MM, JUNTA ELÁSTICA (NÃO INCLUI FORNECIMENTO). AF_01/2021 | C183: M | D183: COEFICIENTE DE REPRESENTATIVIDADE | E183: 6.12
A184: 90744 | B184: ASSENTAMENTO DE TUBO DE PVC CORRUGADO DE DUPLA PAREDE PARA REDE COLETORA DE ESGOTO, DN 350 MM, JUNTA ELÁSTICA (NÃO INCLUI FORNECIMENTO). AF_01/2021 | C184: M | D184: COEFICIENTE DE REPRESENTATIVIDADE | E184: 6.74
A185: 90745 | B185: ASSENTAMENTO DE TUBO DE PVC CORRUGADO DE DUPLA PAREDE PARA REDE COLETORA DE ESGOTO, DN 400 MM, JUNTA ELÁSTICA (NÃO INCLUI FORNECIMENTO). AF_01/2021 | C185: M | D185: COEFICIENTE DE REPRESENTATIVIDADE | E185: 10.67
A186: 90746 | B186: ASSENTAMENTO DE TUBO DE PEAD CORRUGADO DE DUPLA PAREDE PARA REDE COLETORA DE ESGOTO, DN 450 MM, JUNTA ELÁSTICA INTEGRADA (NÃO INCLUI FORNECIMENTO). AF_01/2021 | C186: M | D186: COEFICIENTE DE REPRESENTATIVIDADE | E186: 3.53
A187: 90747 | B187: ASSENTAMENTO DE TUBO DE PEAD CORRUGADO DE DUPLA PAREDE PARA REDE COLETORA DE ESGOTO, DN 600 MM, JUNTA ELÁSTICA INTEGRADA (NÃO INCLUI FORNECIMENTO). AF_01/2021 | C187: M | D187: COEFICIENTE DE REPRESENTATIVIDADE | E187: 17.28
A188: 94869 | B188: TUBO DE PEAD CORRUGADO DE DUPLA PAREDE PARA REDE COLETORA DE ESGOTO, DN 250 MM, JUNTA ELÁSTICA INTEGRADA - FORNECIMENTO E ASSENTAMENTO. AF_01/2021 | C188: M | D188: ATRIBUÍDO SÃO PAULO | E188: 152.63
A189: 94870 | B189: ASSENTAMENTO DE TUBO DE PEAD CORRUGADO DE DUPLA PAREDE PARA REDE COLETORA DE ESGOTO, DN 250 MM, JUNTA ELÁSTICA INTEGRADA (NÃO INCLUI FORNECIMENTO). AF_01/2021 | C189: M | D189: COEFICIENTE DE REPRESENTATIVIDADE | E189: 1.76
A190: 94871 | B190: TUBO DE PEAD CORRUGADO DE DUPLA PAREDE PARA REDE COLETORA DE ESGOTO, DN 300 MM, JUNTA ELÁSTICA INTEGRADA - FORNECIMENTO E ASSENTAMENTO. AF_01/2021 | C190: M | D190: ATRIBUÍDO SÃO PAULO | E190: 238.87
A191: 94872 | B191: ASSENTAMENTO DE TUBO DE PEAD CORRUGADO DE DUPLA PAREDE PARA REDE COLETORA DE ESGOTO, DN 300 MM, JUNTA ELÁSTICA INTEGRADA (NÃO INCLUI FORNECIMENTO). AF_01/2021 | C191: M | D191: COEFICIENTE DE REPRESENTATIVIDADE | E191: 2.5
A192: 94875 | B192: TUBO DE PEAD CORRUGADO DE DUPLA PAREDE PARA REDE COLETORA DE ESGOTO, DN 800 MM, JUNTA ELÁSTICA INTEGRADA - FORNECIMENTO E ASSENTAMENTO. AF_01/2021 | C192: M | D192: ATRIBUÍDO SÃO PAULO | E192: 1405.89
A193: 94876 | B193: ASSENTAMENTO DE TUBO DE PEAD CORRUGADO DE DUPLA PAREDE PARA REDE COLETORA DE ESGOTO, DN 800 MM, JUNTA ELÁSTICA INTEGRADA (NÃO INCLUI FORNECIMENTO). AF_01/2021 | C193: M | D193: COEFICIENTE DE REPRESENTATIVIDADE | E193: 28.64
A194: 94878 | B194: ASSENTAMENTO DE TUBO DE PEAD CORRUGADO DE DUPLA PAREDE PARA REDE COLETORA DE ESGOTO, DN 900 MM, JUNTA ELÁSTICA INTEGRADA (NÃO INCLUI FORNECIMENTO). AF_01/2021 | C194: M | D194: COEFICIENTE DE REPRESENTATIVIDADE | E194: 33.19
A195: 94879 | B195: TUBO DE PEAD CORRUGADO DE DUPLA PAREDE PARA REDE COLETORA DE ESGOTO, DN 1000 MM, JUNTA ELÁSTICA INTEGRADA - FORNECIMENTO E ASSENTAMENTO. AF_01/2021 | C195: M | D195: ATRIBUÍDO SÃO PAULO | E195: 2164.15
A196: 94880 | B196: ASSENTAMENTO DE TUBO DE PEAD CORRUGADO DE DUPLA PAREDE PARA REDE COLETORA DE ESGOTO, DN 1000 MM, JUNTA ELÁSTICA INTEGRADA (NÃO INCLUI FORNECIMENTO). AF_01/2021 | C196: M | D196: COEFICIENTE DE REPRESENTATIVIDADE | E196: 42.54
A197: 94881 | B197: TUBO DE PEAD CORRUGADO DE DUPLA PAREDE PARA REDE COLETORA DE ESGOTO, DN 1200 MM, JUNTA ELÁSTICA INTEGRADA - FORNECIMENTO E ASSENTAMENTO. AF_01/2021 | C197: M | D197: ATRIBUÍDO SÃO PAULO | E197: 2981.75
A198: 94882 | B198: ASSENTAMENTO DE TUBO DE PEAD CORRUGADO DE DUPLA PAREDE PARA REDE COLETORA DE ESGOTO, DN 1200 MM, JUNTA ELÁSTICA INTEGRADA (NÃO INCLUI FORNECIMENTO). AF_01/2021 | C198: M | D198: COEFICIENTE DE REPRESENTATIVIDADE | E198: 49.54
A199: 94884 | B199: ASSENTAMENTO DE TUBO DE PEAD CORRUGADO DE DUPLA PAREDE PARA REDE COLETORA DE ESGOTO, DN 1500 MM, JUNTA ELÁSTICA INTEGRADA (NÃO INCLUI FORNECIMENTO). AF_01/2021 | C199: M | D199: COEFICIENTE DE REPRESENTATIVIDADE | E199: 63.75
A200: 97121 | B200: ASSENTAMENTO DE TUBO DE PVC PBA PARA REDE DE ÁGUA, DN 50 MM, JUNTA ELÁSTICA INTEGRADA, INSTALADO EM LOCAL COM NÍVEL ALTO DE INTERFERÊNCIAS (NÃO INCLUI FORNECIMENTO). AF_05/2024 | C200: M | D200: COEFICIENTE DE REPRESENTATIVIDADE | E200: 2.87
A201: 97122 | B201: ASSENTAMENTO DE TUBO DE PVC PBA PARA REDE DE ÁGUA, DN 75 MM, JUNTA ELÁSTICA INTEGRADA, INSTALADO EM LOCAL COM NÍVEL ALTO DE INTERFERÊNCIAS (NÃO INCLUI FORNECIMENTO). AF_05/2024 | C201: M | D201: COEFICIENTE DE REPRESENTATIVIDADE | E201: 3.45
... 7538 more rows

Sheet Memoria
A1: MEMÓRIA DE CÁLCULO - QUANTITATIVOS
A2: Descrição dos serviços | B2: unid. | C2: Comprimento | D2: Vezes | E2: Qnt | F2: Total
A3: SUBSTITUIÇÃO
A4: SUBSTITUIÇÃO DE LUMINÁRIA | B4: unid. | E4: 6800 | F4: =E4 -> 6800
A6: BRAÇO PARA ILUMINAÇÃO 1,5m - POSTE DE CONCRETO
A7: Braço | B7: unid. | E7: =F4*0.15 -> 1020 | F7: =E7 -> 1020 | H7: =F7/$F$4 -> 0.15
A8: *Estimado em 15% de substituições necessárias
A9: BRAÇO PARA ILUMINAÇÃO 1,5m - POSTE METÁLICO
A10: Braço | B10: unid. | E10: =F4*0.05 -> 340 | F10: =E10 -> 340 | H10: =F10/$F$4 -> 0.05
A11: *Estimado em 5% de substituições necessárias
A12: ATERRO
A13: Aterro interno compactado manualmente - calçada | B13: m³ | C13: 80 | D13: 0.3 | E13: 1 | F13: =C13*#REF!*D13*E13 -> 
A15: BRAÇO PARA ILUMINAÇÃO 2 m
A16: Braço | B16: unid. | E16: =F4*0.04 -> 272 | F16: =E16 -> 272 | H16: =F16/$F$4 -> 0.04
A17: *Estimado em 5% de substituições necessárias
A18: BRAÇO PARA ILUMINAÇÃO 3 m
A19: Braço | B19: unid. | E19: =F4*0.04 -> 272 | F19: =E19 -> 272 | H19: =F19/$F$4 -> 0.04
A20: *Estimado em 5% de substituições necessárias
A21: Substituição de braço
A22: BRAÇO PARA ILUMINAÇÃO 2 m | B22: unid. | D22: =E16 -> 272 | E22: 1 | F22: =E22*D22 -> 272
A23: BRAÇO PARA ILUMINAÇÃO 3 m | B23: unid. | D23: =E19 -> 272 | E23: 1 | F23: =E23*D23 -> 272
E24: TOTAL | F24: =SUM(F22:F23) -> 544
A26: CABO DE COBRE | H26: =SUM(H6:H19) -> 0.28
A27: BRAÇO PARA ILUMINAÇÃO 2 m | B27: m | C27: 8 | D27: 0.5 | E27: =F16 -> 272 | F27: =C27*D27*E27 -> 1088
A28: BRAÇO PARA ILUMINAÇÃO 3 m | B28: m | C28: 12 | D28: 0.5 | E28: =F19 -> 272 | F28: =C28*D28*E28 -> 1632
A29: * considerando-se 50% de troca | E29: TOTAL | F29: =SUM(F27:F28) -> 2720
A31: CONECTOR PERFURAÇÃO
A32: Conector perfuração 25-95/2 95 mm | B32: unid | D32: 0.5 | E32: =F19+F16+F10+F7 -> 1904 | F32: =E32*D32 -> 952
A33: * considerando-se 50% de troca | E33: TOTAL | F33: =SUM(F32:F32) -> 952
A35: RELÉ
A36: RELÉ FOTOELÉTRICO | B36: unid | E36: =F4 -> 6800 | F36: =E36 -> 6800
E37: TOTAL | F37: =SUM(F36:F36) -> 6800
A39: MOB/DESMOB
A40: Mobilização e demobilização | B40: tkm | C40: 60 | D40: 6 | E40: 3 | F40: =E40*D40*C40 -> 1080
E41: TOTAL | F41: =SUM(F40:F40) -> 1080
